Council Name,Date,TransNo,Amount � (Excl VAT),Supplier name,Supplier Category,Expense Area,Expense Type,Expense Code
London Borough of Sutton,31/03/2024,20073229,"10,000.00",31ten Consulting Ltd,FINANCIAL / INSURANCE INSTNS,Resources,Professional Fees,A44066
London Borough of Sutton,05/04/2024,50479612,500.00,REDACTED - PERSONAL DATA,GRANTS & EX GRATIA PAYMENTS,Environment Housing and Neighbourhoods,"Grants, Contributions & Donations",A47005
London Borough of Sutton,04/04/2024,50481404,"1,343.08",A R G Europe Limited,CONSTRUCTION INDUSTRY,HRA,Payments to Contractors,C14000
London Borough of Sutton,10/04/2024,50483323,"1,935.72",A R G Europe Limited,CONSTRUCTION INDUSTRY,HRA,Payments to Contractors,C14000
London Borough of Sutton,23/04/2024,50485156,"9,460.80",A Step Beyond Ltd,SOCIAL SERVICES - OTHER,People's Services,Supported Living,A56088
London Borough of Sutton,23/04/2024,50485156,"3,547.80",A Step Beyond Ltd,SOCIAL SERVICES - OTHER,People's Services,Supported Living,A56088
London Borough of Sutton,23/04/2024,50485156,622.54,A Step Beyond Ltd,SOCIAL SERVICES - OTHER,People's Services,Supported Living,A56088
London Borough of Sutton,23/04/2024,50485156,929.19,A Step Beyond Ltd,SOCIAL SERVICES - OTHER,People's Services,Supported Living,A56088
London Borough of Sutton,12/04/2024,50482530,-750.40,Abbey Care Centre,SOCIAL SERVICES RESIDENTIAL,People's Services,Nursing Care - 3rd party top up payment,A56023
London Borough of Sutton,12/04/2024,50482530,"3,848.24",Abbey Care Centre,SOCIAL SERVICES RESIDENTIAL,People's Services,Nursing Care - Ext Provider,A56025
London Borough of Sutton,12/04/2024,50482530,"-1,492.80",Abbey Care Centre,SOCIAL SERVICES RESIDENTIAL,People's Services,Nursing Care - 3rd party top up payment,A56023
London Borough of Sutton,12/04/2024,50482577,"4,678.84",Abbey Care Centre,SOCIAL SERVICES RESIDENTIAL,People's Services,Nursing Care - Ext Provider,A56025
London Borough of Sutton,12/04/2024,50482577,-878.84,Abbey Care Centre,SOCIAL SERVICES RESIDENTIAL,People's Services,Nursing Care - 3rd party top up payment,A56023
London Borough of Sutton,12/04/2024,50482779,"4,096.12",Abbey Care Centre,SOCIAL SERVICES RESIDENTIAL,People's Services,Nursing Care - Ext Provider,A56025
London Borough of Sutton,12/04/2024,50482779,-878.84,Abbey Care Centre,SOCIAL SERVICES RESIDENTIAL,People's Services,Nursing Care - 3rd party top up payment,A56023
London Borough of Sutton,12/04/2024,50482870,"4,560.00",Abbey Care Centre,SOCIAL SERVICES RESIDENTIAL,People's Services,Nursing Care Short Term,A56026
London Borough of Sutton,12/04/2024,50482870,-878.84,Abbey Care Centre,SOCIAL SERVICES RESIDENTIAL,People's Services,Nursing Care - 3rd party top up payment,A56023
London Borough of Sutton,09/04/2024,50481071,"5,049.00",ABC Pre-School Beddington LLP,ACADEMIC INSTNS - OTHER,People's Services,Payment - Nursery Funding,A51056
London Borough of Sutton,09/04/2024,50481199,"2,983.05",ABC Pre-School Beddington LLP,ACADEMIC INSTNS - OTHER,People's Services,Payment - Nursery Funding,A51056
London Borough of Sutton,30/04/2024,50488744,"5,049.00",ABC Pre-School Beddington LLP,ACADEMIC INSTNS - OTHER,People's Services,Payment - Nursery Funding,A51056
London Borough of Sutton,30/04/2024,50488873,"2,983.05",ABC Pre-School Beddington LLP,ACADEMIC INSTNS - OTHER,People's Services,Payment - Nursery Funding,A51056
London Borough of Sutton,01/04/2024,20074422,"71,916.00",Abel Living,ACCOMMODATION BED & BREAKFAST,Environment Housing and Neighbourhoods,Bed & Breakfast,A56000
London Borough of Sutton,01/04/2024,20073262,"6,371.00",Absolute Care Services Ltd,SOCIAL SERVICES DAY CARE,People's Services,Homecare Core Services,A56020
London Borough of Sutton,01/04/2024,20073264,"6,144.50",Absolute Care Services Ltd,SOCIAL SERVICES DAY CARE,People's Services,Homecare Core Services,A56020
London Borough of Sutton,01/04/2024,20073265,"7,304.59",Absolute Care Services Ltd,SOCIAL SERVICES DAY CARE,People's Services,Homecare Core Services,A56020
London Borough of Sutton,08/04/2024,20073725,"6,144.50",Absolute Care Services Ltd,SOCIAL SERVICES DAY CARE,People's Services,Homecare Core Services,A56020
London Borough of Sutton,08/04/2024,20073726,"6,371.00",Absolute Care Services Ltd,SOCIAL SERVICES DAY CARE,People's Services,Homecare Core Services,A56020
London Borough of Sutton,15/04/2024,20074289,"6,530.27",Absolute Care Services Ltd,SOCIAL SERVICES DAY CARE,People's Services,Homecare Core Services,A56020
London Borough of Sutton,15/04/2024,20074290,"6,298.11",Absolute Care Services Ltd,SOCIAL SERVICES DAY CARE,People's Services,Homecare Core Services,A56020
London Borough of Sutton,22/04/2024,20074808,"6,298.11",Absolute Care Services Ltd,SOCIAL SERVICES DAY CARE,People's Services,Homecare Core Services,A56020
London Borough of Sutton,22/04/2024,20074809,"6,530.27",Absolute Care Services Ltd,SOCIAL SERVICES DAY CARE,People's Services,Homecare Core Services,A56020
London Borough of Sutton,10/12/2023,50479023,167.21,Absolute Care Services Ltd,SOCIAL SERVICES DAY CARE,People's Services,Home Care Services,A56019
London Borough of Sutton,10/12/2023,50479023,460.23,Absolute Care Services Ltd,SOCIAL SERVICES DAY CARE,People's Services,Home Care Services,A56019
London Borough of Sutton,10/03/2024,50479085,799.96,Absolute Care Services Ltd,SOCIAL SERVICES DAY CARE,People's Services,Home Care Services,A56019
London Borough of Sutton,17/03/2024,50479086,793.03,Absolute Care Services Ltd,SOCIAL SERVICES DAY CARE,People's Services,Home Care Services,A56019
London Borough of Sutton,10/03/2024,50479096,726.75,Absolute Care Services Ltd,SOCIAL SERVICES DAY CARE,People's Services,Home Care Services,A56019
London Borough of Sutton,17/03/2024,50479097,712.86,Absolute Care Services Ltd,SOCIAL SERVICES DAY CARE,People's Services,Home Care Services,A56019
London Borough of Sutton,10/12/2023,50479098,690.22,Absolute Care Services Ltd,SOCIAL SERVICES DAY CARE,People's Services,Home Care Services,A56019
London Borough of Sutton,10/03/2024,50479109,679.72,Absolute Care Services Ltd,SOCIAL SERVICES DAY CARE,People's Services,Home Care Services,A56019
London Borough of Sutton,17/03/2024,50479110,672.78,Absolute Care Services Ltd,SOCIAL SERVICES DAY CARE,People's Services,Home Care Services,A56019
London Borough of Sutton,17/03/2024,50479370,557.62,Absolute Care Services Ltd,SOCIAL SERVICES DAY CARE,People's Services,Home Care Services,A56019
London Borough of Sutton,17/03/2024,50479370,60.55,Absolute Care Services Ltd,SOCIAL SERVICES DAY CARE,People's Services,Home Care Services,A56019
London Borough of Sutton,24/03/2024,50480433,62.73,Absolute Care Services Ltd,SOCIAL SERVICES DAY CARE,People's Services,Home Care Services,A56019
London Borough of Sutton,24/03/2024,50480433,810.72,Absolute Care Services Ltd,SOCIAL SERVICES DAY CARE,People's Services,Home Care Services,A56019
London Borough of Sutton,24/03/2024,50480523,167.21,Absolute Care Services Ltd,SOCIAL SERVICES DAY CARE,People's Services,Home Care Services,A56019
London Borough of Sutton,24/03/2024,50480523,427.11,Absolute Care Services Ltd,SOCIAL SERVICES DAY CARE,People's Services,Home Care Services,A56019
London Borough of Sutton,24/03/2024,50480572,146.30,Absolute Care Services Ltd,SOCIAL SERVICES DAY CARE,People's Services,Home Care Services,A56019
London Borough of Sutton,24/03/2024,50480572,374.82,Absolute Care Services Ltd,SOCIAL SERVICES DAY CARE,People's Services,Home Care Services,A56019
London Borough of Sutton,24/03/2024,50480719,181.58,Absolute Care Services Ltd,SOCIAL SERVICES DAY CARE,People's Services,Home Care Services,A56019
London Borough of Sutton,24/03/2024,50480719,307.02,Absolute Care Services Ltd,SOCIAL SERVICES DAY CARE,People's Services,Home Care Services,A56019
London Borough of Sutton,24/03/2024,50480719,121.03,Absolute Care Services Ltd,SOCIAL SERVICES DAY CARE,People's Services,Home Care Services,A56019
London Borough of Sutton,24/03/2024,50480720,423.85,Absolute Care Services Ltd,SOCIAL SERVICES DAY CARE,People's Services,Home Care Services,A56019
London Borough of Sutton,24/03/2024,50480720,121.03,Absolute Care Services Ltd,SOCIAL SERVICES DAY CARE,People's Services,Home Care Services,A56019
London Borough of Sutton,24/03/2024,50480728,34.58,Absolute Care Services Ltd,SOCIAL SERVICES DAY CARE,People's Services,Home Care Services,A56019
London Borough of Sutton,24/03/2024,50480728,544.88,Absolute Care Services Ltd,SOCIAL SERVICES DAY CARE,People's Services,Home Care Services,A56019
London Borough of Sutton,24/03/2024,50480836,484.12,Absolute Care Services Ltd,SOCIAL SERVICES DAY CARE,People's Services,Home Care Services,A56019
London Borough of Sutton,24/03/2024,50480836,242.06,Absolute Care Services Ltd,SOCIAL SERVICES DAY CARE,People's Services,Home Care Services,A56019
London Borough of Sutton,24/03/2024,50480842,471.17,Absolute Care Services Ltd,SOCIAL SERVICES DAY CARE,People's Services,Home Care Services,A56019
London Borough of Sutton,24/03/2024,50480842,60.55,Absolute Care Services Ltd,SOCIAL SERVICES DAY CARE,People's Services,Home Care Services,A56019
London Borough of Sutton,24/03/2024,50480887,544.88,Absolute Care Services Ltd,SOCIAL SERVICES DAY CARE,People's Services,Home Care Services,A56019
London Borough of Sutton,24/03/2024,50480887,17.29,Absolute Care Services Ltd,SOCIAL SERVICES DAY CARE,People's Services,Home Care Services,A56019
London Borough of Sutton,31/03/2024,50481889,544.88,Absolute Care Services Ltd,SOCIAL SERVICES DAY CARE,People's Services,Home Care Services,A56019
London Borough of Sutton,31/03/2024,50481889,17.29,Absolute Care Services Ltd,SOCIAL SERVICES DAY CARE,People's Services,Home Care Services,A56019
London Borough of Sutton,31/03/2024,50481922,34.58,Absolute Care Services Ltd,SOCIAL SERVICES DAY CARE,People's Services,Home Care Services,A56019
London Borough of Sutton,31/03/2024,50481922,544.88,Absolute Care Services Ltd,SOCIAL SERVICES DAY CARE,People's Services,Home Care Services,A56019
London Borough of Sutton,31/03/2024,50483045,167.21,Absolute Care Services Ltd,SOCIAL SERVICES DAY CARE,People's Services,Home Care Services,A56019
London Borough of Sutton,31/03/2024,50483045,434.07,Absolute Care Services Ltd,SOCIAL SERVICES DAY CARE,People's Services,Home Care Services,A56019
London Borough of Sutton,31/03/2024,50483189,247.82,Absolute Care Services Ltd,SOCIAL SERVICES DAY CARE,People's Services,Home Care Services,A56019
London Borough of Sutton,31/03/2024,50483189,495.65,Absolute Care Services Ltd,SOCIAL SERVICES DAY CARE,People's Services,Home Care Services,A56019
London Borough of Sutton,31/03/2024,50483191,471.17,Absolute Care Services Ltd,SOCIAL SERVICES DAY CARE,People's Services,Home Care Services,A56019
London Borough of Sutton,31/03/2024,50483191,60.55,Absolute Care Services Ltd,SOCIAL SERVICES DAY CARE,People's Services,Home Care Services,A56019
London Borough of Sutton,24/03/2024,50483421,841.77,Absolute Care Services Ltd,SOCIAL SERVICES DAY CARE,People's Services,Home Care Services,A56019
London Borough of Sutton,31/03/2024,50483422,824.35,Absolute Care Services Ltd,SOCIAL SERVICES DAY CARE,People's Services,Home Care Services,A56019
London Borough of Sutton,24/03/2024,50483461,719.82,Absolute Care Services Ltd,SOCIAL SERVICES DAY CARE,People's Services,Home Care Services,A56019
London Borough of Sutton,31/03/2024,50483462,754.66,Absolute Care Services Ltd,SOCIAL SERVICES DAY CARE,People's Services,Home Care Services,A56019
London Borough of Sutton,24/03/2024,50483471,672.76,Absolute Care Services Ltd,SOCIAL SERVICES DAY CARE,People's Services,Home Care Services,A56019
London Borough of Sutton,31/03/2024,50483472,704.14,Absolute Care Services Ltd,SOCIAL SERVICES DAY CARE,People's Services,Home Care Services,A56019
London Borough of Sutton,31/03/2024,50483474,146.30,Absolute Care Services Ltd,SOCIAL SERVICES DAY CARE,People's Services,Home Care Services,A56019
London Borough of Sutton,31/03/2024,50483474,381.81,Absolute Care Services Ltd,SOCIAL SERVICES DAY CARE,People's Services,Home Care Services,A56019
London Borough of Sutton,24/03/2024,50483702,90.79,Absolute Care Services Ltd,SOCIAL SERVICES DAY CARE,People's Services,Home Care Services,A56019
London Borough of Sutton,24/03/2024,50483702,570.64,Absolute Care Services Ltd,SOCIAL SERVICES DAY CARE,People's Services,Home Care Services,A56019
London Borough of Sutton,31/03/2024,50483706,90.79,Absolute Care Services Ltd,SOCIAL SERVICES DAY CARE,People's Services,Home Care Services,A56019
London Borough of Sutton,31/03/2024,50483706,696.01,Absolute Care Services Ltd,SOCIAL SERVICES DAY CARE,People's Services,Home Care Services,A56019
London Borough of Sutton,10/03/2024,50483707,90.79,Absolute Care Services Ltd,SOCIAL SERVICES DAY CARE,People's Services,Home Care Services,A56019
London Borough of Sutton,10/03/2024,50483707,696.01,Absolute Care Services Ltd,SOCIAL SERVICES DAY CARE,People's Services,Home Care Services,A56019
London Borough of Sutton,17/03/2024,50483708,90.79,Absolute Care Services Ltd,SOCIAL SERVICES DAY CARE,People's Services,Home Care Services,A56019
London Borough of Sutton,17/03/2024,50483708,696.01,Absolute Care Services Ltd,SOCIAL SERVICES DAY CARE,People's Services,Home Care Services,A56019
London Borough of Sutton,10/12/2023,50483719,544.89,Absolute Care Services Ltd,SOCIAL SERVICES DAY CARE,People's Services,Home Care Services,A56019
London Borough of Sutton,07/04/2024,50484101,558.18,Absolute Care Services Ltd,SOCIAL SERVICES DAY CARE,People's Services,Home Care Services,A56019
London Borough of Sutton,07/04/2024,50484101,17.72,Absolute Care Services Ltd,SOCIAL SERVICES DAY CARE,People's Services,Home Care Services,A56019
London Borough of Sutton,07/04/2024,50484136,35.44,Absolute Care Services Ltd,SOCIAL SERVICES DAY CARE,People's Services,Home Care Services,A56019
London Borough of Sutton,07/04/2024,50484136,558.19,Absolute Care Services Ltd,SOCIAL SERVICES DAY CARE,People's Services,Home Care Services,A56019
London Borough of Sutton,07/04/2024,50484225,507.98,Absolute Care Services Ltd,SOCIAL SERVICES DAY CARE,People's Services,Home Care Services,A56019
London Borough of Sutton,07/04/2024,50484225,253.99,Absolute Care Services Ltd,SOCIAL SERVICES DAY CARE,People's Services,Home Care Services,A56019
London Borough of Sutton,07/04/2024,50484236,482.87,Absolute Care Services Ltd,SOCIAL SERVICES DAY CARE,People's Services,Home Care Services,A56019
London Borough of Sutton,07/04/2024,50484236,62.02,Absolute Care Services Ltd,SOCIAL SERVICES DAY CARE,People's Services,Home Care Services,A56019
London Borough of Sutton,07/04/2024,50484615,735.09,Absolute Care Services Ltd,SOCIAL SERVICES DAY CARE,People's Services,Home Care Services,A56019
London Borough of Sutton,07/04/2024,50484619,829.89,Absolute Care Services Ltd,SOCIAL SERVICES DAY CARE,People's Services,Home Care Services,A56019
London Borough of Sutton,07/04/2024,50484626,175.04,Absolute Care Services Ltd,SOCIAL SERVICES DAY CARE,People's Services,Home Care Services,A56019
London Borough of Sutton,07/04/2024,50484626,497.93,Absolute Care Services Ltd,SOCIAL SERVICES DAY CARE,People's Services,Home Care Services,A56019
London Borough of Sutton,07/04/2024,50484631,791.68,Absolute Care Services Ltd,SOCIAL SERVICES DAY CARE,People's Services,Home Care Services,A56019
London Borough of Sutton,07/04/2024,50484632,153.16,Absolute Care Services Ltd,SOCIAL SERVICES DAY CARE,People's Services,Home Care Services,A56019
London Borough of Sutton,07/04/2024,50484632,446.99,Absolute Care Services Ltd,SOCIAL SERVICES DAY CARE,People's Services,Home Care Services,A56019
London Borough of Sutton,07/04/2024,50484705,93.03,Absolute Care Services Ltd,SOCIAL SERVICES DAY CARE,People's Services,Home Care Services,A56019
London Borough of Sutton,07/04/2024,50484705,713.24,Absolute Care Services Ltd,SOCIAL SERVICES DAY CARE,People's Services,Home Care Services,A56019
London Borough of Sutton,14/04/2024,50486645,665.75,Absolute Care Services Ltd,SOCIAL SERVICES DAY CARE,People's Services,Home Care Services,A56019
London Borough of Sutton,14/04/2024,50486763,496.17,Absolute Care Services Ltd,SOCIAL SERVICES DAY CARE,People's Services,Home Care Services,A56019
London Borough of Sutton,14/04/2024,50486763,248.08,Absolute Care Services Ltd,SOCIAL SERVICES DAY CARE,People's Services,Home Care Services,A56019
London Borough of Sutton,14/04/2024,50486795,558.18,Absolute Care Services Ltd,SOCIAL SERVICES DAY CARE,People's Services,Home Care Services,A56019
London Borough of Sutton,14/04/2024,50486795,17.72,Absolute Care Services Ltd,SOCIAL SERVICES DAY CARE,People's Services,Home Care Services,A56019
London Borough of Sutton,14/04/2024,50486823,35.44,Absolute Care Services Ltd,SOCIAL SERVICES DAY CARE,People's Services,Home Care Services,A56019
London Borough of Sutton,14/04/2024,50486823,558.19,Absolute Care Services Ltd,SOCIAL SERVICES DAY CARE,People's Services,Home Care Services,A56019
London Borough of Sutton,14/04/2024,50489713,826.23,Absolute Care Services Ltd,SOCIAL SERVICES DAY CARE,People's Services,Home Care Services,A56019
London Borough of Sutton,14/04/2024,50489753,715.10,Absolute Care Services Ltd,SOCIAL SERVICES DAY CARE,People's Services,Home Care Services,A56019
London Borough of Sutton,14/04/2024,50489754,153.16,Absolute Care Services Ltd,SOCIAL SERVICES DAY CARE,People's Services,Home Care Services,A56019
London Borough of Sutton,14/04/2024,50489754,496.55,Absolute Care Services Ltd,SOCIAL SERVICES DAY CARE,People's Services,Home Care Services,A56019
London Borough of Sutton,14/04/2024,50489755,525.56,Absolute Care Services Ltd,SOCIAL SERVICES DAY CARE,People's Services,Home Care Services,A56019
London Borough of Sutton,14/04/2024,50489866,571.47,Absolute Care Services Ltd,SOCIAL SERVICES DAY CARE,People's Services,Home Care Services,A56019
London Borough of Sutton,14/04/2024,50489866,62.02,Absolute Care Services Ltd,SOCIAL SERVICES DAY CARE,People's Services,Home Care Services,A56019
London Borough of Sutton,14/04/2024,50489880,93.03,Absolute Care Services Ltd,SOCIAL SERVICES DAY CARE,People's Services,Home Care Services,A56019
London Borough of Sutton,14/04/2024,50489880,713.23,Absolute Care Services Ltd,SOCIAL SERVICES DAY CARE,People's Services,Home Care Services,A56019
London Borough of Sutton,03/04/2024,20073449,"146,779.87",Access UK Limited,TAXI AND COACH HIRE,People's Services,Contract Cleaning,A27010
London Borough of Sutton,10/04/2024,20074066,"99,178.66",Access UK Limited,TAXI AND COACH HIRE,People's Services,Childrens Social Care Transport,A32009
London Borough of Sutton,17/04/2024,20074491,766.72,Access UK Limited,TAXI AND COACH HIRE,People's Services,Childrens Social Care Transport,A32009
London Borough of Sutton,24/04/2024,20074973,"202,169.66",Access UK Limited,TAXI AND COACH HIRE,People's Services,Childrens Social Care Transport,A32009
London Borough of Sutton,28/03/2024,50483917,"3,195.81",Accomplish Group Ltd,SOCIAL SERVICES RESIDENTIAL,People's Services,Supported Living,A56088
London Borough of Sutton,28/03/2024,50483918,"4,741.50",Accomplish Group Ltd,SOCIAL SERVICES RESIDENTIAL,People's Services,Supported Living,A56088
London Borough of Sutton,28/03/2024,50483918,872.68,Accomplish Group Ltd,SOCIAL SERVICES RESIDENTIAL,People's Services,Supported Living,A56088
London Borough of Sutton,28/03/2024,50484614,"4,847.17",Accomplish Group Ltd,SOCIAL SERVICES RESIDENTIAL,People's Services,Supported Living,A56088
London Borough of Sutton,12/04/2024,50482343,"5,100.00",Achieve Together Limited,SOCIAL SERVICES RESIDENTIAL,People's Services,Residential Care - Ext Provider,A56114
London Borough of Sutton,12/04/2024,50482419,-537.00,Achieve Together Limited,SOCIAL SERVICES RESIDENTIAL,People's Services,Residential Care - Client Cont ( Net Paymt ),A56113
London Borough of Sutton,12/04/2024,50482419,"4,682.44",Achieve Together Limited,SOCIAL SERVICES RESIDENTIAL,People's Services,Residential Care - Ext Provider,A56114
London Borough of Sutton,12/04/2024,50482456,"8,103.64",Achieve Together Limited,SOCIAL SERVICES RESIDENTIAL,People's Services,Residential Care - Ext Provider,A56114
London Borough of Sutton,12/04/2024,50482456,-467.20,Achieve Together Limited,SOCIAL SERVICES RESIDENTIAL,People's Services,Residential Care - Client Cont ( Net Paymt ),A56113
London Borough of Sutton,12/04/2024,50482519,"7,303.88",Achieve Together Limited,SOCIAL SERVICES RESIDENTIAL,People's Services,Residential Care - Ext Provider,A56114
London Borough of Sutton,12/04/2024,50482849,-549.00,Achieve Together Limited,SOCIAL SERVICES RESIDENTIAL,People's Services,Residential Care - Client Cont ( Net Paymt ),A56113
London Borough of Sutton,12/04/2024,50482849,390.00,Achieve Together Limited,SOCIAL SERVICES RESIDENTIAL,People's Services,One to One Care,A56108
London Borough of Sutton,12/04/2024,50482849,"4,375.48",Achieve Together Limited,SOCIAL SERVICES RESIDENTIAL,People's Services,Residential Care - Ext Provider,A56114
London Borough of Sutton,12/04/2024,50482909,"5,810.56",Achieve Together Limited,SOCIAL SERVICES RESIDENTIAL,People's Services,Residential Care - Ext Provider,A56114
London Borough of Sutton,31/03/2024,50479562,"3,277.50",Achieve Together Limited,SOCIAL SERVICES RESIDENTIAL,People's Services,Home Care Services,A56019
London Borough of Sutton,12/04/2024,50482404,"11,047.88",Achieve Together Limited,SOCIAL SERVICES RESIDENTIAL,People's Services,Residential Care - Ext Provider,A56114
London Borough of Sutton,12/04/2024,50482425,"8,716.00",Achieve Together Limited,SOCIAL SERVICES RESIDENTIAL,People's Services,Residential Care - Ext Provider,A56114
London Borough of Sutton,12/04/2024,50482439,"4,653.76",Achieve Together Limited,SOCIAL SERVICES RESIDENTIAL,People's Services,Residential Care - Ext Provider,A56114
London Borough of Sutton,12/04/2024,50482493,-483.20,Achieve Together Limited,SOCIAL SERVICES RESIDENTIAL,People's Services,Residential Care - Client Cont ( Net Paymt ),A56113
London Borough of Sutton,12/04/2024,50482493,"5,620.60",Achieve Together Limited,SOCIAL SERVICES RESIDENTIAL,People's Services,Residential Care - Ext Provider,A56114
London Borough of Sutton,23/04/2024,50485093,"4,721.49",Achieve Together Limited,SOCIAL SERVICES RESIDENTIAL,People's Services,Supported Living,A56088
London Borough of Sutton,23/04/2024,50485100,434.96,Achieve Together Limited,SOCIAL SERVICES RESIDENTIAL,People's Services,Supported Living,A56088
London Borough of Sutton,23/04/2024,50485100,962.74,Achieve Together Limited,SOCIAL SERVICES RESIDENTIAL,People's Services,Supported Living,A56088
London Borough of Sutton,23/04/2024,50485100,"3,208.50",Achieve Together Limited,SOCIAL SERVICES RESIDENTIAL,People's Services,Supported Living,A56088
London Borough of Sutton,23/04/2024,50485100,"2,227.63",Achieve Together Limited,SOCIAL SERVICES RESIDENTIAL,People's Services,Supported Living,A56088
London Borough of Sutton,23/04/2024,50485106,"1,052.40",Achieve Together Limited,SOCIAL SERVICES RESIDENTIAL,People's Services,Supported Living,A56088
London Borough of Sutton,23/04/2024,50485106,"1,052.40",Achieve Together Limited,SOCIAL SERVICES RESIDENTIAL,People's Services,Supported Living,A56088
London Borough of Sutton,23/04/2024,50485106,878.83,Achieve Together Limited,SOCIAL SERVICES RESIDENTIAL,People's Services,Supported Living,A56088
London Borough of Sutton,23/04/2024,50485107,"-63,342.20",Achieve Together Limited,SOCIAL SERVICES RESIDENTIAL,People's Services,Supported Living,A56088
London Borough of Sutton,23/04/2024,50485108,"34,008.01",Achieve Together Limited,SOCIAL SERVICES RESIDENTIAL,People's Services,Supported Living,A56088
London Borough of Sutton,23/04/2024,50485108,"66,072.20",Achieve Together Limited,SOCIAL SERVICES RESIDENTIAL,People's Services,Supported Living,A56088
London Borough of Sutton,23/04/2024,50485108,"10,534.42",Achieve Together Limited,SOCIAL SERVICES RESIDENTIAL,People's Services,Supported Living,A56088
London Borough of Sutton,23/04/2024,50485174,"2,367.90",Achieve Together Limited,SOCIAL SERVICES RESIDENTIAL,People's Services,Supported Living,A56088
London Borough of Sutton,23/04/2024,50485174,614.14,Achieve Together Limited,SOCIAL SERVICES RESIDENTIAL,People's Services,Supported Living,A56088
London Borough of Sutton,23/04/2024,50485174,634.84,Achieve Together Limited,SOCIAL SERVICES RESIDENTIAL,People's Services,Supported Living,A56088
London Borough of Sutton,23/04/2024,50485197,"2,915.14",Achieve Together Limited,SOCIAL SERVICES RESIDENTIAL,People's Services,Supported Living,A56088
London Borough of Sutton,23/04/2024,50485197,"3,081.60",Achieve Together Limited,SOCIAL SERVICES RESIDENTIAL,People's Services,Supported Living,A56088
London Borough of Sutton,02/04/2024,50480227,"33,671.89",Achieving Above Average Ltd,CHILDREN'S SERVICES - RESIDENTIAL,People's Services,Residential Care-Children,A56115
London Borough of Sutton,27/03/2024,50481656,780.00,Achieving For Children Limited,SOCIAL SERVICES - OTHER,People's Services,Special Educational Needs,A51015
London Borough of Sutton,12/04/2024,50482389,"4,231.40",CARELODGE GROUP LTD,SOCIAL SERVICES RESIDENTIAL,People's Services,Residential Care - Ext Provider,A56114
London Borough of Sutton,12/04/2024,50482421,"5,844.00",Acorn Residential Home,SOCIAL SERVICES RESIDENTIAL,People's Services,Residential Care - Ext Provider,A56114
London Borough of Sutton,12/04/2024,50482341,"8,918.80",Active Prospects,SOCIAL SERVICES DAY CARE,People's Services,Residential Care - Ext Provider,A56114
London Borough of Sutton,12/04/2024,50482341,-702.40,Active Prospects,SOCIAL SERVICES DAY CARE,People's Services,Residential Care - Client Cont ( Net Paymt ),A56113
London Borough of Sutton,12/04/2024,50482388,"6,441.84",Active Prospects,SOCIAL SERVICES DAY CARE,People's Services,Residential Care - Ext Provider,A56114
London Borough of Sutton,15/03/2024,20074122,"12,840.00",Adapted4 Limited,GRANTS & EX GRATIA PAYMENTS,Environment Housing and Neighbourhoods,Grants Given For Capital Purposes,C20004
London Borough of Sutton,12/04/2024,50482405,"1,458.00",Admiral Healthcare Ltd.,SOCIAL SERVICES RESIDENTIAL,People's Services,Residential Care - Ext Provider,A56114
London Borough of Sutton,31/03/2024,20074534,"1,785.58",Advanced Demand Side Management Ltd,CONFERENCES,Resources,Water Services,A24005
London Borough of Sutton,18/03/2024,20072313,739.84,Advocacy For All,LEGAL & PROFESSIONAL SERVICES,People's Services,Provider Contract Payments,A44290
London Borough of Sutton,18/03/2024,20072320,619.63,Advocacy For All,LEGAL & PROFESSIONAL SERVICES,People's Services,Provider Contract Payments,A44290
London Borough of Sutton,19/03/2024,20072397,"1,826.50",Advocacy For All,LEGAL & PROFESSIONAL SERVICES,People's Services,Provider Contract Payments,A44290
London Borough of Sutton,19/03/2024,20072401,591.76,Advocacy For All,LEGAL & PROFESSIONAL SERVICES,People's Services,Provider Contract Payments,A44290
London Borough of Sutton,19/03/2024,20072417,868.88,Advocacy For All,LEGAL & PROFESSIONAL SERVICES,People's Services,Provider Contract Payments,A44290
London Borough of Sutton,20/03/2024,20072506,699.74,Advocacy For All,LEGAL & PROFESSIONAL SERVICES,People's Services,Provider Contract Payments,A44290
London Borough of Sutton,14/03/2024,50480165,"3,715.35",Affinity Fostering Services Ltd,CHILDREN'S SERVICES - FOSTERING & ADOPTION SERVICES,People's Services,Foster Parents Support,A44110
London Borough of Sutton,14/03/2024,50480166,"3,527.49",Affinity Fostering Services Ltd,CHILDREN'S SERVICES - FOSTERING & ADOPTION SERVICES,People's Services,Foster Parents Support,A44110
London Borough of Sutton,14/03/2024,50480215,"3,317.31",Affinity Fostering Services Ltd,CHILDREN'S SERVICES - FOSTERING & ADOPTION SERVICES,People's Services,Foster Parents Support,A44110
London Borough of Sutton,14/03/2024,50480228,"3,494.01",Affinity Fostering Services Ltd,CHILDREN'S SERVICES - FOSTERING & ADOPTION SERVICES,People's Services,Foster Parents Support,A44110
London Borough of Sutton,23/04/2024,50485189,"1,958.91",Agincare Enable Limited,SOCIAL SERVICES RESIDENTIAL,People's Services,One to One Care,A56108
London Borough of Sutton,23/04/2024,50485189,"1,958.91",Agincare Enable Limited,SOCIAL SERVICES RESIDENTIAL,People's Services,Supported Living,A56088
London Borough of Sutton,23/04/2024,50485189,441.00,Agincare Enable Limited,SOCIAL SERVICES RESIDENTIAL,People's Services,Supported Living,A56088
London Borough of Sutton,12/04/2024,50482407,"7,793.40",Leighton House Ltd,SOCIAL SERVICES RESIDENTIAL,People's Services,Residential Care - Ext Provider,A56114
London Borough of Sutton,12/04/2024,50482411,"6,600.00",Leighton House Ltd,SOCIAL SERVICES RESIDENTIAL,People's Services,Nursing Care Short Term,A56026
London Borough of Sutton,12/04/2024,50482411,"-3,300.00",Leighton House Ltd,SOCIAL SERVICES RESIDENTIAL,People's Services,Nursing Care - 3rd party top up payment,A56023
London Borough of Sutton,03/04/2024,20073439,"4,959.20",Albany Housing YP Ltd,CARE LEAVERS,People's Services,Approved Lodgings,A61000
London Borough of Sutton,31/03/2024,20073714,"1,122.10",Albus Environmental Ltd,FM SERVICES,Resources,Clinical Waste,A56054
London Borough of Sutton,22/02/2024,20073653,"3,333.40",Alderton Associates Ltd,TEMP STAFF & CONSULTANCY,HRA,Payments to Contractors,C14000
London Borough of Sutton,09/04/2024,20073874,"15,283.74",Alderton Associates Ltd,TEMP STAFF & CONSULTANCY,HRA,Payments to Contractors,C14000
London Borough of Sutton,16/04/2024,20074451,"5,900.00",Alderton Associates Ltd,TEMP STAFF & CONSULTANCY,HRA,Payments to Contractors,C14000
London Borough of Sutton,16/04/2024,20074452,"1,740.00",Alderton Associates Ltd,TEMP STAFF & CONSULTANCY,HRA,External Fees and Consultants,C20000
London Borough of Sutton,17/04/2024,20074481,700.00,Alderton Associates Ltd,TEMP STAFF & CONSULTANCY,HRA,Payments to Contractors,C14000
London Borough of Sutton,19/04/2024,20074636,"4,118.00",Alderton Associates Ltd,TEMP STAFF & CONSULTANCY,Environment Housing and Neighbourhoods,Miscellaneous Expenses,A49000
London Borough of Sutton,18/03/2024,20074999,"1,096.00",REDACTED - PERSONAL DATA,GRANTS & EX GRATIA PAYMENTS,Environment Housing and Neighbourhoods,Temporary Protection - Homeless Persons,A62028
London Borough of Sutton,05/04/2024,50479640,500.00,REDACTED - PERSONAL DATA,GRANTS & EX GRATIA PAYMENTS,Environment Housing and Neighbourhoods,"Grants, Contributions & Donations",A47005
London Borough of Sutton,09/04/2024,50479756,"176,705.69",All Saints Benhilton C Of E,GRANTS & EX GRATIA PAYMENTS,People's Services,Payments to Schools,A51013
London Borough of Sutton,09/04/2024,50479883,"1,687.50",All Saints Benhilton C Of E,GRANTS & EX GRATIA PAYMENTS,People's Services,Payment - Nursery Funding,A51056
London Borough of Sutton,09/04/2024,50480991,"14,859.00",All Saints Benhilton C Of E,GRANTS & EX GRATIA PAYMENTS,People's Services,Payment - Nursery Funding,A51056
London Borough of Sutton,29/04/2024,50489955,"18,552.00",All Saints Benhilton C Of E,GRANTS & EX GRATIA PAYMENTS,People's Services,Payment - Deprivation Pupil Premium,A51030
London Borough of Sutton,29/04/2024,50489976,"2,530.00",All Saints Benhilton C Of E,GRANTS & EX GRATIA PAYMENTS,People's Services,Payment - Post-LAC Pupil Premium,A51032
London Borough of Sutton,09/04/2024,50479884,"1,503.00",All Saints Carshalton Primary School,GRANTS & EX GRATIA PAYMENTS,People's Services,Payment - Nursery Funding,A51056
London Borough of Sutton,09/04/2024,50480992,"13,144.50",All Saints Carshalton Primary School,GRANTS & EX GRATIA PAYMENTS,People's Services,Payment - Nursery Funding,A51056
London Borough of Sutton,31/03/2024,50480176,"9,026.18",All4U Fostering Ltd,CHILDREN'S SERVICES - FOSTERING & ADOPTION SERVICES,People's Services,Foster Parents Support,A44110
London Borough of Sutton,31/03/2024,50480223,"5,761.35",All4U Fostering Ltd,CHILDREN'S SERVICES - FOSTERING & ADOPTION SERVICES,People's Services,Foster Parents Support,A44110
London Borough of Sutton,30/01/2024,50483761,"5,769.00",ALLEN EDWARDS PRIMARY SCHOOL,CHILDREN'S SERVICES - SEN SERVICES,People's Services,Top-up Funding,A51016
London Borough of Sutton,12/04/2024,50482466,"4,806.52",Allied Care (Mhs) Ltd,SOCIAL SERVICES - OTHER,People's Services,Residential Care - Ext Provider,A56114
London Borough of Sutton,26/02/2024,20074105,754.96,Allied Publicity Services (Manchester) Ltd,REPROGRAPHICS & PHOTOGRAPHY,Health and Wellbeing,Mobility Scheme for the Disabled,A61015
London Borough of Sutton,25/04/2024,20075086,"1,385.00",Alljos Services Ltd,PREMISES - CLEANING & LAUNDRY,Environment Housing and Neighbourhoods,Grants Given For Capital Purposes,C20004
London Borough of Sutton,26/04/2024,20075107,"1,343.40",Allstar Business Solutions,FUEL AND VEHICLE SUPPLIES,Environment Housing and Neighbourhoods,Vehicles -  Fuel,A30015
London Borough of Sutton,12/04/2024,50482562,"6,609.52",Allswell Care Services Ltd,SOCIAL SERVICES RESIDENTIAL,People's Services,Residential Care - Ext Provider,A56114
London Borough of Sutton,12/04/2024,50482597,"5,397.60",Allswell Care Services Ltd,SOCIAL SERVICES RESIDENTIAL,People's Services,Residential Care - Ext Provider,A56114
London Borough of Sutton,12/04/2024,50482796,"5,397.60",Allswell Care Services Ltd,SOCIAL SERVICES RESIDENTIAL,People's Services,Residential Care - Ext Provider,A56114
London Borough of Sutton,24/03/2024,50480454,658.40,Alpenbest Limited,SOCIAL SERVICES DAY CARE,People's Services,Home Care Services,A56019
London Borough of Sutton,24/03/2024,50480467,752.54,Alpenbest Limited,SOCIAL SERVICES DAY CARE,People's Services,Home Care Services,A56019
London Borough of Sutton,24/03/2024,50480467,146.30,Alpenbest Limited,SOCIAL SERVICES DAY CARE,People's Services,Home Care Services,A56019
London Borough of Sutton,24/03/2024,50480489,583.46,Alpenbest Limited,SOCIAL SERVICES DAY CARE,People's Services,Home Care Services,A56019
London Borough of Sutton,24/03/2024,50480501,656.66,Alpenbest Limited,SOCIAL SERVICES DAY CARE,People's Services,Home Care Services,A56019
London Borough of Sutton,24/03/2024,50480514,"1,170.87",Alpenbest Limited,SOCIAL SERVICES DAY CARE,People's Services,Home Care Services,A56019
London Borough of Sutton,24/03/2024,50480514,402.43,Alpenbest Limited,SOCIAL SERVICES DAY CARE,People's Services,Home Care Services,A56019
London Borough of Sutton,31/03/2024,50483016,654.92,Alpenbest Limited,SOCIAL SERVICES DAY CARE,People's Services,Home Care Services,A56019
London Borough of Sutton,31/03/2024,50483029,567.78,Alpenbest Limited,SOCIAL SERVICES DAY CARE,People's Services,Home Care Services,A56019
London Borough of Sutton,31/03/2024,50483037,651.44,Alpenbest Limited,SOCIAL SERVICES DAY CARE,People's Services,Home Care Services,A56019
London Borough of Sutton,31/03/2024,50483047,752.54,Alpenbest Limited,SOCIAL SERVICES DAY CARE,People's Services,Home Care Services,A56019
London Borough of Sutton,31/03/2024,50483047,146.30,Alpenbest Limited,SOCIAL SERVICES DAY CARE,People's Services,Home Care Services,A56019
London Borough of Sutton,07/04/2024,50483986,689.06,Alpenbest Limited,SOCIAL SERVICES DAY CARE,People's Services,Home Care Services,A56019
London Borough of Sutton,07/04/2024,50483998,689.06,Alpenbest Limited,SOCIAL SERVICES DAY CARE,People's Services,Home Care Services,A56019
London Borough of Sutton,07/04/2024,50484026,610.82,Alpenbest Limited,SOCIAL SERVICES DAY CARE,People's Services,Home Care Services,A56019
London Borough of Sutton,07/04/2024,50484034,787.68,Alpenbest Limited,SOCIAL SERVICES DAY CARE,People's Services,Home Care Services,A56019
London Borough of Sutton,07/04/2024,50484034,153.16,Alpenbest Limited,SOCIAL SERVICES DAY CARE,People's Services,Home Care Services,A56019
London Borough of Sutton,07/04/2024,50484040,689.06,Alpenbest Limited,SOCIAL SERVICES DAY CARE,People's Services,Home Care Services,A56019
London Borough of Sutton,07/04/2024,50484079,525.12,Alpenbest Limited,SOCIAL SERVICES DAY CARE,People's Services,Home Care Services,A56019
London Borough of Sutton,14/04/2024,50486638,689.06,Alpenbest Limited,SOCIAL SERVICES DAY CARE,People's Services,Home Care Services,A56019
London Borough of Sutton,14/04/2024,50486671,669.02,Alpenbest Limited,SOCIAL SERVICES DAY CARE,People's Services,Home Care Services,A56019
London Borough of Sutton,14/04/2024,50486687,610.82,Alpenbest Limited,SOCIAL SERVICES DAY CARE,People's Services,Home Care Services,A56019
London Borough of Sutton,14/04/2024,50486698,681.77,Alpenbest Limited,SOCIAL SERVICES DAY CARE,People's Services,Home Care Services,A56019
London Borough of Sutton,14/04/2024,50486722,787.68,Alpenbest Limited,SOCIAL SERVICES DAY CARE,People's Services,Home Care Services,A56019
London Borough of Sutton,14/04/2024,50486722,153.16,Alpenbest Limited,SOCIAL SERVICES DAY CARE,People's Services,Home Care Services,A56019
London Borough of Sutton,04/04/2024,50489736,"1,281.07",Alpenbest Limited,SOCIAL SERVICES DAY CARE,People's Services,Home Care Services,A56019
London Borough of Sutton,05/04/2024,50479636,500.00,REDACTED - PERSONAL DATA,GRANTS & EX GRATIA PAYMENTS,Environment Housing and Neighbourhoods,"Grants, Contributions & Donations",A47005
London Borough of Sutton,09/04/2024,50481072,957.60,REDACTED - PERSONAL DATA,GRANTS & EX GRATIA PAYMENTS,People's Services,Payment - Nursery Funding,A51056
London Borough of Sutton,30/04/2024,50488745,957.60,REDACTED - PERSONAL DATA,GRANTS & EX GRATIA PAYMENTS,People's Services,Payment - Nursery Funding,A51056
London Borough of Sutton,16/03/2024,50479464,"21,439.32",AMBITIOUS ABOUT AUTISM,CHILDREN'S SERVICES - SEN SERVICES,People's Services,Independent School Fees,A56002
London Borough of Sutton,16/03/2024,50479465,"21,439.32",AMBITIOUS ABOUT AUTISM,CHILDREN'S SERVICES - SEN SERVICES,People's Services,Independent School Fees,A56002
London Borough of Sutton,08/04/2024,50481566,"1,601.70",REDACTED - PERSONAL DATA,CHILDREN'S SERVICES - SEN SERVICES,People's Services,Miscellaneous Expenses,A49000
London Borough of Sutton,09/04/2024,50481201,829.80,Suffolk Child Agency,CHILDMINDERS START UP GRANT,People's Services,Payment - Nursery Funding,A51056
London Borough of Sutton,30/04/2024,50488875,829.80,Suffolk Child Agency,CHILDMINDERS START UP GRANT,People's Services,Payment - Nursery Funding,A51056
London Borough of Sutton,05/04/2024,50479620,500.00,REDACTED - PERSONAL DATA,GRANTS & EX GRATIA PAYMENTS,Environment Housing and Neighbourhoods,"Grants, Contributions & Donations",A47005
London Borough of Sutton,03/04/2024,20073467,950.00,REDACTED - PERSONAL DATA,GRANTS & EX GRATIA PAYMENTS,Environment Housing and Neighbourhoods,Temporary Protection - Homeless Persons,A62028
London Borough of Sutton,25/04/2024,20075040,"1,196.00",REDACTED - PERSONAL DATA,GRANTS & EX GRATIA PAYMENTS,Environment Housing and Neighbourhoods,Temporary Protection - Homeless Persons,A62028
London Borough of Sutton,23/03/2024,20074486,"1,096.00",REDACTED - PERSONAL DATA,PLS LANDLORDS,Environment Housing and Neighbourhoods,Temporary Protection - Homeless Persons,A62028
London Borough of Sutton,09/04/2024,50481120,854.55,REDACTED - PERSONAL DATA,GRANTS & EX GRATIA PAYMENTS,People's Services,Payment - Nursery Funding,A51056
London Borough of Sutton,30/04/2024,50488793,854.55,REDACTED - PERSONAL DATA,GRANTS & EX GRATIA PAYMENTS,People's Services,Payment - Nursery Funding,A51056
London Borough of Sutton,02/04/2024,50482921,642.80,Lexwin Trading,SOCIAL SERVICES DAY CARE,People's Services,Home Care Services,A56019
London Borough of Sutton,02/04/2024,50482922,877.80,Lexwin Trading,SOCIAL SERVICES DAY CARE,People's Services,Home Care Services,A56019
London Borough of Sutton,02/04/2024,50482925,"2,341.92",Lexwin Trading,SOCIAL SERVICES DAY CARE,People's Services,Home Care Services,A56019
London Borough of Sutton,02/04/2024,50482925,"1,179.73",Lexwin Trading,SOCIAL SERVICES DAY CARE,People's Services,Home Care Services,A56019
London Borough of Sutton,02/04/2024,50482943,"1,315.10",Lexwin Trading,SOCIAL SERVICES DAY CARE,People's Services,Home Care Services,A56019
London Borough of Sutton,02/04/2024,50482952,"1,316.84",Lexwin Trading,SOCIAL SERVICES DAY CARE,People's Services,Home Care Services,A56019
London Borough of Sutton,02/04/2024,50482956,"2,633.68",Lexwin Trading,SOCIAL SERVICES DAY CARE,People's Services,Home Care Services,A56019
London Borough of Sutton,02/04/2024,50482979,668.80,Lexwin Trading,SOCIAL SERVICES DAY CARE,People's Services,Home Care Services,A56019
London Borough of Sutton,02/04/2024,50482980,"1,024.24",Lexwin Trading,SOCIAL SERVICES DAY CARE,People's Services,Home Care Services,A56019
London Borough of Sutton,02/04/2024,50482981,815.10,Lexwin Trading,SOCIAL SERVICES DAY CARE,People's Services,Home Care Services,A56019
London Borough of Sutton,02/04/2024,50482982,"1,461.26",Lexwin Trading,SOCIAL SERVICES DAY CARE,People's Services,Home Care Services,A56019
London Borough of Sutton,02/04/2024,50482983,888.32,Lexwin Trading,SOCIAL SERVICES DAY CARE,People's Services,Home Care Services,A56019
London Borough of Sutton,02/04/2024,50482984,585.20,Lexwin Trading,SOCIAL SERVICES DAY CARE,People's Services,Home Care Services,A56019
London Borough of Sutton,18/04/2024,50488619,"2,633.68",Lexwin Trading,SOCIAL SERVICES DAY CARE,People's Services,Home Care Services,A56019
London Borough of Sutton,18/04/2024,50488637,877.80,Lexwin Trading,SOCIAL SERVICES DAY CARE,People's Services,Home Care Services,A56019
London Borough of Sutton,18/04/2024,50488638,564.30,Lexwin Trading,SOCIAL SERVICES DAY CARE,People's Services,Home Care Services,A56019
London Borough of Sutton,18/04/2024,50488639,"1,034.69",Lexwin Trading,SOCIAL SERVICES DAY CARE,People's Services,Home Care Services,A56019
London Borough of Sutton,18/04/2024,50488642,"2,313.08",Lexwin Trading,SOCIAL SERVICES DAY CARE,People's Services,Home Care Services,A56019
London Borough of Sutton,18/04/2024,50488642,"1,198.12",Lexwin Trading,SOCIAL SERVICES DAY CARE,People's Services,Home Care Services,A56019
London Borough of Sutton,18/04/2024,50488643,"1,024.24",Lexwin Trading,SOCIAL SERVICES DAY CARE,People's Services,Home Care Services,A56019
London Borough of Sutton,18/04/2024,50488645,"1,316.84",Lexwin Trading,SOCIAL SERVICES DAY CARE,People's Services,Home Care Services,A56019
London Borough of Sutton,18/04/2024,50488646,"1,463.00",Lexwin Trading,SOCIAL SERVICES DAY CARE,People's Services,Home Care Services,A56019
London Borough of Sutton,18/04/2024,50488647,668.80,Lexwin Trading,SOCIAL SERVICES DAY CARE,People's Services,Home Care Services,A56019
London Borough of Sutton,18/04/2024,50488648,"1,776.64",Lexwin Trading,SOCIAL SERVICES DAY CARE,People's Services,Home Care Services,A56019
London Borough of Sutton,28/03/2024,20073115,"2,100.00",REDACTED - PERSONAL DATA,SUNDRY SUPPLIER - EDUCATION,People's Services,LAC - Education,A44280
London Borough of Sutton,18/04/2024,20074633,"2,100.00",REDACTED - PERSONAL DATA,SUNDRY SUPPLIER - EDUCATION,People's Services,LAC - Education,A44280
London Borough of Sutton,01/04/2024,50480201,"3,556.98",Ansacare Fostering Agency Ltd,CHILDREN'S SERVICES - FOSTERING & ADOPTION SERVICES,People's Services,Foster Parents Support,A44110
London Borough of Sutton,05/04/2024,50479627,500.00,REDACTED - PERSONAL DATA,GRANTS & EX GRATIA PAYMENTS,Environment Housing and Neighbourhoods,"Grants, Contributions & Donations",A47005
London Borough of Sutton,28/03/2024,20074166,"15,000.00",AnyDATA Solutions Ltd,BUSINESS & COMPUTER SYSTEMS,Resources,IT Software Purchase,A45040
London Borough of Sutton,29/03/2024,20075117,"1,117,712.83",Aon UK Limited,FINANCIAL / INSURANCE INSTNS,Resources,General Insurance (Excl Premises & Transport),A44260
London Borough of Sutton,29/03/2024,20075118,"44,798.88",Aon UK Limited,FINANCIAL / INSURANCE INSTNS,Resources,General Insurance (Excl Premises & Transport),A44260
London Borough of Sutton,04/04/2024,20075119,"2,217.60",Aon UK Limited,FINANCIAL / INSURANCE INSTNS,Resources,General Insurance (Excl Premises & Transport),A44260
London Borough of Sutton,29/03/2024,20075120,"5,989.22",Aon UK Limited,FINANCIAL / INSURANCE INSTNS,Resources,General Insurance (Excl Premises & Transport),A44260
London Borough of Sutton,31/03/2024,20074035,"8,699.48",Apetito Ltd,FOOD & DRINK,Health and Wellbeing,Catering Contract - Frozen Meals,A41001
London Borough of Sutton,31/03/2024,20073328,"9,140.00",Apex Housing Solutions Ltd,SOCIAL SERVICES DAY CARE,Environment Housing and Neighbourhoods,Bed & Breakfast,A56000
London Borough of Sutton,02/04/2024,20073355,"7,192.00",APL Properties,ACCOMMODATION BED & BREAKFAST,Environment Housing and Neighbourhoods,Bed & Breakfast,A56000
London Borough of Sutton,12/04/2024,50482496,"4,096.12",Aria Healthcare Group Ltd,SOCIAL SERVICES RESIDENTIAL,People's Services,Nursing Care - Ext Provider,A56025
London Borough of Sutton,12/04/2024,50482496,-878.84,Aria Healthcare Group Ltd,SOCIAL SERVICES RESIDENTIAL,People's Services,Nursing Care - 3rd party top up payment,A56023
London Borough of Sutton,05/03/2024,20074181,"3,688.59",Arnold & Self,PREMISES - REMOVALS,Environment Housing and Neighbourhoods,Removal Services,A44075
London Borough of Sutton,03/04/2024,20074329,"3,956.39",Arnold & Self,PREMISES - REMOVALS,Environment Housing and Neighbourhoods,Removal Services,A44075
London Borough of Sutton,04/02/2024,20073357,"1,500.16",Arthur Rai Medical Services Ltd,TEMP STAFF & CONSULTANCY,Health and Wellbeing,Agency Staff - Other,A10505
London Borough of Sutton,06/03/2024,20073367,"1,547.04",Arthur Rai Medical Services Ltd,TEMP STAFF & CONSULTANCY,Health and Wellbeing,Agency Staff - Other,A10505
London Borough of Sutton,20/03/2024,20073371,"1,523.60",Arthur Rai Medical Services Ltd,TEMP STAFF & CONSULTANCY,Health and Wellbeing,Agency Staff - Other,A10505
London Borough of Sutton,26/04/2024,20073859,"1,523.60",Arthur Rai Medical Services Ltd,TEMP STAFF & CONSULTANCY,Health and Wellbeing,Agency Staff - Other,A10505
London Borough of Sutton,03/04/2024,20074609,"1,195.44",Arthur Rai Medical Services Ltd,TEMP STAFF & CONSULTANCY,Health and Wellbeing,Agency Staff - Other,A10505
London Borough of Sutton,10/04/2024,20074610,"1,218.88",Arthur Rai Medical Services Ltd,TEMP STAFF & CONSULTANCY,Health and Wellbeing,Agency Staff - Other,A10505
London Borough of Sutton,04/04/2024,20074206,"5,429.00",Ascendit Lifts Ltd,BUILDING MNTCE - SERVICES,Environment Housing and Neighbourhoods,Grants Given For Capital Purposes,C20004
London Borough of Sutton,09/04/2024,20074769,"5,629.00",Ascendit Lifts Ltd,BUILDING MNTCE - SERVICES,Environment Housing and Neighbourhoods,Grants Given For Capital Purposes,C20004
London Borough of Sutton,14/04/2024,50483728,"1,630.28",Ashlong House Ltd,SOCIAL SERVICES RESIDENTIAL,People's Services,Supported Living,A56088
London Borough of Sutton,12/04/2024,50482392,"3,821.24",Ashton Care Homes Ltd.,SOCIAL SERVICES RESIDENTIAL,People's Services,Nursing Care - Ext Provider,A56025
London Borough of Sutton,12/04/2024,50482392,-836.76,Ashton Care Homes Ltd.,SOCIAL SERVICES RESIDENTIAL,People's Services,Nursing Care - 3rd party top up payment,A56023
London Borough of Sutton,12/04/2024,50482442,"3,980.00",Ashurst Lodge Healthcare Ltd,CHILDREN'S SERVICES - RESIDENTIAL,People's Services,Residential Care - Ext Provider,A56114
London Borough of Sutton,12/04/2024,50482442,"-1,990.00",Ashurst Lodge Healthcare Ltd,CHILDREN'S SERVICES - RESIDENTIAL,People's Services,Nursing Care - 3rd party top up payment,A56023
London Borough of Sutton,12/04/2024,50482465,"6,478.84",Aspen Place,SOCIAL SERVICES DAY CARE,People's Services,Nursing Care - Ext Provider,A56025
London Borough of Sutton,12/04/2024,50482465,-878.84,Aspen Place,SOCIAL SERVICES DAY CARE,People's Services,Nursing Care - 3rd party top up payment,A56023
London Borough of Sutton,12/04/2024,50482465,"25,596.00",Aspen Place,SOCIAL SERVICES DAY CARE,People's Services,One to One Care,A56108
London Borough of Sutton,12/04/2024,50482491,"5,699.00",Aspens Charities,SOCIAL SERVICES RESIDENTIAL,People's Services,Residential Care - Ext Provider,A56114
London Borough of Sutton,23/04/2024,50485114,633.60,Aspens Charities,SOCIAL SERVICES RESIDENTIAL,People's Services,Supported Living,A56088
London Borough of Sutton,23/04/2024,50485114,"8,202.09",Aspens Charities,SOCIAL SERVICES RESIDENTIAL,People's Services,Supported Living,A56088
London Borough of Sutton,23/04/2024,50485114,"1,547.10",Aspens Charities,SOCIAL SERVICES RESIDENTIAL,People's Services,Supported Living,A56088
London Borough of Sutton,31/03/2024,50479027,"2,480.00",Aspirations Care Ltd,SOCIAL SERVICES DAY CARE,People's Services,Home Care Services,A56019
London Borough of Sutton,31/03/2024,50479027,"9,074.94",Aspirations Care Ltd,SOCIAL SERVICES DAY CARE,People's Services,Home Care Services,A56019
London Borough of Sutton,26/03/2024,50479581,"1,014.15",Aspire Care Services Ltd,SOCIAL SERVICES DAY CARE,People's Services,Home Care Services,A56019
London Borough of Sutton,26/03/2024,50479587,"1,317.32",Aspire Care Services Ltd,SOCIAL SERVICES DAY CARE,People's Services,Home Care Services,A56019
London Borough of Sutton,26/03/2024,50479589,883.45,Aspire Care Services Ltd,SOCIAL SERVICES DAY CARE,People's Services,Home Care Services,A56019
London Borough of Sutton,26/03/2024,50479591,899.15,Aspire Care Services Ltd,SOCIAL SERVICES DAY CARE,People's Services,Home Care Services,A56019
London Borough of Sutton,26/03/2024,50482989,668.92,Aspire Care Services Ltd,SOCIAL SERVICES DAY CARE,People's Services,Home Care Services,A56019
London Borough of Sutton,26/03/2024,50482989,941.16,Aspire Care Services Ltd,SOCIAL SERVICES DAY CARE,People's Services,Home Care Services,A56019
London Borough of Sutton,27/03/2024,50483437,"2,049.20",Aspire Care Services Ltd,SOCIAL SERVICES DAY CARE,People's Services,Home Care Services,A56019
London Borough of Sutton,19/02/2024,50483475,878.24,Aspire Care Services Ltd,SOCIAL SERVICES DAY CARE,People's Services,Home Care Services,A56019
London Borough of Sutton,16/04/2024,50486543,"1,306.87",Aspire Care Services Ltd,SOCIAL SERVICES DAY CARE,People's Services,Home Care Services,A56019
London Borough of Sutton,16/04/2024,50486616,737.08,Aspire Care Services Ltd,SOCIAL SERVICES DAY CARE,People's Services,Home Care Services,A56019
London Borough of Sutton,16/04/2024,50486617,940.95,Aspire Care Services Ltd,SOCIAL SERVICES DAY CARE,People's Services,Home Care Services,A56019
London Borough of Sutton,16/04/2024,50486618,878.24,Aspire Care Services Ltd,SOCIAL SERVICES DAY CARE,People's Services,Home Care Services,A56019
London Borough of Sutton,16/04/2024,50486633,"2,038.74",Aspire Care Services Ltd,SOCIAL SERVICES DAY CARE,People's Services,Home Care Services,A56019
London Borough of Sutton,16/04/2024,50489716,899.12,Aspire Care Services Ltd,SOCIAL SERVICES DAY CARE,People's Services,Home Care Services,A56019
London Borough of Sutton,12/04/2024,50482448,"4,560.00",Aster Grove,SOCIAL SERVICES RESIDENTIAL,People's Services,Nursing Care - Ext Provider,A56025
London Borough of Sutton,12/04/2024,50482448,-878.84,Aster Grove,SOCIAL SERVICES RESIDENTIAL,People's Services,Nursing Care - 3rd party top up payment,A56023
London Borough of Sutton,08/04/2024,20073811,"22,208.40",Aston Pearl,ACCOMMODATION BED & BREAKFAST,Environment Housing and Neighbourhoods,Bed & Breakfast,A56000
London Borough of Sutton,09/04/2024,50481074,569.70,Aunty Connies Childcare,GRANTS & EX GRATIA PAYMENTS,People's Services,Payment - Nursery Funding,A51056
London Borough of Sutton,30/04/2024,50488747,569.70,Aunty Connies Childcare,GRANTS & EX GRATIA PAYMENTS,People's Services,Payment - Nursery Funding,A51056
London Borough of Sutton,12/04/2024,50482469,"7,040.00",Autism & Aspergers Care Services,SOCIAL SERVICES RESIDENTIAL,People's Services,Residential Care - Ext Provider,A56114
London Borough of Sutton,10/04/2024,50482326,"33,625.00",Avance Ltd,CHILDREN'S SERVICES - FOSTERING & ADOPTION SERVICES,People's Services,Residential Care-Children,A56115
London Borough of Sutton,25/03/2024,50479572,"1,317.96",Avant Healthcare Services Ltd.,SOCIAL SERVICES DAY CARE,People's Services,Home Care Services,A56019
London Borough of Sutton,25/03/2024,50479576,920.48,Avant Healthcare Services Ltd.,SOCIAL SERVICES DAY CARE,People's Services,Home Care Services,A56019
London Borough of Sutton,25/03/2024,50479577,"1,317.96",Avant Healthcare Services Ltd.,SOCIAL SERVICES DAY CARE,People's Services,Home Care Services,A56019
London Borough of Sutton,25/03/2024,50479578,753.12,Avant Healthcare Services Ltd.,SOCIAL SERVICES DAY CARE,People's Services,Home Care Services,A56019
London Borough of Sutton,25/03/2024,50479579,"1,317.96",Avant Healthcare Services Ltd.,SOCIAL SERVICES DAY CARE,People's Services,Home Care Services,A56019
London Borough of Sutton,25/03/2024,50479580,"1,610.56",Avant Healthcare Services Ltd.,SOCIAL SERVICES DAY CARE,People's Services,Home Care Services,A56019
London Borough of Sutton,25/03/2024,50479592,"1,025.08",Avant Healthcare Services Ltd.,SOCIAL SERVICES DAY CARE,People's Services,Home Care Services,A56019
London Borough of Sutton,25/03/2024,50479593,"1,171.24",Avant Healthcare Services Ltd.,SOCIAL SERVICES DAY CARE,People's Services,Home Care Services,A56019
London Borough of Sutton,29/01/2024,50489714,564.36,Avant Healthcare Services Ltd.,SOCIAL SERVICES DAY CARE,People's Services,Home Care Services,A56019
London Borough of Sutton,25/03/2024,50489718,"1,003.35",Avant Healthcare Services Ltd.,SOCIAL SERVICES DAY CARE,People's Services,Home Care Services,A56019
London Borough of Sutton,19/04/2024,50489719,"1,045.99",Avant Healthcare Services Ltd.,SOCIAL SERVICES DAY CARE,People's Services,Home Care Services,A56019
London Borough of Sutton,19/04/2024,50489730,774.04,Avant Healthcare Services Ltd.,SOCIAL SERVICES DAY CARE,People's Services,Home Care Services,A56019
London Borough of Sutton,19/04/2024,50489746,"1,302.27",Avant Healthcare Services Ltd.,SOCIAL SERVICES DAY CARE,People's Services,Home Care Services,A56019
London Borough of Sutton,19/04/2024,50489747,"1,270.89",Avant Healthcare Services Ltd.,SOCIAL SERVICES DAY CARE,People's Services,Home Care Services,A56019
London Borough of Sutton,19/04/2024,50489764,732.20,Avant Healthcare Services Ltd.,SOCIAL SERVICES DAY CARE,People's Services,Home Care Services,A56019
London Borough of Sutton,09/04/2024,50479785,"4,816.60",Avenue Primary Academy,SCHOOL FUNDS,People's Services,Pupil Growth,A51014
London Borough of Sutton,09/04/2024,50479810,"44,450.59",Avenue Primary Academy,SCHOOL FUNDS,Environment Housing and Neighbourhoods,Other payments to schools,A51023
London Borough of Sutton,09/04/2024,50479885,"1,636.20",Avenue Primary Academy,SCHOOL FUNDS,People's Services,Payment - Nursery Funding,A51056
London Borough of Sutton,09/04/2024,50480993,"15,444.00",Avenue Primary Academy,SCHOOL FUNDS,People's Services,Payment - Nursery Funding,A51056
London Borough of Sutton,23/04/2024,50486984,"1,680.00",Avenue Primary Academy,SCHOOL FUNDS,People's Services,Special Educational Needs,A51015
London Borough of Sutton,22/04/2024,50487009,"70,000.00",Avenue Primary Academy,SCHOOL FUNDS,People's Services,Place extra funding,A56124
London Borough of Sutton,23/04/2024,50485078,"13,680.00",Ayai Care Limited,SOCIAL SERVICES DAY CARE,People's Services,Supported Living,A56088
London Borough of Sutton,23/04/2024,50485096,"4,689.00",Ayai Care Limited,SOCIAL SERVICES DAY CARE,People's Services,Supported Living,A56088
London Borough of Sutton,23/04/2024,50485096,"2,343.00",Ayai Care Limited,SOCIAL SERVICES DAY CARE,People's Services,Supported Living,A56088
London Borough of Sutton,23/04/2024,50485096,404.40,Ayai Care Limited,SOCIAL SERVICES DAY CARE,People's Services,Supported Living,A56088
London Borough of Sutton,23/04/2024,50485166,"13,165.71",Ayai Care Limited,SOCIAL SERVICES DAY CARE,People's Services,Supported Living,A56088
London Borough of Sutton,01/03/2024,50480163,"29,627.14",Back on track children's services SE Ltd,CHILDREN'S SERVICE - OTHER,People's Services,Residential Care-Children,A56115
London Borough of Sutton,01/02/2024,50480164,"27,715.71",Back on track children's services SE Ltd,CHILDREN'S SERVICE - OTHER,People's Services,Residential Care-Children,A56115
London Borough of Sutton,22/04/2024,20074817,"3,350.00",Back on Track Housing Ltd,SOCIAL SERVICES - OTHER,People's Services,Approved Lodgings,A61000
London Borough of Sutton,22/04/2024,20074821,"3,753.40",Back on Track Housing Ltd,SOCIAL SERVICES - OTHER,People's Services,Approved Lodgings,A61000
London Borough of Sutton,23/03/2024,50480214,276.79,Back on Track Housing Ltd,SOCIAL SERVICES - OTHER,People's Services,Approved Lodgings,A61000
London Borough of Sutton,23/03/2024,50480214,"6,199.73",Back on Track Housing Ltd,SOCIAL SERVICES - OTHER,People's Services,Approved Lodgings,A61000
London Borough of Sutton,23/03/2024,50480233,142.86,Back on Track Housing Ltd,SOCIAL SERVICES - OTHER,People's Services,Approved Lodgings,A61000
London Borough of Sutton,23/03/2024,50480233,"2,971.22",Back on Track Housing Ltd,SOCIAL SERVICES - OTHER,People's Services,Approved Lodgings,A61000
London Borough of Sutton,09/04/2024,50479886,"1,589.40",Bandon Hill Primary School (Academy),SCHOOL FUNDS,People's Services,Payment - Nursery Funding,A51056
London Borough of Sutton,09/04/2024,50480994,"13,144.50",Bandon Hill Primary School (Academy),SCHOOL FUNDS,People's Services,Payment - Nursery Funding,A51056
London Borough of Sutton,02/04/2024,20073363,631.79,Banner Group Limited,BOOKS PUBLICATIONS STATIONERY,Resources,Stationery,A43015
London Borough of Sutton,23/04/2024,20074928,533.95,Banner Group Limited,BOOKS PUBLICATIONS STATIONERY,Resources,Stationery,A43015
London Borough of Sutton,31/03/2024,50480175,"4,774.00",Banya,SOCIAL SERVICES RESIDENTIAL,People's Services,Foster Parents Support,A44110
London Borough of Sutton,12/04/2024,50482381,"3,880.00",Barchester Healthcare Homes Ltd,SOCIAL SERVICES RESIDENTIAL,People's Services,Nursing Care - Ext Provider,A56025
London Borough of Sutton,03/04/2023,20073361,"1,200.00",Barnaby's Property Lettings Ltd,SUNDRY SUPPLIER - HOUSING,Environment Housing and Neighbourhoods,PSL Payments To Landlords,A22031
London Borough of Sutton,03/04/2023,20073361,"2,591.06",Barnaby's Property Lettings Ltd,SUNDRY SUPPLIER - HOUSING,Environment Housing and Neighbourhoods,Rent Deposit Scheme,B32179
London Borough of Sutton,02/04/2024,20073368,"1,440.00",BBFI CIC,CAR PARKS,Environment Housing and Neighbourhoods,Provider Contract Payments,A44290
London Borough of Sutton,10/04/2023,20073515,550.00,Be Inspired Community Service,SOCIAL SERVICES - OTHER,People's Services,Client Care/Assistance,A61011
London Borough of Sutton,14/08/2023,20073516,750.00,Be Inspired Community Service,SOCIAL SERVICES - OTHER,People's Services,Client Care/Assistance,A61011
London Borough of Sutton,05/06/2023,20073517,600.00,Be Inspired Community Service,SOCIAL SERVICES - OTHER,People's Services,Client Care/Assistance,A61011
London Borough of Sutton,03/07/2023,20073518,"1,250.00",Be Inspired Community Service,SOCIAL SERVICES - OTHER,People's Services,Client Care/Assistance,A61011
London Borough of Sutton,08/05/2023,20073519,"1,050.00",Be Inspired Community Service,SOCIAL SERVICES - OTHER,People's Services,Client Care/Assistance,A61011
London Borough of Sutton,04/09/2023,20073520,"1,000.00",Be Inspired Community Service,SOCIAL SERVICES - OTHER,People's Services,Client Care/Assistance,A61011
London Borough of Sutton,09/04/2024,50479750,"110,245.48",Beddington Infants School,SCHOOL FUNDS,People's Services,Payments to Schools,A51013
London Borough of Sutton,09/04/2024,50479888,"1,422.90",Beddington Infants School,SCHOOL FUNDS,People's Services,Payments to Schools,A51013
London Borough of Sutton,09/04/2024,50480996,"15,147.00",Beddington Infants School,SCHOOL FUNDS,People's Services,Payments to Schools,A51013
London Borough of Sutton,29/04/2024,50489950,"11,277.00",Beddington Infants School,SCHOOL FUNDS,People's Services,Payment - Deprivation Pupil Premium,A51030
London Borough of Sutton,29/04/2024,50489972,"1,897.50",Beddington Infants School,SCHOOL FUNDS,People's Services,Payment - Post-LAC Pupil Premium,A51032
London Borough of Sutton,09/04/2024,50479889,"1,387.80",Beddington Park Primary (Academy),SCHOOL FUNDS,People's Services,Payment - Nursery Funding,A51056
London Borough of Sutton,09/04/2024,50480997,"15,444.00",Beddington Park Primary (Academy),SCHOOL FUNDS,People's Services,Payment - Nursery Funding,A51056
London Borough of Sutton,23/04/2024,50485201,"6,407.14",Beechcroft Care Limited,SOCIAL SERVICES RESIDENTIAL,People's Services,Supported Living,A56088
London Borough of Sutton,23/04/2024,50485201,787.50,Beechcroft Care Limited,SOCIAL SERVICES RESIDENTIAL,People's Services,One to One Care,A56108
London Borough of Sutton,08/04/2024,20073716,"3,338.55",Beeches Tree Care,AGRICULTURAL & ESTATE SERVICES,Environment Housing and Neighbourhoods,Plants and Shrubs,A28004
London Borough of Sutton,08/04/2024,20073717,"2,914.39",Beeches Tree Care,AGRICULTURAL & ESTATE SERVICES,Environment Housing and Neighbourhoods,Maintenance of trees,A28003
London Borough of Sutton,08/04/2024,20073718,672.56,Beeches Tree Care,AGRICULTURAL & ESTATE SERVICES,Environment Housing and Neighbourhoods,Plants and Shrubs,A28004
London Borough of Sutton,08/04/2024,20073719,"1,248.98",Beeches Tree Care,AGRICULTURAL & ESTATE SERVICES,Environment Housing and Neighbourhoods,Plants and Shrubs,A28004
London Borough of Sutton,09/04/2024,20073820,600.46,Beeches Tree Care,AGRICULTURAL & ESTATE SERVICES,Environment Housing and Neighbourhoods,Landscaping,C20019
London Borough of Sutton,09/04/2024,20073821,"6,629.13",Beeches Tree Care,AGRICULTURAL & ESTATE SERVICES,Environment Housing and Neighbourhoods,Plants and Shrubs,A28004
London Borough of Sutton,09/04/2024,20073822,"7,397.65",Beeches Tree Care,AGRICULTURAL & ESTATE SERVICES,Environment Housing and Neighbourhoods,Landscaping,C20019
London Borough of Sutton,09/04/2024,20073823,"5,067.87",Beeches Tree Care,AGRICULTURAL & ESTATE SERVICES,Environment Housing and Neighbourhoods,Plants and Shrubs,A28004
London Borough of Sutton,18/03/2024,50479462,"20,012.66",Aurora Poppyfield School,CHILDREN'S SERVICES - SEN SERVICES,People's Services,Independent School Fees,A56002
London Borough of Sutton,18/03/2024,50479463,"20,012.66",Aurora Poppyfield School,CHILDREN'S SERVICES - SEN SERVICES,People's Services,Independent School Fees,A56002
London Borough of Sutton,05/04/2024,50479632,500.00,REDACTED - PERSONAL DATA,GRANTS & EX GRATIA PAYMENTS,Environment Housing and Neighbourhoods,"Grants, Contributions & Donations",A47005
London Borough of Sutton,09/04/2024,20074137,"1,240.00",Benhill & Belmont GP Centre,SOCIAL SERVICES - OTHER,Health and Wellbeing,Provider Contract Payments,A44290
London Borough of Sutton,09/04/2024,20074138,"1,720.00",Benhill & Belmont GP Centre,SOCIAL SERVICES - OTHER,Health and Wellbeing,Provider Contract Payments,A44290
London Borough of Sutton,09/04/2024,20074146,"1,200.00",Benhill & Belmont GP Centre,SOCIAL SERVICES - OTHER,Health and Wellbeing,Provider Contract Payments,A44290
London Borough of Sutton,09/04/2024,50481165,569.70,REDACTED - PERSONAL DATA,CHILDMINDERS START UP GRANT,People's Services,Payment - Nursery Funding,A51056
London Borough of Sutton,30/04/2024,50488838,569.70,REDACTED - PERSONAL DATA,CHILDMINDERS START UP GRANT,People's Services,Payment - Nursery Funding,A51056
London Borough of Sutton,12/04/2024,50482503,"-2,550.00",Bespoke Care Support Ltd,SOCIAL SERVICES - OTHER,People's Services,Nursing Care - 3rd party top up payment,A56023
London Borough of Sutton,23/04/2024,50485162,"5,464.29",Bespoke Care Support Ltd,SOCIAL SERVICES - OTHER,People's Services,Supported Living,A56088
London Borough of Sutton,23/04/2024,50485199,"3,857.14",Bespoke Care Support Ltd,SOCIAL SERVICES - OTHER,People's Services,Supported Living,A56088
London Borough of Sutton,17/03/2024,50479136,"1,024.49",Best at Home Domiciliary Care Services Ltd,SOCIAL SERVICES DAY CARE,People's Services,Home Care Services,A56019
London Borough of Sutton,17/03/2024,50479146,731.64,Best at Home Domiciliary Care Services Ltd,SOCIAL SERVICES DAY CARE,People's Services,Home Care Services,A56019
London Borough of Sutton,17/03/2024,50479177,"3,512.88",Best at Home Domiciliary Care Services Ltd,SOCIAL SERVICES DAY CARE,People's Services,Home Care Services,A56019
London Borough of Sutton,17/03/2024,50479192,742.04,Best at Home Domiciliary Care Services Ltd,SOCIAL SERVICES DAY CARE,People's Services,Home Care Services,A56019
London Borough of Sutton,17/03/2024,50479231,773.47,Best at Home Domiciliary Care Services Ltd,SOCIAL SERVICES DAY CARE,People's Services,Home Care Services,A56019
London Borough of Sutton,24/03/2024,50480287,731.64,Best at Home Domiciliary Care Services Ltd,SOCIAL SERVICES DAY CARE,People's Services,Home Care Services,A56019
London Borough of Sutton,31/03/2024,50480290,731.64,Best at Home Domiciliary Care Services Ltd,SOCIAL SERVICES DAY CARE,People's Services,Home Care Services,A56019
London Borough of Sutton,31/03/2024,50480310,"1,024.49",Best at Home Domiciliary Care Services Ltd,SOCIAL SERVICES DAY CARE,People's Services,Home Care Services,A56019
London Borough of Sutton,24/03/2024,50480325,742.04,Best at Home Domiciliary Care Services Ltd,SOCIAL SERVICES DAY CARE,People's Services,Home Care Services,A56019
London Borough of Sutton,24/03/2024,50480364,773.47,Best at Home Domiciliary Care Services Ltd,SOCIAL SERVICES DAY CARE,People's Services,Home Care Services,A56019
London Borough of Sutton,31/03/2024,50480413,742.04,Best at Home Domiciliary Care Services Ltd,SOCIAL SERVICES DAY CARE,People's Services,Home Care Services,A56019
London Borough of Sutton,31/03/2024,50480416,773.47,Best at Home Domiciliary Care Services Ltd,SOCIAL SERVICES DAY CARE,People's Services,Home Care Services,A56019
London Borough of Sutton,07/04/2024,50483976,"1,071.81",Best at Home Domiciliary Care Services Ltd,SOCIAL SERVICES DAY CARE,People's Services,Home Care Services,A56019
London Borough of Sutton,07/04/2024,50483978,765.80,Best at Home Domiciliary Care Services Ltd,SOCIAL SERVICES DAY CARE,People's Services,Home Care Services,A56019
London Borough of Sutton,07/04/2024,50484019,776.58,Best at Home Domiciliary Care Services Ltd,SOCIAL SERVICES DAY CARE,People's Services,Home Care Services,A56019
London Borough of Sutton,07/04/2024,50484066,809.56,Best at Home Domiciliary Care Services Ltd,SOCIAL SERVICES DAY CARE,People's Services,Home Care Services,A56019
London Borough of Sutton,14/04/2024,50486278,"1,071.81",Best at Home Domiciliary Care Services Ltd,SOCIAL SERVICES DAY CARE,People's Services,Home Care Services,A56019
London Borough of Sutton,14/04/2024,50486303,765.80,Best at Home Domiciliary Care Services Ltd,SOCIAL SERVICES DAY CARE,People's Services,Home Care Services,A56019
London Borough of Sutton,23/01/2023,50486313,"3,156.00",Best at Home Domiciliary Care Services Ltd,SOCIAL SERVICES DAY CARE,People's Services,Home Care Services,A56019
London Borough of Sutton,14/04/2024,50486338,776.58,Best at Home Domiciliary Care Services Ltd,SOCIAL SERVICES DAY CARE,People's Services,Home Care Services,A56019
London Borough of Sutton,28/06/2021,50486344,716.00,Best at Home Domiciliary Care Services Ltd,SOCIAL SERVICES DAY CARE,People's Services,Home Care Services,A56019
London Borough of Sutton,14/04/2024,50486364,809.56,Best at Home Domiciliary Care Services Ltd,SOCIAL SERVICES DAY CARE,People's Services,Home Care Services,A56019
London Borough of Sutton,23/01/2023,50486371,"3,156.00",Best at Home Domiciliary Care Services Ltd,SOCIAL SERVICES DAY CARE,People's Services,Home Care Services,A56019
London Borough of Sutton,23/01/2023,50486372,"3,156.00",Best at Home Domiciliary Care Services Ltd,SOCIAL SERVICES DAY CARE,People's Services,Home Care Services,A56019
London Borough of Sutton,30/08/2023,50488649,"3,156.00",Best at Home Domiciliary Care Services Ltd,SOCIAL SERVICES DAY CARE,People's Services,Home Care Services,A56019
London Borough of Sutton,30/08/2023,50488651,"3,156.00",Best at Home Domiciliary Care Services Ltd,SOCIAL SERVICES DAY CARE,People's Services,Home Care Services,A56019
London Borough of Sutton,31/03/2024,20073364,"1,127.00",Bestcourt UK Ltd,ACCOMMODATION BED & BREAKFAST,Environment Housing and Neighbourhoods,Bed & Breakfast,A56000
London Borough of Sutton,27/03/2024,20073282,590.00,Better Families Social Work Services Ltd,SUNDRY SUPPLIER - SOCIAL SERVICES,People's Services,One to One Care,A56108
London Borough of Sutton,20/03/2024,20073283,"2,714.00",Better Families Social Work Services Ltd,SUNDRY SUPPLIER - SOCIAL SERVICES,People's Services,One to One Care,A56108
London Borough of Sutton,21/03/2024,20073647,"2,646.00",Better Families Social Work Services Ltd,SUNDRY SUPPLIER - SOCIAL SERVICES,People's Services,One to One Care,A56108
London Borough of Sutton,08/08/2023,20073650,"6,372.00",Better Families Social Work Services Ltd,SUNDRY SUPPLIER - SOCIAL SERVICES,People's Services,One to One Care,A56108
London Borough of Sutton,27/03/2024,20073651,531.00,Better Families Social Work Services Ltd,SUNDRY SUPPLIER - SOCIAL SERVICES,People's Services,One to One Care,A56108
London Borough of Sutton,27/03/2024,20074130,590.00,Better Families Social Work Services Ltd,SUNDRY SUPPLIER - SOCIAL SERVICES,People's Services,One to One Care,A56108
London Borough of Sutton,21/03/2024,20074145,442.50,Better Families Social Work Services Ltd,SUNDRY SUPPLIER - SOCIAL SERVICES,People's Services,One to One Care,A56108
London Borough of Sutton,09/04/2024,20074256,"2,891.00",Better Families Social Work Services Ltd,SUNDRY SUPPLIER - SOCIAL SERVICES,People's Services,One to One Care,A56108
London Borough of Sutton,03/08/2022,20074361,611.00,Better Families Social Work Services Ltd,SUNDRY SUPPLIER - SOCIAL SERVICES,People's Services,Client Care/Assistance,A61011
London Borough of Sutton,25/04/2024,20075285,"1,357.00",Better Families Social Work Services Ltd,SUNDRY SUPPLIER - SOCIAL SERVICES,People's Services,One to One Care,A56108
London Borough of Sutton,23/04/2024,50485134,"4,500.00",BETTER LIFE SUPPORTED LIVING LIMITED,SOCIAL SERVICES RESIDENTIAL,People's Services,One to One Care,A56108
London Borough of Sutton,27/03/2024,20073508,"2,291.20",Bevan Brittan LLP,LEGAL & PROFESSIONAL SERVICES,HRA,External Legal Fees,C20008
London Borough of Sutton,26/03/2024,20073542,838.50,Bevan Brittan LLP,LEGAL & PROFESSIONAL SERVICES,People's Services,External Fees and Consultants,C20000
London Borough of Sutton,27/03/2024,20073551,742.50,Bevan Brittan LLP,LEGAL & PROFESSIONAL SERVICES,People's Services,External Fees and Consultants,C20000
London Borough of Sutton,28/03/2024,20073799,"15,985.00",Bevan Brittan LLP,LEGAL & PROFESSIONAL SERVICES,HRA,External Fees and Consultants,C20000
London Borough of Sutton,29/03/2024,20074178,"5,228.00",Bevan Brittan LLP,LEGAL & PROFESSIONAL SERVICES,HRA,External Fees and Consultants,C20000
London Borough of Sutton,18/04/2024,20074589,"1,460.54",Biosite Systems Limited,BUILDING MNTCE - SERVICES,HRA,External Fees and Consultants,C20000
London Borough of Sutton,09/04/2024,50481185,"8,545.50",Bizzy Bees Day Nursery,ACADEMIC INSTNS - OTHER,People's Services,Payment - Nursery Funding,A51056
London Borough of Sutton,09/04/2024,50481318,"9,127.80",Bizzy Bees Day Nursery,ACADEMIC INSTNS - OTHER,People's Services,Payment - Nursery Funding,A51056
London Borough of Sutton,30/04/2024,50488859,"8,545.50",Bizzy Bees Day Nursery,ACADEMIC INSTNS - OTHER,People's Services,Payment - Nursery Funding,A51056
London Borough of Sutton,30/04/2024,50488994,"9,127.80",Bizzy Bees Day Nursery,ACADEMIC INSTNS - OTHER,People's Services,Payment - Nursery Funding,A51056
London Borough of Sutton,26/03/2024,20073334,"5,000.00",Black Tech Day Ltd,TEMP STAFF & CONSULTANCY,Health and Wellbeing,Fees,A44040
London Borough of Sutton,26/03/2024,20073335,"1,920.00",Black Tech Day Ltd,TEMP STAFF & CONSULTANCY,Health and Wellbeing,Fees,A44040
London Borough of Sutton,26/03/2024,20074364,"5,000.00",Black Tech Day Ltd,TEMP STAFF & CONSULTANCY,Health and Wellbeing,Fees,A44040
London Borough of Sutton,18/04/2024,50486982,"7,923.33",Blenheim High School,CHILDREN'S SERVICES - SEN SERVICES,People's Services,Top-up Funding,A51016
London Borough of Sutton,28/03/2024,20073100,"16,000.00",Bloom Procurement Services Ltd,TEMP STAFF & CONSULTANCY,Development Growth and Regeneration,External Fees and Consultants,C20000
London Borough of Sutton,08/04/2024,20073771,"2,625.00",Bloom Procurement Services Ltd,TEMP STAFF & CONSULTANCY,Environment Housing and Neighbourhoods,External Fees and Consultants,C20000
London Borough of Sutton,16/04/2024,20074374,"5,180.75",Bloom Procurement Services Ltd,TEMP STAFF & CONSULTANCY,Development Growth and Regeneration,External Fees and Consultants,C20000
London Borough of Sutton,02/04/2024,50481511,701.50,Blossom Healthcare Ltd.,SOCIAL SERVICES-HOME CARE,People's Services,Home Care Services,A56019
London Borough of Sutton,01/04/2024,50479392,"18,069.38",Blossom House Lower School,SCHOOL FUNDS,People's Services,Independent School Fees,A56002
London Borough of Sutton,01/04/2024,50479393,"23,516.38",Blossom House Lower School,SCHOOL FUNDS,People's Services,Independent School Fees,A56002
London Borough of Sutton,01/04/2024,50479394,"15,136.38",Blossom House Lower School,SCHOOL FUNDS,People's Services,Independent School Fees,A56002
London Borough of Sutton,01/04/2024,50479395,"15,974.38",Blossom House Lower School,SCHOOL FUNDS,People's Services,Independent School Fees,A56002
London Borough of Sutton,01/04/2024,50479396,"15,136.38",Blossom House Lower School,SCHOOL FUNDS,People's Services,Independent School Fees,A56002
London Borough of Sutton,01/04/2024,50479397,"24,703.54",Blossom House Lower School,SCHOOL FUNDS,People's Services,Independent School Fees,A56002
London Borough of Sutton,01/04/2024,50479398,"15,974.38",Blossom House Lower School,SCHOOL FUNDS,People's Services,Independent School Fees,A56002
London Borough of Sutton,01/04/2024,50479399,"13,355.63",Blossom House Lower School,SCHOOL FUNDS,People's Services,Independent School Fees,A56002
London Borough of Sutton,01/04/2024,50479400,"16,850.00",Blossom House Lower School,SCHOOL FUNDS,People's Services,Independent School Fees,A56002
London Borough of Sutton,01/04/2024,50479401,"18,850.00",Blossom House Lower School,SCHOOL FUNDS,People's Services,Independent School Fees,A56002
London Borough of Sutton,01/04/2024,50479402,"18,850.00",Blossom House Lower School,SCHOOL FUNDS,People's Services,Independent School Fees,A56002
London Borough of Sutton,01/04/2024,50479403,"19,007.50",Blossom House Lower School,SCHOOL FUNDS,People's Services,Independent School Fees,A56002
London Borough of Sutton,01/04/2024,50479404,"13,355.63",Blossom House Lower School,SCHOOL FUNDS,People's Services,Independent School Fees,A56002
London Borough of Sutton,01/04/2024,50479405,"15,974.38",Blossom House Lower School,SCHOOL FUNDS,People's Services,Independent School Fees,A56002
London Borough of Sutton,01/04/2024,50479406,"17,545.63",Blossom House Lower School,SCHOOL FUNDS,People's Services,Independent School Fees,A56002
London Borough of Sutton,01/04/2024,50479407,"16,707.63",Blossom House Lower School,SCHOOL FUNDS,People's Services,Independent School Fees,A56002
London Borough of Sutton,01/04/2024,50486973,"8,055.00",Blossom House Lower School,SCHOOL FUNDS,People's Services,Independent School Fees,A56002
London Borough of Sutton,31/03/2024,20073495,"4,627.97",Bottomline Technologies Ltd,OFFICE SERVICES,Resources,Payroll Services,A56082
London Borough of Sutton,12/04/2024,50482443,"2,400.00",Brama Care Ltd,SOCIAL SERVICES-HOME CARE,People's Services,Nursing Care - Ext Provider,A56025
London Borough of Sutton,12/04/2024,50482714,"12,529.44",Bramley Health Ltd.,SOCIAL SERVICES RESIDENTIAL,People's Services,Nursing Care - Ext Provider,A56025
London Borough of Sutton,12/04/2024,50482714,"-8,770.60",Bramley Health Ltd.,SOCIAL SERVICES RESIDENTIAL,People's Services,Nursing Care - 3rd party top up payment,A56023
London Borough of Sutton,12/04/2024,50482737,"1,050.00",Bramley Health Ltd.,SOCIAL SERVICES RESIDENTIAL,People's Services,One to One Care,A56108
London Borough of Sutton,12/04/2024,50482737,"-4,890.00",Bramley Health Ltd.,SOCIAL SERVICES RESIDENTIAL,People's Services,Nursing Care - 3rd party top up payment,A56023
London Borough of Sutton,12/04/2024,50482737,"9,780.00",Bramley Health Ltd.,SOCIAL SERVICES RESIDENTIAL,People's Services,Nursing Care - Ext Provider,A56025
London Borough of Sutton,12/04/2024,50482743,"107,092.86",Bramley Health Ltd.,SOCIAL SERVICES RESIDENTIAL,People's Services,Nursing Care - Ext Provider,A56025
London Borough of Sutton,12/04/2024,50482743,"-53,546.43",Bramley Health Ltd.,SOCIAL SERVICES RESIDENTIAL,People's Services,Nursing Care - 3rd party top up payment,A56023
London Borough of Sutton,12/04/2024,50482771,"27,685.71",Bramley Health Ltd.,SOCIAL SERVICES RESIDENTIAL,People's Services,Nursing Care - 3rd party top up payment,A56023
London Borough of Sutton,25/04/2024,50488734,"2,323.14",BRASENOSE COLLEGE,CARE LEAVERS,People's Services,Approved Lodgings,A61000
London Borough of Sutton,12/04/2024,50482513,-878.84,Bridge House Care Centre,SOCIAL SERVICES RESIDENTIAL,People's Services,Nursing Care - 3rd party top up payment,A56023
London Borough of Sutton,12/04/2024,50482514,"4,096.12",Bridge House Care Centre,SOCIAL SERVICES RESIDENTIAL,People's Services,Nursing Care - Ext Provider,A56025
London Borough of Sutton,12/04/2024,50482523,-878.84,Bridge House Care Centre,SOCIAL SERVICES RESIDENTIAL,People's Services,Nursing Care - 3rd party top up payment,A56023
London Borough of Sutton,12/04/2024,50482523,"4,560.00",Bridge House Care Centre,SOCIAL SERVICES RESIDENTIAL,People's Services,Nursing Care - Ext Provider,A56025
London Borough of Sutton,12/04/2024,50482524,-878.84,Bridge House Care Centre,SOCIAL SERVICES RESIDENTIAL,People's Services,Nursing Care - 3rd party top up payment,A56023
London Borough of Sutton,12/04/2024,50482524,"5,278.84",Bridge House Care Centre,SOCIAL SERVICES RESIDENTIAL,People's Services,Respite Care,A56116
London Borough of Sutton,12/04/2024,50482543,"3,908.57",Bridge House Care Centre,SOCIAL SERVICES RESIDENTIAL,People's Services,Nursing Care - Ext Provider,A56025
London Borough of Sutton,12/04/2024,50482543,"11,400.00",Bridge House Care Centre,SOCIAL SERVICES RESIDENTIAL,People's Services,One to One Care,A56108
London Borough of Sutton,12/04/2024,50482543,-753.29,Bridge House Care Centre,SOCIAL SERVICES RESIDENTIAL,People's Services,Nursing Care - 3rd party top up payment,A56023
London Borough of Sutton,12/04/2024,50482583,-878.84,Bridge House Care Centre,SOCIAL SERVICES RESIDENTIAL,People's Services,Nursing Care - 3rd party top up payment,A56023
London Borough of Sutton,12/04/2024,50482583,"4,096.12",Bridge House Care Centre,SOCIAL SERVICES RESIDENTIAL,People's Services,Nursing Care - Ext Provider,A56025
London Borough of Sutton,12/04/2024,50482600,"4,560.00",Bridge House Care Centre,SOCIAL SERVICES RESIDENTIAL,People's Services,Nursing Care - Ext Provider,A56025
London Borough of Sutton,12/04/2024,50482600,-878.84,Bridge House Care Centre,SOCIAL SERVICES RESIDENTIAL,People's Services,Nursing Care - 3rd party top up payment,A56023
London Borough of Sutton,12/04/2024,50482628,-878.84,Bridge House Care Centre,SOCIAL SERVICES RESIDENTIAL,People's Services,Nursing Care - 3rd party top up payment,A56023
London Borough of Sutton,12/04/2024,50482628,"4,096.12",Bridge House Care Centre,SOCIAL SERVICES RESIDENTIAL,People's Services,Nursing Care Short Term,A56026
London Borough of Sutton,12/04/2024,50482636,"4,560.00",Bridge House Care Centre,SOCIAL SERVICES RESIDENTIAL,People's Services,Nursing Care - Ext Provider,A56025
London Borough of Sutton,12/04/2024,50482636,-878.84,Bridge House Care Centre,SOCIAL SERVICES RESIDENTIAL,People's Services,Nursing Care - 3rd party top up payment,A56023
London Borough of Sutton,12/04/2024,50482684,"4,096.12",Bridge House Care Centre,SOCIAL SERVICES RESIDENTIAL,People's Services,Nursing Care - Ext Provider,A56025
London Borough of Sutton,12/04/2024,50482684,-878.84,Bridge House Care Centre,SOCIAL SERVICES RESIDENTIAL,People's Services,Nursing Care - 3rd party top up payment,A56023
London Borough of Sutton,12/04/2024,50482695,-878.84,Bridge House Care Centre,SOCIAL SERVICES RESIDENTIAL,People's Services,Nursing Care - 3rd party top up payment,A56023
London Borough of Sutton,12/04/2024,50482695,"4,558.84",Bridge House Care Centre,SOCIAL SERVICES RESIDENTIAL,People's Services,Nursing Care Short Term,A56026
London Borough of Sutton,12/04/2024,50482720,"4,096.12",Bridge House Care Centre,SOCIAL SERVICES RESIDENTIAL,People's Services,Nursing Care - Ext Provider,A56025
London Borough of Sutton,12/04/2024,50482720,-878.84,Bridge House Care Centre,SOCIAL SERVICES RESIDENTIAL,People's Services,Nursing Care - 3rd party top up payment,A56023
London Borough of Sutton,12/04/2024,50482734,"4,096.12",Bridge House Care Centre,SOCIAL SERVICES RESIDENTIAL,People's Services,Nursing Care - Ext Provider,A56025
London Borough of Sutton,12/04/2024,50482734,-878.84,Bridge House Care Centre,SOCIAL SERVICES RESIDENTIAL,People's Services,Nursing Care - 3rd party top up payment,A56023
London Borough of Sutton,12/04/2024,50482765,"4,096.12",Bridge House Care Centre,SOCIAL SERVICES RESIDENTIAL,People's Services,Nursing Care - Ext Provider,A56025
London Borough of Sutton,12/04/2024,50482772,"4,096.12",Bridge House Care Centre,SOCIAL SERVICES RESIDENTIAL,People's Services,Nursing Care - Ext Provider,A56025
London Borough of Sutton,12/04/2024,50482772,-878.84,Bridge House Care Centre,SOCIAL SERVICES RESIDENTIAL,People's Services,Nursing Care - 3rd party top up payment,A56023
London Borough of Sutton,12/04/2024,50482775,-878.84,Bridge House Care Centre,SOCIAL SERVICES RESIDENTIAL,People's Services,Nursing Care - 3rd party top up payment,A56023
London Borough of Sutton,12/04/2024,50482786,"4,096.12",Bridge House Care Centre,SOCIAL SERVICES RESIDENTIAL,People's Services,Nursing Care - Ext Provider,A56025
London Borough of Sutton,12/04/2024,50482786,-878.84,Bridge House Care Centre,SOCIAL SERVICES RESIDENTIAL,People's Services,Nursing Care - 3rd party top up payment,A56023
London Borough of Sutton,12/04/2024,50482799,-878.84,Bridge House Care Centre,SOCIAL SERVICES RESIDENTIAL,People's Services,Nursing Care - 3rd party top up payment,A56023
London Borough of Sutton,12/04/2024,50482799,"4,560.00",Bridge House Care Centre,SOCIAL SERVICES RESIDENTIAL,People's Services,Nursing Care Short Term,A56026
London Borough of Sutton,12/04/2024,50482841,-878.84,Bridge House Care Centre,SOCIAL SERVICES RESIDENTIAL,People's Services,Nursing Care - 3rd party top up payment,A56023
London Borough of Sutton,12/04/2024,50482841,"4,560.00",Bridge House Care Centre,SOCIAL SERVICES RESIDENTIAL,People's Services,Nursing Care Short Term,A56026
London Borough of Sutton,12/04/2024,50482871,-878.84,Bridge House Care Centre,SOCIAL SERVICES RESIDENTIAL,People's Services,Nursing Care - 3rd party top up payment,A56023
London Borough of Sutton,12/04/2024,50482871,"4,560.00",Bridge House Care Centre,SOCIAL SERVICES RESIDENTIAL,People's Services,Nursing Care Short Term,A56026
London Borough of Sutton,12/04/2024,50482902,"3,142.86",Bridge House Care Centre,SOCIAL SERVICES RESIDENTIAL,People's Services,Nursing Care Short Term,A56026
London Borough of Sutton,12/04/2024,50482903,"4,978.76",Bridge House Care Centre,SOCIAL SERVICES RESIDENTIAL,People's Services,Nursing Care - Ext Provider,A56025
London Borough of Sutton,12/04/2024,50482903,-836.76,Bridge House Care Centre,SOCIAL SERVICES RESIDENTIAL,People's Services,Nursing Care - 3rd party top up payment,A56023
London Borough of Sutton,12/04/2024,50482905,"4,096.12",Bridge House Care Centre,SOCIAL SERVICES RESIDENTIAL,People's Services,Nursing Care Short Term,A56026
London Borough of Sutton,12/04/2024,50482905,-878.84,Bridge House Care Centre,SOCIAL SERVICES RESIDENTIAL,People's Services,Nursing Care - 3rd party top up payment,A56023
London Borough of Sutton,12/04/2024,50482907,"4,096.12",Bridge House Care Centre,SOCIAL SERVICES RESIDENTIAL,People's Services,Nursing Care - Ext Provider,A56025
London Borough of Sutton,12/04/2024,50482907,-878.84,Bridge House Care Centre,SOCIAL SERVICES RESIDENTIAL,People's Services,Nursing Care - 3rd party top up payment,A56023
London Borough of Sutton,01/03/2024,20074632,"7,925.00",Bridgeall Libriaries Ltd,BUSINESS & COMPUTER SYSTEMS,Health and Wellbeing,Books,A43050
London Borough of Sutton,15/04/2024,20074278,"5,187.50",Bridgestock Housing Services,CHILDREN'S SERVICES - RESIDENTIAL,People's Services,Approved Lodgings,A61000
London Borough of Sutton,15/04/2024,20074279,"5,729.17",Bridgestock Housing Services,CHILDREN'S SERVICES - RESIDENTIAL,People's Services,Approved Lodgings,A61000
London Borough of Sutton,15/04/2024,20074280,"5,152.85",Bridgestock Housing Services,CHILDREN'S SERVICES - RESIDENTIAL,People's Services,Approved Lodgings,A61000
London Borough of Sutton,15/04/2024,20074281,"4,069.52",Bridgestock Housing Services,CHILDREN'S SERVICES - RESIDENTIAL,People's Services,Approved Lodgings,A61000
London Borough of Sutton,15/04/2024,20074282,"4,069.52",Bridgestock Housing Services,CHILDREN'S SERVICES - RESIDENTIAL,People's Services,Approved Lodgings,A61000
London Borough of Sutton,15/04/2024,20074283,"3,202.85",Bridgestock Housing Services,CHILDREN'S SERVICES - RESIDENTIAL,People's Services,Approved Lodgings,A61000
London Borough of Sutton,15/04/2024,20074284,"3,094.52",Bridgestock Housing Services,CHILDREN'S SERVICES - RESIDENTIAL,People's Services,Approved Lodgings,A61000
London Borough of Sutton,22/03/2024,20074628,"3,202.85",Bridgestock Housing Services,CHILDREN'S SERVICES - RESIDENTIAL,People's Services,Approved Lodgings,A61000
London Borough of Sutton,22/03/2024,50484591,276.79,Bridgestock Housing Services,CHILDREN'S SERVICES - RESIDENTIAL,People's Services,Approved Lodgings,A61000
London Borough of Sutton,22/03/2024,50484591,"4,982.13",Bridgestock Housing Services,CHILDREN'S SERVICES - RESIDENTIAL,People's Services,Approved Lodgings,A61000
London Borough of Sutton,03/04/2024,20073438,"3,764.29",Bridging the Gap,CHILDREN'S SERVICE - OTHER,People's Services,Approved Lodgings,A61000
London Borough of Sutton,26/03/2024,20072991,"5,500.00",Brightcorp Ltd,TRAINING,Development Growth and Regeneration,Fees,A44040
London Borough of Sutton,22/04/2024,50486980,"3,845.98",Brit School,GRANTS & EX GRATIA PAYMENTS,People's Services,Independent School Fees,A56002
London Borough of Sutton,08/04/2024,20074585,"19,000.00",British Cycling,GRANTS & EX GRATIA PAYMENTS,Environment Housing and Neighbourhoods,External Fees and Consultants,C20000
London Borough of Sutton,03/04/2024,20073845,"3,029.75",British Gas Plc,UTILITIES,Resources,Electricity,A21000
London Borough of Sutton,05/03/2024,20073808,"2,844.77",British Gas Plc,UTILITIES,Resources,Electricity,A21000
London Borough of Sutton,12/04/2024,50482483,-875.64,British Home & Hospital For Incurables,SOCIAL SERVICES RESIDENTIAL,People's Services,Nursing Care - Client Cont ( Net paymt ),A56024
London Borough of Sutton,12/04/2024,50482483,"4,096.12",British Home & Hospital For Incurables,SOCIAL SERVICES RESIDENTIAL,People's Services,Nursing Care - Ext Provider,A56025
London Borough of Sutton,12/04/2024,50482483,-878.84,British Home & Hospital For Incurables,SOCIAL SERVICES RESIDENTIAL,People's Services,Nursing Care - 3rd party top up payment,A56023
London Borough of Sutton,31/03/2024,20073349,"2,820.00",Brockwell Care,ACCOMMODATION - OTHER,People's Services,One to One Care,A56108
London Borough of Sutton,29/02/2024,20073350,"2,256.00",Brockwell Care,ACCOMMODATION - OTHER,People's Services,One to One Care,A56108
London Borough of Sutton,27/03/2024,20073422,"12,412.70",Browne Jacobson LLP,LEGAL & PROFESSIONAL SERVICES,Resources,Legal Services,A44025
London Borough of Sutton,24/11/2023,20073425,"3,575.10",Browne Jacobson LLP,LEGAL & PROFESSIONAL SERVICES,Resources,Legal Services,A44025
London Borough of Sutton,26/03/2024,20073429,"1,000.00",Browne Jacobson LLP,LEGAL & PROFESSIONAL SERVICES,Resources,Legal Services,A44025
London Borough of Sutton,28/02/2024,20074347,"16,174.00",Browne Jacobson LLP,LEGAL & PROFESSIONAL SERVICES,Resources,Professional Fees,A44066
London Borough of Sutton,25/03/2024,20074348,"9,725.20",Browne Jacobson LLP,LEGAL & PROFESSIONAL SERVICES,Resources,Professional Fees,A44066
London Borough of Sutton,27/03/2024,20074641,"1,403.00",Browne Jacobson LLP,LEGAL & PROFESSIONAL SERVICES,Resources,Legal Services,A44025
London Borough of Sutton,27/03/2024,20074643,"4,003.00",Browne Jacobson LLP,LEGAL & PROFESSIONAL SERVICES,Resources,Legal Services,A44025
London Borough of Sutton,27/03/2024,20074644,"2,000.00",Browne Jacobson LLP,LEGAL & PROFESSIONAL SERVICES,Resources,Legal Services,A44025
London Borough of Sutton,22/04/2024,20075239,"1,978.20",Browne Jacobson LLP,LEGAL & PROFESSIONAL SERVICES,Resources,Legal Services,A44025
London Borough of Sutton,28/03/2024,50479423,"14,666.32",Brunel SEN Multi Academy Trust,CHILDREN'S SERVICES - SEN SERVICES,People's Services,Top-up Funding,A51016
London Borough of Sutton,17/04/2024,20074517,"38,890.18",Bugler Developments Ltd,CONSTRUCTION INDUSTRY,HRA,Council Dwellings - Construction & Renovation,C10002
London Borough of Sutton,02/04/2024,20073327,"32,023.00",Buildvantage Management Ltd,ACCOMMODATION BED & BREAKFAST,Environment Housing and Neighbourhoods,Bed & Breakfast,A56000
London Borough of Sutton,09/04/2024,50481085,"20,520.00",Bumpsa Daisies Nurserys,ACADEMIC INSTNS - OTHER,People's Services,Payment - Nursery Funding,A51056
London Borough of Sutton,09/04/2024,50481211,"13,276.80",Bumpsa Daisies Nurserys,ACADEMIC INSTNS - OTHER,People's Services,Payment - Nursery Funding,A51056
London Borough of Sutton,30/04/2024,50488758,"20,520.00",Bumpsa Daisies Nurserys,ACADEMIC INSTNS - OTHER,People's Services,Payment - Nursery Funding,A51056
London Borough of Sutton,30/04/2024,50488885,"13,276.80",Bumpsa Daisies Nurserys,ACADEMIC INSTNS - OTHER,People's Services,Payment - Nursery Funding,A51056
London Borough of Sutton,12/04/2024,50482417,"7,084.60",Bupa Care Services Commissioning Limited,SOCIAL SERVICES RESIDENTIAL,People's Services,Nursing Care Short Term,A56026
London Borough of Sutton,12/04/2024,50482417,-836.76,Bupa Care Services Commissioning Limited,SOCIAL SERVICES RESIDENTIAL,People's Services,Nursing Care - 3rd party top up payment,A56023
London Borough of Sutton,12/04/2024,50482458,"8,091.16",Bupa Care Services Commissioning Limited,SOCIAL SERVICES RESIDENTIAL,People's Services,Nursing Care Short Term,A56026
London Borough of Sutton,12/04/2024,50482458,"-1,436.76",Bupa Care Services Commissioning Limited,SOCIAL SERVICES RESIDENTIAL,People's Services,Nursing Care - 3rd party top up payment,A56023
London Borough of Sutton,12/04/2024,50482544,"4,339.24",Bupa Care Services Commissioning Limited,SOCIAL SERVICES RESIDENTIAL,People's Services,Nursing Care - Ext Provider,A56025
London Borough of Sutton,12/04/2024,50482544,-878.84,Bupa Care Services Commissioning Limited,SOCIAL SERVICES RESIDENTIAL,People's Services,Nursing Care - 3rd party top up payment,A56023
London Borough of Sutton,12/04/2024,50482596,"4,096.12",Bupa Care Services Commissioning Limited,SOCIAL SERVICES RESIDENTIAL,People's Services,Nursing Care - Ext Provider,A56025
London Borough of Sutton,12/04/2024,50482739,"4,339.24",Bupa Care Services Commissioning Limited,SOCIAL SERVICES RESIDENTIAL,People's Services,Nursing Care Short Term,A56026
London Borough of Sutton,12/04/2024,50482739,-878.84,Bupa Care Services Commissioning Limited,SOCIAL SERVICES RESIDENTIAL,People's Services,Nursing Care - 3rd party top up payment,A56023
London Borough of Sutton,12/04/2024,50482756,-878.84,Bupa Care Services Commissioning Limited,SOCIAL SERVICES RESIDENTIAL,People's Services,Nursing Care - 3rd party top up payment,A56023
London Borough of Sutton,12/04/2024,50482836,"4,096.12",Bupa Care Services Commissioning Limited,SOCIAL SERVICES RESIDENTIAL,People's Services,Nursing Care Short Term,A56026
London Borough of Sutton,12/04/2024,50482836,-878.84,Bupa Care Services Commissioning Limited,SOCIAL SERVICES RESIDENTIAL,People's Services,Nursing Care - 3rd party top up payment,A56023
London Borough of Sutton,12/04/2024,50482869,"3,821.24",Bupa Care Services Commissioning Limited,SOCIAL SERVICES RESIDENTIAL,People's Services,Nursing Care Short Term,A56026
London Borough of Sutton,12/04/2024,50482869,-836.76,Bupa Care Services Commissioning Limited,SOCIAL SERVICES RESIDENTIAL,People's Services,Nursing Care - 3rd party top up payment,A56023
London Borough of Sutton,12/04/2024,50482898,"4,096.12",Bupa Care Services Commissioning Limited,SOCIAL SERVICES RESIDENTIAL,People's Services,Nursing Care Short Term,A56026
London Borough of Sutton,12/04/2024,50482898,-878.84,Bupa Care Services Commissioning Limited,SOCIAL SERVICES RESIDENTIAL,People's Services,Nursing Care - 3rd party top up payment,A56023
London Borough of Sutton,09/04/2024,50481037,"1,216.80",Busy Bees Day Nurseries Ltd,ACADEMIC INSTNS - OTHER,People's Services,Payment - Nursery Funding,A51056
London Borough of Sutton,09/04/2024,50481038,558.00,Busy Bees Day Nurseries Ltd,ACADEMIC INSTNS - OTHER,People's Services,Payment - school supplementary grant,A51062
London Borough of Sutton,09/04/2024,50481088,"16,160.64",Busy Bees Day Nurseries Ltd,ACADEMIC INSTNS - OTHER,People's Services,Payment - Nursery Funding,A51056
London Borough of Sutton,09/04/2024,50481214,"11,257.62",Busy Bees Day Nurseries Ltd,ACADEMIC INSTNS - OTHER,People's Services,Payment - Nursery Funding,A51056
London Borough of Sutton,30/04/2024,50488761,"16,160.64",Busy Bees Day Nurseries Ltd,ACADEMIC INSTNS - OTHER,People's Services,Payment - Nursery Funding,A51056
London Borough of Sutton,30/04/2024,50488888,"11,257.62",Busy Bees Day Nurseries Ltd,ACADEMIC INSTNS - OTHER,People's Services,Payment - Nursery Funding,A51056
London Borough of Sutton,09/04/2024,50479830,"6,755.41",Busy Bees Day Nurseries Ltd,ACADEMIC INSTNS - OTHER,Environment Housing and Neighbourhoods,Other payments to schools,A51023
London Borough of Sutton,09/04/2024,50481087,"11,217.60",Busy Bees Day Nurseries Ltd,ACADEMIC INSTNS - OTHER,People's Services,Payment - Nursery Funding,A51056
London Borough of Sutton,09/04/2024,50481213,"6,638.40",Busy Bees Day Nurseries Ltd,ACADEMIC INSTNS - OTHER,People's Services,Payment - Nursery Funding,A51056
London Borough of Sutton,30/04/2024,50488760,"11,217.60",Busy Bees Day Nurseries Ltd,ACADEMIC INSTNS - OTHER,People's Services,Payment - Nursery Funding,A51056
London Borough of Sutton,30/04/2024,50488887,"6,638.40",Busy Bees Day Nurseries Ltd,ACADEMIC INSTNS - OTHER,People's Services,Payment - Nursery Funding,A51056
London Borough of Sutton,12/04/2024,50482391,"8,118.48",Butterfly's Care Homes Ltd,SOCIAL SERVICES RESIDENTIAL,People's Services,Residential Care - Ext Provider,A56114
London Borough of Sutton,05/04/2024,20073751,"37,002.71",Buxton Building Contractors Ltd,CONSTRUCTION INDUSTRY,HRA,Payments to Contractors,C14000
London Borough of Sutton,09/04/2024,20074064,"2,500.00",REDACTED - PERSONAL DATA,SUNDRY SUPPLIER - EDUCATION,People's Services,LAC - Education,A44280
London Borough of Sutton,27/03/2024,20075220,660.00,Cablesheer (Asbestos) Ltd,CONSTRUCTION INDUSTRY,HRA,Payments to Contractors,C14000
London Borough of Sutton,12/03/2024,50479448,"7,916.67",Cambian Asperger Syndrome Services Ltd,CHILDREN'S SERVICES - RESIDENTIAL,People's Services,Independent School Fees,A56002
London Borough of Sutton,12/03/2024,50479449,"15,165.83",Cambian Asperger Syndrome Services Ltd,CHILDREN'S SERVICES - RESIDENTIAL,People's Services,Independent School Fees,A56002
London Borough of Sutton,12/03/2024,50479449,"40,167.17",Cambian Asperger Syndrome Services Ltd,CHILDREN'S SERVICES - RESIDENTIAL,People's Services,Residential Care-Children,A56115
London Borough of Sutton,12/03/2024,50479450,"4,416.67",Cambian Asperger Syndrome Services Ltd,CHILDREN'S SERVICES - RESIDENTIAL,People's Services,Independent School Fees,A56002
London Borough of Sutton,26/03/2024,50479473,"4,071.43",Cambian Childcare Ltd,CHILDREN'S SERVICES - FOSTERING & ADOPTION SERVICES,People's Services,Independent School Fees,A56002
London Borough of Sutton,26/03/2024,50480224,"20,105.67",Cambian Childcare Ltd,CHILDREN'S SERVICES - FOSTERING & ADOPTION SERVICES,People's Services,Residential Care-Children,A56115
London Borough of Sutton,22/03/2024,50479469,"7,619.32",Canbury School LTD,SCHOOL FUNDS,People's Services,Independent School Fees,A56002
London Borough of Sutton,22/03/2024,50479470,"9,722.67",Canbury School LTD,SCHOOL FUNDS,People's Services,Independent School Fees,A56002
London Borough of Sutton,05/04/2024,20073728,"9,601.60",Canon (UK) Ltd,REPROGRAPHICS & PHOTOGRAPHY,Resources,IT Hardware Maintenance,A45008
London Borough of Sutton,04/04/2024,20073731,"1,447.10",Canon (UK) Ltd,REPROGRAPHICS & PHOTOGRAPHY,Resources,IT Hardware Maintenance,A45008
London Borough of Sutton,04/04/2024,20074772,"9,167.96",Canon (UK) Ltd,REPROGRAPHICS & PHOTOGRAPHY,Resources,IT Hardware Maintenance,A45008
London Borough of Sutton,12/04/2024,50482435,"4,060.72",Canterbury Oast Trust,SOCIAL SERVICES RESIDENTIAL,People's Services,Residential Care - Ext Provider,A56114
London Borough of Sutton,12/04/2024,50482435,204.72,Canterbury Oast Trust,SOCIAL SERVICES RESIDENTIAL,People's Services,One to One Care,A56108
London Borough of Sutton,12/04/2024,50482435,"-1,032.56",Canterbury Oast Trust,SOCIAL SERVICES RESIDENTIAL,People's Services,Residential Care - Client Cont ( Net Paymt ),A56113
London Borough of Sutton,11/03/2024,20073479,"15,338.46",Capita Business Services Ltd,BUSINESS & COMPUTER SYSTEMS,Health and Wellbeing,Equipment And Materials Repairs & Maintenance,A40051
London Borough of Sutton,14/02/2024,50486969,"8,688.26",Capital City College Group,CHILDREN'S SERVICES - SEN SERVICES,People's Services,Top-up Funding,A51016
London Borough of Sutton,31/03/2024,20073310,995.00,Capital Road Safety Ltd,SUNDRY SUPPLIER - ENV SERVICES,Environment Housing and Neighbourhoods,Infrastructure Assets - Project Management,C12000
London Borough of Sutton,31/03/2024,20073317,995.00,Capital Road Safety Ltd,SUNDRY SUPPLIER - ENV SERVICES,Environment Housing and Neighbourhoods,Infrastructure Assets - Project Management,C12000
London Borough of Sutton,04/04/2024,50483540,"1,000.00",Caprani Care Limited,SOCIAL SERVICES RESIDENTIAL,People's Services,Day Care Services,A56021
London Borough of Sutton,04/04/2024,50483729,"2,772.00",Caprani Care Limited,SOCIAL SERVICES RESIDENTIAL,People's Services,Supported Living,A56088
London Borough of Sutton,04/04/2024,50483729,"2,462.32",Caprani Care Limited,SOCIAL SERVICES RESIDENTIAL,People's Services,One to One Care,A56108
London Borough of Sutton,04/04/2024,50483729,841.68,Caprani Care Limited,SOCIAL SERVICES RESIDENTIAL,People's Services,Supported Living,A56088
London Borough of Sutton,31/03/2024,50480178,"5,977.42",Capstone Foster Care (South East) Ltd,CHILDREN'S SERVICES - FOSTERING & ADOPTION SERVICES,People's Services,Foster Parents Support,A44110
London Borough of Sutton,31/03/2024,50480195,"6,125.29",Capstone Foster Care (South East) Ltd,CHILDREN'S SERVICES - FOSTERING & ADOPTION SERVICES,People's Services,Foster Parents Support,A44110
London Borough of Sutton,01/03/2024,50480965,"3,909.72",Care Advocates Ltd,MANAGEMENT & TRAINING SERVICES,People's Services,Supported Living,A56088
London Borough of Sutton,01/03/2024,50480965,"2,976.00",Care Advocates Ltd,MANAGEMENT & TRAINING SERVICES,People's Services,Supported Living,A56088
London Borough of Sutton,01/03/2024,50480965,"2,573.31",Care Advocates Ltd,MANAGEMENT & TRAINING SERVICES,People's Services,Supported Living,A56088
London Borough of Sutton,01/03/2024,50480971,"2,662.86",Care Advocates Ltd,MANAGEMENT & TRAINING SERVICES,People's Services,Supported Living,A56088
London Borough of Sutton,01/03/2024,50480971,"1,554.34",Care Advocates Ltd,MANAGEMENT & TRAINING SERVICES,People's Services,Supported Living,A56088
London Borough of Sutton,01/03/2024,50480971,"1,242.52",Care Advocates Ltd,MANAGEMENT & TRAINING SERVICES,People's Services,Supported Living,A56088
London Borough of Sutton,01/03/2024,50480978,"1,800.70",Care Advocates Ltd,MANAGEMENT & TRAINING SERVICES,People's Services,Supported Living,A56088
London Borough of Sutton,01/03/2024,50480978,"2,465.83",Care Advocates Ltd,MANAGEMENT & TRAINING SERVICES,People's Services,Supported Living,A56088
London Borough of Sutton,01/03/2024,50480978,"2,573.31",Care Advocates Ltd,MANAGEMENT & TRAINING SERVICES,People's Services,Supported Living,A56088
London Borough of Sutton,01/03/2024,50480979,"5,485.45",Care Advocates Ltd,MANAGEMENT & TRAINING SERVICES,People's Services,Supported Living,A56088
London Borough of Sutton,12/04/2024,50482445,"3,400.00",Care Assist Ltd.,SOCIAL SERVICES RESIDENTIAL,People's Services,Residential Care - Ext Provider,A56114
London Borough of Sutton,12/04/2024,50482445,"-1,700.00",Care Assist Ltd.,SOCIAL SERVICES RESIDENTIAL,People's Services,Nursing Care - 3rd party top up payment,A56023
London Borough of Sutton,12/04/2024,50482525,"26,708.57",Care Base(Redhill)Ltd,SOCIAL SERVICES - OTHER,People's Services,Nursing Care - Ext Provider,A56025
London Borough of Sutton,12/04/2024,50482525,"-5,147.49",Care Base(Redhill)Ltd,SOCIAL SERVICES - OTHER,People's Services,Nursing Care - 3rd party top up payment,A56023
London Borough of Sutton,12/04/2024,50482817,"3,300.00",Care Base(Redhill)Ltd,SOCIAL SERVICES - OTHER,People's Services,Respite Care,A56116
London Borough of Sutton,12/04/2024,50482847,"7,078.84",Care Base(Redhill)Ltd,SOCIAL SERVICES - OTHER,People's Services,Nursing Care - Ext Provider,A56025
London Borough of Sutton,12/04/2024,50482847,-878.84,Care Base(Redhill)Ltd,SOCIAL SERVICES - OTHER,People's Services,Nursing Care - 3rd party top up payment,A56023
London Borough of Sutton,12/04/2024,50482481,"3,320.32",Care Base(Redhill)Ltd,SOCIAL SERVICES RESIDENTIAL,People's Services,Residential Care - Ext Provider,A56114
London Borough of Sutton,23/04/2024,50485185,"2,003.57",Care Connexions UK Limited,SOCIAL SERVICES RESIDENTIAL,People's Services,One to One Care,A56108
London Borough of Sutton,12/04/2024,50482436,"3,768.36",Care Direct Uk Ltd,SOCIAL SERVICES RESIDENTIAL,People's Services,Residential Care - Ext Provider,A56114
London Borough of Sutton,24/03/2024,50479135,658.40,Care More Limited,SOCIAL SERVICES RESIDENTIAL,People's Services,Home Care Services,A56019
London Borough of Sutton,24/03/2024,50479142,878.05,Care More Limited,SOCIAL SERVICES RESIDENTIAL,People's Services,Home Care Services,A56019
London Borough of Sutton,24/03/2024,50479142,20.91,Care More Limited,SOCIAL SERVICES RESIDENTIAL,People's Services,Home Care Services,A56019
London Borough of Sutton,24/03/2024,50479211,878.05,Care More Limited,SOCIAL SERVICES RESIDENTIAL,People's Services,Home Care Services,A56019
London Borough of Sutton,24/03/2024,50479220,219.45,Care More Limited,SOCIAL SERVICES RESIDENTIAL,People's Services,Home Care Services,A56019
London Borough of Sutton,24/03/2024,50479220,"1,024.52",Care More Limited,SOCIAL SERVICES RESIDENTIAL,People's Services,Home Care Services,A56019
London Borough of Sutton,24/03/2024,50479256,83.64,Care More Limited,SOCIAL SERVICES RESIDENTIAL,People's Services,Home Care Services,A56019
London Borough of Sutton,24/03/2024,50479256,"1,024.47",Care More Limited,SOCIAL SERVICES RESIDENTIAL,People's Services,Home Care Services,A56019
London Borough of Sutton,24/03/2024,50479290,951.25,Care More Limited,SOCIAL SERVICES RESIDENTIAL,People's Services,Home Care Services,A56019
London Borough of Sutton,31/03/2024,50480593,658.40,Care More Limited,SOCIAL SERVICES RESIDENTIAL,People's Services,Home Care Services,A56019
London Borough of Sutton,31/03/2024,50480623,219.45,Care More Limited,SOCIAL SERVICES RESIDENTIAL,People's Services,Home Care Services,A56019
London Borough of Sutton,31/03/2024,50480623,"1,024.52",Care More Limited,SOCIAL SERVICES RESIDENTIAL,People's Services,Home Care Services,A56019
London Borough of Sutton,31/03/2024,50480629,83.59,Care More Limited,SOCIAL SERVICES RESIDENTIAL,People's Services,Home Care Services,A56019
London Borough of Sutton,31/03/2024,50480629,"1,024.52",Care More Limited,SOCIAL SERVICES RESIDENTIAL,People's Services,Home Care Services,A56019
London Borough of Sutton,31/03/2024,50480650,878.05,Care More Limited,SOCIAL SERVICES RESIDENTIAL,People's Services,Home Care Services,A56019
London Borough of Sutton,31/03/2024,50480680,951.25,Care More Limited,SOCIAL SERVICES RESIDENTIAL,People's Services,Home Care Services,A56019
London Borough of Sutton,07/04/2024,50483500,87.52,Care More Limited,SOCIAL SERVICES RESIDENTIAL,People's Services,Home Care Services,A56019
London Borough of Sutton,07/04/2024,50483500,"1,071.96",Care More Limited,SOCIAL SERVICES RESIDENTIAL,People's Services,Home Care Services,A56019
London Borough of Sutton,07/04/2024,50483528,995.07,Care More Limited,SOCIAL SERVICES RESIDENTIAL,People's Services,Home Care Services,A56019
London Borough of Sutton,07/04/2024,50483551,689.06,Care More Limited,SOCIAL SERVICES RESIDENTIAL,People's Services,Home Care Services,A56019
London Borough of Sutton,07/04/2024,50483552,918.65,Care More Limited,SOCIAL SERVICES RESIDENTIAL,People's Services,Home Care Services,A56019
London Borough of Sutton,07/04/2024,50483552,32.82,Care More Limited,SOCIAL SERVICES RESIDENTIAL,People's Services,Home Care Services,A56019
London Borough of Sutton,07/04/2024,50483585,918.65,Care More Limited,SOCIAL SERVICES RESIDENTIAL,People's Services,Home Care Services,A56019
London Borough of Sutton,07/04/2024,50483593,229.74,Care More Limited,SOCIAL SERVICES RESIDENTIAL,People's Services,Home Care Services,A56019
London Borough of Sutton,07/04/2024,50483593,"1,072.12",Care More Limited,SOCIAL SERVICES RESIDENTIAL,People's Services,Home Care Services,A56019
London Borough of Sutton,14/04/2024,50486622,87.52,Care More Limited,SOCIAL SERVICES RESIDENTIAL,People's Services,Home Care Services,A56019
London Borough of Sutton,14/04/2024,50486622,"1,071.96",Care More Limited,SOCIAL SERVICES RESIDENTIAL,People's Services,Home Care Services,A56019
London Borough of Sutton,14/04/2024,50486628,995.07,Care More Limited,SOCIAL SERVICES RESIDENTIAL,People's Services,Home Care Services,A56019
London Borough of Sutton,14/04/2024,50486641,689.06,Care More Limited,SOCIAL SERVICES RESIDENTIAL,People's Services,Home Care Services,A56019
London Borough of Sutton,14/04/2024,50486644,918.65,Care More Limited,SOCIAL SERVICES RESIDENTIAL,People's Services,Home Care Services,A56019
London Borough of Sutton,14/04/2024,50486644,21.88,Care More Limited,SOCIAL SERVICES RESIDENTIAL,People's Services,Home Care Services,A56019
London Borough of Sutton,14/04/2024,50486730,918.65,Care More Limited,SOCIAL SERVICES RESIDENTIAL,People's Services,Home Care Services,A56019
London Borough of Sutton,14/04/2024,50486736,229.74,Care More Limited,SOCIAL SERVICES RESIDENTIAL,People's Services,Home Care Services,A56019
London Borough of Sutton,14/04/2024,50486736,"1,072.12",Care More Limited,SOCIAL SERVICES RESIDENTIAL,People's Services,Home Care Services,A56019
London Borough of Sutton,14/04/2024,50486739,505.84,Care More Limited,SOCIAL SERVICES RESIDENTIAL,People's Services,Home Care Services,A56019
London Borough of Sutton,12/04/2024,50482457,"4,772.96",Care UK Homecare Ltd,SOCIAL SERVICES RESIDENTIAL,People's Services,Residential Care - Ext Provider,A56114
London Borough of Sutton,12/04/2024,50482457,-563.20,Care UK Homecare Ltd,SOCIAL SERVICES RESIDENTIAL,People's Services,Residential Care - Client Cont ( Net Paymt ),A56113
London Borough of Sutton,12/04/2024,50482665,-878.84,Care UK Homecare Ltd,SOCIAL SERVICES RESIDENTIAL,People's Services,Nursing Care - 3rd party top up payment,A56023
London Borough of Sutton,12/04/2024,50482665,"4,560.00",Care UK Homecare Ltd,SOCIAL SERVICES RESIDENTIAL,People's Services,Nursing Care Short Term,A56026
London Borough of Sutton,12/04/2024,50482700,-836.76,Care UK Homecare Ltd,SOCIAL SERVICES RESIDENTIAL,People's Services,Nursing Care - 3rd party top up payment,A56023
London Borough of Sutton,12/04/2024,50482770,"4,560.00",Care UK Homecare Ltd,SOCIAL SERVICES RESIDENTIAL,People's Services,Nursing Care - Ext Provider,A56025
London Borough of Sutton,12/04/2024,50482850,"5,458.84",Care UK Homecare Ltd,SOCIAL SERVICES RESIDENTIAL,People's Services,Nursing Care - Ext Provider,A56025
London Borough of Sutton,12/04/2024,50482850,-878.84,Care UK Homecare Ltd,SOCIAL SERVICES RESIDENTIAL,People's Services,Nursing Care - 3rd party top up payment,A56023
London Borough of Sutton,12/04/2024,50482868,"4,096.12",Care UK Homecare Ltd,SOCIAL SERVICES RESIDENTIAL,People's Services,Nursing Care - Ext Provider,A56025
London Borough of Sutton,12/04/2024,50482868,-878.84,Care UK Homecare Ltd,SOCIAL SERVICES RESIDENTIAL,People's Services,Nursing Care - 3rd party top up payment,A56023
London Borough of Sutton,01/03/2024,50482919,410.56,Care Unlimited Domcare Ltd,SOCIAL SERVICES DAY CARE,People's Services,Supported Living,A56088
London Borough of Sutton,01/03/2024,50482919,"3,595.20",Care Unlimited Domcare Ltd,SOCIAL SERVICES DAY CARE,People's Services,Supported Living,A56088
London Borough of Sutton,01/03/2024,50482919,"1,056.88",Care Unlimited Domcare Ltd,SOCIAL SERVICES DAY CARE,People's Services,Supported Living,A56088
London Borough of Sutton,01/03/2024,50482920,410.56,Care Unlimited Domcare Ltd,SOCIAL SERVICES DAY CARE,People's Services,Supported Living,A56088
London Borough of Sutton,01/03/2024,50482920,"3,595.20",Care Unlimited Domcare Ltd,SOCIAL SERVICES DAY CARE,People's Services,Supported Living,A56088
London Borough of Sutton,01/03/2024,50482920,"1,056.88",Care Unlimited Domcare Ltd,SOCIAL SERVICES DAY CARE,People's Services,Supported Living,A56088
London Borough of Sutton,01/03/2024,50482950,"1,074.44",Care Unlimited Domcare Ltd,SOCIAL SERVICES DAY CARE,People's Services,Supported Living,A56088
London Borough of Sutton,01/03/2024,50482950,"1,390.56",Care Unlimited Domcare Ltd,SOCIAL SERVICES DAY CARE,People's Services,Supported Living,A56088
London Borough of Sutton,01/03/2024,50482950,"4,173.16",Care Unlimited Domcare Ltd,SOCIAL SERVICES DAY CARE,People's Services,Supported Living,A56088
London Borough of Sutton,01/04/2024,50481517,810.26,Care4Care Services Ltd,SOCIAL SERVICES DAY CARE,People's Services,Home Care Services,A56019
London Borough of Sutton,01/04/2024,50481518,"4,213.36",Care4Care Services Ltd,SOCIAL SERVICES DAY CARE,People's Services,Home Care Services,A56019
London Borough of Sutton,01/04/2024,50481519,627.15,Care4Care Services Ltd,SOCIAL SERVICES DAY CARE,People's Services,Home Care Services,A56019
London Borough of Sutton,01/04/2024,50481519,"1,024.74",Care4Care Services Ltd,SOCIAL SERVICES DAY CARE,People's Services,Home Care Services,A56019
London Borough of Sutton,01/04/2024,50481520,"3,638.34",Care4Care Services Ltd,SOCIAL SERVICES DAY CARE,People's Services,Home Care Services,A56019
London Borough of Sutton,01/04/2024,50481523,"2,106.68",Care4Care Services Ltd,SOCIAL SERVICES DAY CARE,People's Services,Home Care Services,A56019
London Borough of Sutton,01/04/2024,50483432,"1,034.58",Care4Care Services Ltd,SOCIAL SERVICES DAY CARE,People's Services,Home Care Services,A56019
London Borough of Sutton,01/04/2024,50483432,"1,003.68",Care4Care Services Ltd,SOCIAL SERVICES DAY CARE,People's Services,Home Care Services,A56019
London Borough of Sutton,01/04/2024,50483433,"7,544.69",Care4Care Services Ltd,SOCIAL SERVICES DAY CARE,People's Services,Home Care Services,A56019
London Borough of Sutton,02/04/2024,20073499,586.00,Caremark (Sutton),SOCIAL SERVICES DAY CARE,People's Services,One to One Care,A56108
London Borough of Sutton,02/04/2024,20073541,584.00,Caremark (Sutton),SOCIAL SERVICES DAY CARE,People's Services,One to One Care,A56108
London Borough of Sutton,15/04/2024,20074351,557.00,Caremark (Sutton),SOCIAL SERVICES DAY CARE,People's Services,One to One Care,A56108
London Borough of Sutton,15/04/2024,20074353,584.00,Caremark (Sutton),SOCIAL SERVICES DAY CARE,People's Services,One to One Care,A56108
London Borough of Sutton,03/03/2024,50478962,637.72,Caremark (Sutton),SOCIAL SERVICES DAY CARE,People's Services,Home Care Services,A56019
London Borough of Sutton,10/03/2024,50478963,653.40,Caremark (Sutton),SOCIAL SERVICES DAY CARE,People's Services,Home Care Services,A56019
London Borough of Sutton,17/03/2024,50478964,658.63,Caremark (Sutton),SOCIAL SERVICES DAY CARE,People's Services,Home Care Services,A56019
London Borough of Sutton,03/03/2024,50478965,501.84,Caremark (Sutton),SOCIAL SERVICES DAY CARE,People's Services,Home Care Services,A56019
London Borough of Sutton,10/03/2024,50478966,501.84,Caremark (Sutton),SOCIAL SERVICES DAY CARE,People's Services,Home Care Services,A56019
London Borough of Sutton,17/03/2024,50478967,501.84,Caremark (Sutton),SOCIAL SERVICES DAY CARE,People's Services,Home Care Services,A56019
London Borough of Sutton,03/03/2024,50478978,637.76,Caremark (Sutton),SOCIAL SERVICES DAY CARE,People's Services,Home Care Services,A56019
London Borough of Sutton,10/03/2024,50478980,637.76,Caremark (Sutton),SOCIAL SERVICES DAY CARE,People's Services,Home Care Services,A56019
London Borough of Sutton,17/03/2024,50478981,637.76,Caremark (Sutton),SOCIAL SERVICES DAY CARE,People's Services,Home Care Services,A56019
London Borough of Sutton,17/03/2024,50479129,83.63,Caremark (Sutton),SOCIAL SERVICES DAY CARE,People's Services,Home Care Services,A56019
London Borough of Sutton,17/03/2024,50479129,710.74,Caremark (Sutton),SOCIAL SERVICES DAY CARE,People's Services,Home Care Services,A56019
London Borough of Sutton,17/03/2024,50479131,658.42,Caremark (Sutton),SOCIAL SERVICES DAY CARE,People's Services,Home Care Services,A56019
London Borough of Sutton,17/03/2024,50479131,41.80,Caremark (Sutton),SOCIAL SERVICES DAY CARE,People's Services,Home Care Services,A56019
London Borough of Sutton,17/03/2024,50479133,548.82,Caremark (Sutton),SOCIAL SERVICES DAY CARE,People's Services,Home Care Services,A56019
London Borough of Sutton,24/03/2024,50481739,512.30,Caremark (Sutton),SOCIAL SERVICES DAY CARE,People's Services,Home Care Services,A56019
London Borough of Sutton,24/03/2024,50481754,867.57,Caremark (Sutton),SOCIAL SERVICES DAY CARE,People's Services,Home Care Services,A56019
London Borough of Sutton,24/03/2024,50481764,783.86,Caremark (Sutton),SOCIAL SERVICES DAY CARE,People's Services,Home Care Services,A56019
London Borough of Sutton,24/03/2024,50481801,527.91,Caremark (Sutton),SOCIAL SERVICES DAY CARE,People's Services,Home Care Services,A56019
London Borough of Sutton,24/03/2024,50481812,658.40,Caremark (Sutton),SOCIAL SERVICES DAY CARE,People's Services,Home Care Services,A56019
London Borough of Sutton,24/03/2024,50481812,41.82,Caremark (Sutton),SOCIAL SERVICES DAY CARE,People's Services,Home Care Services,A56019
London Borough of Sutton,24/03/2024,50481814,658.40,Caremark (Sutton),SOCIAL SERVICES DAY CARE,People's Services,Home Care Services,A56019
London Borough of Sutton,24/03/2024,50481818,209.03,Caremark (Sutton),SOCIAL SERVICES DAY CARE,People's Services,Home Care Services,A56019
London Borough of Sutton,24/03/2024,50481818,365.80,Caremark (Sutton),SOCIAL SERVICES DAY CARE,People's Services,Home Care Services,A56019
London Borough of Sutton,24/03/2024,50483446,648.18,Caremark (Sutton),SOCIAL SERVICES DAY CARE,People's Services,Home Care Services,A56019
London Borough of Sutton,24/03/2024,50483447,501.84,Caremark (Sutton),SOCIAL SERVICES DAY CARE,People's Services,Home Care Services,A56019
London Borough of Sutton,24/03/2024,50483448,637.76,Caremark (Sutton),SOCIAL SERVICES DAY CARE,People's Services,Home Care Services,A56019
London Borough of Sutton,30/07/2023,50484643,834.75,Caremark (Sutton),SOCIAL SERVICES DAY CARE,People's Services,Home Care Services,A56019
London Borough of Sutton,06/08/2023,50484649,988.55,Caremark (Sutton),SOCIAL SERVICES DAY CARE,People's Services,Home Care Services,A56019
London Borough of Sutton,30/04/2023,50484659,"1,658.95",Caremark (Sutton),SOCIAL SERVICES DAY CARE,People's Services,Home Care Services,A56019
London Borough of Sutton,30/04/2023,50484665,"1,053.30",Caremark (Sutton),SOCIAL SERVICES DAY CARE,People's Services,Home Care Services,A56019
London Borough of Sutton,30/04/2023,50484668,"1,897.00",Caremark (Sutton),SOCIAL SERVICES DAY CARE,People's Services,Home Care Services,A56019
London Borough of Sutton,07/04/2024,50486539,689.06,Caremark (Sutton),SOCIAL SERVICES DAY CARE,People's Services,Home Care Services,A56019
London Borough of Sutton,07/04/2024,50486539,43.76,Caremark (Sutton),SOCIAL SERVICES DAY CARE,People's Services,Home Care Services,A56019
London Borough of Sutton,07/04/2024,50486600,536.06,Caremark (Sutton),SOCIAL SERVICES DAY CARE,People's Services,Home Care Services,A56019
London Borough of Sutton,07/04/2024,50486601,"1,837.92",Caremark (Sutton),SOCIAL SERVICES DAY CARE,People's Services,Home Care Services,A56019
London Borough of Sutton,07/04/2024,50486608,907.86,Caremark (Sutton),SOCIAL SERVICES DAY CARE,People's Services,Home Care Services,A56019
London Borough of Sutton,07/04/2024,50486611,820.34,Caremark (Sutton),SOCIAL SERVICES DAY CARE,People's Services,Home Care Services,A56019
London Borough of Sutton,14/04/2024,50486612,820.34,Caremark (Sutton),SOCIAL SERVICES DAY CARE,People's Services,Home Care Services,A56019
London Borough of Sutton,07/04/2024,50486648,552.31,Caremark (Sutton),SOCIAL SERVICES DAY CARE,People's Services,Home Care Services,A56019
London Borough of Sutton,07/04/2024,50486652,689.06,Caremark (Sutton),SOCIAL SERVICES DAY CARE,People's Services,Home Care Services,A56019
London Borough of Sutton,07/04/2024,50486653,218.80,Caremark (Sutton),SOCIAL SERVICES DAY CARE,People's Services,Home Care Services,A56019
London Borough of Sutton,07/04/2024,50486653,382.74,Caremark (Sutton),SOCIAL SERVICES DAY CARE,People's Services,Home Care Services,A56019
London Borough of Sutton,14/04/2024,50486707,552.31,Caremark (Sutton),SOCIAL SERVICES DAY CARE,People's Services,Home Care Services,A56019
London Borough of Sutton,14/04/2024,50486713,689.06,Caremark (Sutton),SOCIAL SERVICES DAY CARE,People's Services,Home Care Services,A56019
London Borough of Sutton,14/04/2024,50486713,43.76,Caremark (Sutton),SOCIAL SERVICES DAY CARE,People's Services,Home Care Services,A56019
London Borough of Sutton,07/04/2024,50489697,678.28,Caremark (Sutton),SOCIAL SERVICES DAY CARE,People's Services,Home Care Services,A56019
London Borough of Sutton,07/04/2024,50489698,667.03,Caremark (Sutton),SOCIAL SERVICES DAY CARE,People's Services,Home Care Services,A56019
London Borough of Sutton,14/04/2024,50489710,754.86,Caremark (Sutton),SOCIAL SERVICES DAY CARE,People's Services,Home Care Services,A56019
London Borough of Sutton,07/04/2024,50489728,524.91,Caremark (Sutton),SOCIAL SERVICES DAY CARE,People's Services,Home Care Services,A56019
London Borough of Sutton,14/04/2024,50489729,508.52,Caremark (Sutton),SOCIAL SERVICES DAY CARE,People's Services,Home Care Services,A56019
London Borough of Sutton,14/04/2024,50489762,"1,848.86",Caremark (Sutton),SOCIAL SERVICES DAY CARE,People's Services,Home Care Services,A56019
London Borough of Sutton,03/04/2024,20073440,"5,998.57",Caremore Group Ltd,CHILDREN'S SERVICES - FOSTERING & ADOPTION SERVICES,People's Services,Approved Lodgings,A61000
London Borough of Sutton,28/03/2024,50480198,"6,598.57",Caremore Group Ltd,CHILDREN'S SERVICES - FOSTERING & ADOPTION SERVICES,People's Services,Approved Lodgings,A61000
London Borough of Sutton,28/03/2024,50480198,276.79,Caremore Group Ltd,CHILDREN'S SERVICES - FOSTERING & ADOPTION SERVICES,People's Services,Approved Lodgings,A61000
London Borough of Sutton,12/04/2024,50482365,"18,728.60",Caretech Community Services Ltd,SOCIAL SERVICES RESIDENTIAL,People's Services,Residential Care - Client Cont ( Net Paymt ),A56113
London Borough of Sutton,12/04/2024,50482365,"6,115.08",Caretech Community Services Ltd,SOCIAL SERVICES RESIDENTIAL,People's Services,Residential Care - Ext Provider,A56114
London Borough of Sutton,12/04/2024,50482365,"-10,731.14",Caretech Community Services Ltd,SOCIAL SERVICES RESIDENTIAL,People's Services,Residential Care - Client Cont ( Net Paymt ),A56113
London Borough of Sutton,12/04/2024,50482369,"5,621.56",Caretech Community Services Ltd,SOCIAL SERVICES RESIDENTIAL,People's Services,Residential Care - Ext Provider,A56114
London Borough of Sutton,09/04/2024,50479767,"4,076.70",Carew Academy,CHILDREN'S SERVICES - RESIDENTIAL,People's Services,Payment - Teachers Pay Grant,A51026
London Borough of Sutton,09/04/2024,50479773,"11,296.88",Carew Academy,CHILDREN'S SERVICES - RESIDENTIAL,People's Services,Payment - Teachers Pension Grant,A51027
London Borough of Sutton,09/04/2024,50479786,"11,285.68",Carew Academy,CHILDREN'S SERVICES - RESIDENTIAL,People's Services,Payment - pension supplementary grant,A51057
London Borough of Sutton,31/03/2024,20073269,"8,679.50",Caridon Property Ltd,ACCOMMODATION BED & BREAKFAST,Environment Housing and Neighbourhoods,Bed & Breakfast,A56000
London Borough of Sutton,25/03/2024,50480159,276.79,Caridon Young Living Ltd,CHILDREN'S SERVICES - RESIDENTIAL,People's Services,Approved Lodgings,A61000
London Borough of Sutton,25/03/2024,50480159,"20,482.14",Caridon Young Living Ltd,CHILDREN'S SERVICES - RESIDENTIAL,People's Services,Approved Lodgings,A61000
London Borough of Sutton,31/03/2024,50480160,276.79,Caridon Young Living Ltd,CHILDREN'S SERVICES - RESIDENTIAL,People's Services,Approved Lodgings,A61000
London Borough of Sutton,31/03/2024,50480160,"5,425.00",Caridon Young Living Ltd,CHILDREN'S SERVICES - RESIDENTIAL,People's Services,Approved Lodgings,A61000
London Borough of Sutton,25/03/2024,50480161,"3,580.35",Caridon Young Living Ltd,CHILDREN'S SERVICES - RESIDENTIAL,People's Services,Residential Care-Children,A56115
London Borough of Sutton,25/03/2024,50480184,276.79,Caridon Young Living Ltd,CHILDREN'S SERVICES - RESIDENTIAL,People's Services,Approved Lodgings,A61000
London Borough of Sutton,25/03/2024,50480184,"5,092.86",Caridon Young Living Ltd,CHILDREN'S SERVICES - RESIDENTIAL,People's Services,Approved Lodgings,A61000
London Borough of Sutton,31/03/2024,50480186,"45,392.86",Caridon Young Living Ltd,CHILDREN'S SERVICES - RESIDENTIAL,People's Services,Approved Lodgings,A61000
London Borough of Sutton,11/04/2024,50482339,44.65,Caridon Young Living Ltd,CHILDREN'S SERVICES - RESIDENTIAL,People's Services,Approved Lodgings,A61000
London Borough of Sutton,11/04/2024,50482339,749.99,Caridon Young Living Ltd,CHILDREN'S SERVICES - RESIDENTIAL,People's Services,Approved Lodgings,A61000
London Borough of Sutton,31/03/2024,50484599,"7,485.71",Caridon Young Living Ltd,CHILDREN'S SERVICES - RESIDENTIAL,People's Services,Residential Care-Children,A56115
London Borough of Sutton,23/04/2024,50485131,767.14,Care  Support Partners Ltd,SOCIAL SERVICES RESIDENTIAL,People's Services,Supported Living,A56088
London Borough of Sutton,23/04/2024,50485131,613.71,Care  Support Partners Ltd,SOCIAL SERVICES RESIDENTIAL,People's Services,Supported Living,A56088
London Borough of Sutton,23/04/2024,50485131,"2,078.57",Care  Support Partners Ltd,SOCIAL SERVICES RESIDENTIAL,People's Services,Supported Living,A56088
London Borough of Sutton,07/03/2024,50479387,"1,693.71",Carlene House,SOCIAL SERVICES RESIDENTIAL,People's Services,Supported Living,A56088
London Borough of Sutton,01/04/2024,50481509,"1,505.52",Carlene House,SOCIAL SERVICES RESIDENTIAL,People's Services,Home Care Services,A56019
London Borough of Sutton,01/04/2024,50481512,"1,338.24",Carlene House,SOCIAL SERVICES RESIDENTIAL,People's Services,Home Care Services,A56019
London Borough of Sutton,01/04/2024,50481514,"1,087.32",Carlene House,SOCIAL SERVICES RESIDENTIAL,People's Services,Home Care Services,A56019
London Borough of Sutton,01/04/2024,50481515,"3,972.92",Carlene House,SOCIAL SERVICES RESIDENTIAL,People's Services,Home Care Services,A56019
London Borough of Sutton,01/04/2024,50481516,"1,589.16",Carlene House,SOCIAL SERVICES RESIDENTIAL,People's Services,Home Care Services,A56019
London Borough of Sutton,01/04/2024,50481522,"1,589.16",Carlene House,SOCIAL SERVICES RESIDENTIAL,People's Services,Home Care Services,A56019
London Borough of Sutton,01/04/2024,50481555,"1,093.68",Carlene House,SOCIAL SERVICES RESIDENTIAL,People's Services,Supported Living,A56088
London Borough of Sutton,01/04/2024,50481555,"1,458.52",Carlene House,SOCIAL SERVICES RESIDENTIAL,People's Services,Supported Living,A56088
London Borough of Sutton,01/04/2024,50481555,784.84,Carlene House,SOCIAL SERVICES RESIDENTIAL,People's Services,Supported Living,A56088
London Borough of Sutton,01/04/2024,50481556,"2,109.24",Carlene House,SOCIAL SERVICES RESIDENTIAL,People's Services,Supported Living,A56088
London Borough of Sutton,01/04/2024,50481556,"1,458.52",Carlene House,SOCIAL SERVICES RESIDENTIAL,People's Services,Supported Living,A56088
London Borough of Sutton,01/04/2024,50481556,784.84,Carlene House,SOCIAL SERVICES RESIDENTIAL,People's Services,Supported Living,A56088
London Borough of Sutton,12/04/2024,50482531,"6,127.44",Carlene House,SOCIAL SERVICES RESIDENTIAL,People's Services,Residential Care - Ext Provider,A56114
London Borough of Sutton,12/04/2024,50482611,"6,127.44",Carlene House,SOCIAL SERVICES RESIDENTIAL,People's Services,Residential Care - Ext Provider,A56114
London Borough of Sutton,12/04/2024,50482625,"6,127.44",Carlene House,SOCIAL SERVICES RESIDENTIAL,People's Services,Residential Care - Ext Provider,A56114
London Borough of Sutton,12/04/2024,50482669,"6,127.44",Carlene House,SOCIAL SERVICES RESIDENTIAL,People's Services,Residential Care - Ext Provider,A56114
London Borough of Sutton,12/04/2024,50482724,"6,127.44",Carlene House,SOCIAL SERVICES RESIDENTIAL,People's Services,Residential Care - Ext Provider,A56114
London Borough of Sutton,12/04/2024,50482878,"6,127.44",Carlene House,SOCIAL SERVICES RESIDENTIAL,People's Services,Residential Care - Ext Provider,A56114
London Borough of Sutton,01/04/2024,50483208,"1,386.64",Carlene House,SOCIAL SERVICES RESIDENTIAL,People's Services,Supported Living,A56088
London Borough of Sutton,01/04/2024,50483208,"1,458.52",Carlene House,SOCIAL SERVICES RESIDENTIAL,People's Services,Supported Living,A56088
London Borough of Sutton,01/04/2024,50483208,784.84,Carlene House,SOCIAL SERVICES RESIDENTIAL,People's Services,Supported Living,A56088
London Borough of Sutton,01/04/2024,50483209,"2,279.92",Carlene House,SOCIAL SERVICES RESIDENTIAL,People's Services,Supported Living,A56088
London Borough of Sutton,01/04/2024,50483209,"1,458.52",Carlene House,SOCIAL SERVICES RESIDENTIAL,People's Services,Supported Living,A56088
London Borough of Sutton,01/04/2024,50483209,784.84,Carlene House,SOCIAL SERVICES RESIDENTIAL,People's Services,Supported Living,A56088
London Borough of Sutton,09/04/2024,50481131,"1,993.95",REDACTED - PERSONAL DATA,GRANTS & EX GRATIA PAYMENTS,People's Services,Payment - Nursery Funding,A51056
London Borough of Sutton,09/04/2024,50481260,852.30,REDACTED - PERSONAL DATA,GRANTS & EX GRATIA PAYMENTS,People's Services,Payment - Nursery Funding,A51056
London Borough of Sutton,30/04/2024,50488804,"1,993.95",REDACTED - PERSONAL DATA,GRANTS & EX GRATIA PAYMENTS,People's Services,Payment - Nursery Funding,A51056
London Borough of Sutton,30/04/2024,50488936,852.30,REDACTED - PERSONAL DATA,GRANTS & EX GRATIA PAYMENTS,People's Services,Payment - Nursery Funding,A51056
London Borough of Sutton,05/04/2024,50479622,500.00,REDACTED - PERSONAL DATA,GRANTS & EX GRATIA PAYMENTS,Environment Housing and Neighbourhoods,"Grants, Contributions & Donations",A47005
London Borough of Sutton,09/04/2024,50481083,"1,614.15",REDACTED - PERSONAL DATA,GRANTS & EX GRATIA PAYMENTS,People's Services,Payment - Nursery Funding,A51056
London Borough of Sutton,09/04/2024,50481209,"2,130.75",REDACTED - PERSONAL DATA,GRANTS & EX GRATIA PAYMENTS,People's Services,Payment - Nursery Funding,A51056
London Borough of Sutton,30/04/2024,50488756,"1,614.15",REDACTED - PERSONAL DATA,GRANTS & EX GRATIA PAYMENTS,People's Services,Payment - Nursery Funding,A51056
London Borough of Sutton,30/04/2024,50488883,"2,130.75",REDACTED - PERSONAL DATA,GRANTS & EX GRATIA PAYMENTS,People's Services,Payment - Nursery Funding,A51056
London Borough of Sutton,09/04/2024,50479779,"7,310.20",Carshalton Boys Sports College (Academy),SCHOOL FUNDS,People's Services,Pupil Growth,A51014
London Borough of Sutton,26/01/2024,20073306,"1,284.00",The Expert Service Ltd,MANAGEMENT & TRAINING SERVICES,People's Services,Legal Services,A44025
London Borough of Sutton,08/01/2024,20073307,"1,906.00",The Expert Service Ltd,MANAGEMENT & TRAINING SERVICES,People's Services,Legal Services,A44025
London Borough of Sutton,24/04/2024,20075024,952.35,Castle Water Ltd,UTILITIES,Health and Wellbeing,Water Services,A24005
London Borough of Sutton,28/03/2024,50480167,"25,992.29",Catch 22 Charity Limited,CHILDREN'S SERVICES - RESIDENTIAL,People's Services,Residential Care-Children,A56115
London Borough of Sutton,28/03/2024,50480168,"25,992.29",Catch 22 Charity Limited,CHILDREN'S SERVICES - RESIDENTIAL,People's Services,Residential Care-Children,A56115
London Borough of Sutton,28/03/2024,50480187,"25,992.29",Catch 22 Charity Limited,CHILDREN'S SERVICES - RESIDENTIAL,People's Services,Residential Care-Children,A56115
London Borough of Sutton,09/04/2024,50482324,"27,784.86",Catch 22 Charity Limited,CHILDREN'S SERVICES - RESIDENTIAL,People's Services,Residential Care-Children,A56115
London Borough of Sutton,09/04/2024,50482331,"27,784.86",Catch 22 Charity Limited,CHILDREN'S SERVICES - RESIDENTIAL,People's Services,Residential Care-Children,A56115
London Borough of Sutton,09/04/2024,50482340,"27,784.86",Catch 22 Charity Limited,CHILDREN'S SERVICES - RESIDENTIAL,People's Services,Residential Care-Children,A56115
London Borough of Sutton,09/04/2024,50481132,569.70,REDACTED - PERSONAL DATA,GRANTS & EX GRATIA PAYMENTS,People's Services,Payment - Nursery Funding,A51056
London Borough of Sutton,30/04/2024,50488805,569.70,REDACTED - PERSONAL DATA,GRANTS & EX GRATIA PAYMENTS,People's Services,Payment - Nursery Funding,A51056
London Borough of Sutton,09/04/2024,50481143,854.55,REDACTED - PERSONAL DATA,GRANTS & EX GRATIA PAYMENTS,People's Services,Payment - Nursery Funding,A51056
London Borough of Sutton,30/04/2024,50488816,854.55,REDACTED - PERSONAL DATA,GRANTS & EX GRATIA PAYMENTS,People's Services,Payment - Nursery Funding,A51056
London Borough of Sutton,27/03/2024,50479474,"16,300.00",Cavendish Education Ltd,CHILDREN'S SERVICES - SEN SERVICES,People's Services,Independent School Fees,A56002
London Borough of Sutton,27/03/2024,50479475,"16,300.00",Cavendish Education Ltd,CHILDREN'S SERVICES - SEN SERVICES,People's Services,Independent School Fees,A56002
London Borough of Sutton,27/03/2024,50479476,"16,300.00",Cavendish Education Ltd,CHILDREN'S SERVICES - SEN SERVICES,People's Services,Independent School Fees,A56002
London Borough of Sutton,23/04/2024,50485202,"2,169.90",Centred (Scotland) N,SOCIAL SERVICES RESIDENTIAL,People's Services,Supported Living,A56088
London Borough of Sutton,18/04/2024,20074915,"2,080.00",Certus Security LLP,CONSTRUCTION INDUSTRY,HRA,Payments to Contractors,C14000
London Borough of Sutton,30/03/2024,50480199,"7,771.43",Champion Children (Fig Tree) Limited,CHILDREN'S SERVICE - OTHER,People's Services,Residential Care-Children,A56115
London Borough of Sutton,12/04/2024,50482485,"4,080.00",CHARING GARDENS LTD,SOCIAL SERVICES RESIDENTIAL,People's Services,Residential Care - Ext Provider,A56114
London Borough of Sutton,26/03/2024,20074857,"33,619.06",Charles Taylor Services Ltd,FINANCIAL / INSURANCE INSTNS,Resources,General Insurance (Excl Premises & Transport),A44260
London Borough of Sutton,09/04/2024,20074858,"25,055.44",Charles Taylor Services Ltd,FINANCIAL / INSURANCE INSTNS,Resources,General Insurance (Excl Premises & Transport),A44260
London Borough of Sutton,09/04/2024,50481092,"13,018.50",Cheam Baptist Church Pre-School,ACADEMIC INSTNS - OTHER,People's Services,Payment - Nursery Funding,A51056
London Borough of Sutton,30/04/2024,50488765,"13,018.50",Cheam Baptist Church Pre-School,ACADEMIC INSTNS - OTHER,People's Services,Payment - Nursery Funding,A51056
London Borough of Sutton,09/04/2024,50479891,"3,018.60",Cheam Common Infants School -ACADEMY,SCHOOL FUNDS,People's Services,Payment - Nursery Funding,A51056
London Borough of Sutton,09/04/2024,50480999,"27,324.00",Cheam Common Infants School -ACADEMY,SCHOOL FUNDS,People's Services,Payment - Nursery Funding,A51056
London Borough of Sutton,15/04/2024,20074325,"1,160.00",Cheam Family Practice,TEMP STAFF & CONSULTANCY,Health and Wellbeing,Provider Contract Payments,A44290
London Borough of Sutton,15/04/2024,20074327,580.00,Cheam Family Practice,TEMP STAFF & CONSULTANCY,Health and Wellbeing,Provider Contract Payments,A44290
London Borough of Sutton,15/04/2024,20074328,"1,360.00",Cheam Family Practice,TEMP STAFF & CONSULTANCY,Health and Wellbeing,Provider Contract Payments,A44290
London Borough of Sutton,09/04/2024,50479781,"4,873.40",Cheam High School (Academy),SCHOOL FUNDS,People's Services,Pupil Growth,A51014
London Borough of Sutton,09/04/2024,50479823,"19,714.54",Cheam High School (Academy),SCHOOL FUNDS,Environment Housing and Neighbourhoods,Other payments to schools,A51023
London Borough of Sutton,09/04/2024,50479893,"1,742.40",Cheam Park Farm Primary School,SCHOOL FUNDS,People's Services,Payment - Nursery Funding,A51056
London Borough of Sutton,09/04/2024,50481001,"14,859.00",Cheam Park Farm Primary School,SCHOOL FUNDS,People's Services,Payment - Nursery Funding,A51056
London Borough of Sutton,12/04/2024,50482511,"4,096.12",Chegworth Nursing Home Bayswift Ltd,SOCIAL SERVICES RESIDENTIAL,People's Services,Nursing Care - Ext Provider,A56025
London Borough of Sutton,12/04/2024,50482511,-878.84,Chegworth Nursing Home Bayswift Ltd,SOCIAL SERVICES RESIDENTIAL,People's Services,Nursing Care - 3rd party top up payment,A56023
London Borough of Sutton,12/04/2024,50482540,"4,096.12",Chegworth Nursing Home Bayswift Ltd,SOCIAL SERVICES RESIDENTIAL,People's Services,Nursing Care - Ext Provider,A56025
London Borough of Sutton,12/04/2024,50482540,-878.84,Chegworth Nursing Home Bayswift Ltd,SOCIAL SERVICES RESIDENTIAL,People's Services,Nursing Care - 3rd party top up payment,A56023
London Borough of Sutton,12/04/2024,50482558,"4,560.00",Chegworth Nursing Home Bayswift Ltd,SOCIAL SERVICES RESIDENTIAL,People's Services,Nursing Care - Ext Provider,A56025
London Borough of Sutton,12/04/2024,50482558,-878.84,Chegworth Nursing Home Bayswift Ltd,SOCIAL SERVICES RESIDENTIAL,People's Services,Nursing Care - 3rd party top up payment,A56023
London Borough of Sutton,12/04/2024,50482635,-878.84,Chegworth Nursing Home Bayswift Ltd,SOCIAL SERVICES RESIDENTIAL,People's Services,Nursing Care - 3rd party top up payment,A56023
London Borough of Sutton,12/04/2024,50482635,"4,096.12",Chegworth Nursing Home Bayswift Ltd,SOCIAL SERVICES RESIDENTIAL,People's Services,Nursing Care Short Term,A56026
London Borough of Sutton,12/04/2024,50482647,"4,149.92",Chegworth Nursing Home Bayswift Ltd,SOCIAL SERVICES RESIDENTIAL,People's Services,Nursing Care - Ext Provider,A56025
London Borough of Sutton,12/04/2024,50482647,-750.40,Chegworth Nursing Home Bayswift Ltd,SOCIAL SERVICES RESIDENTIAL,People's Services,Nursing Care - 3rd party top up payment,A56023
London Borough of Sutton,12/04/2024,50482650,"4,096.12",Chegworth Nursing Home Bayswift Ltd,SOCIAL SERVICES RESIDENTIAL,People's Services,Nursing Care - Ext Provider,A56025
London Borough of Sutton,12/04/2024,50482650,-878.84,Chegworth Nursing Home Bayswift Ltd,SOCIAL SERVICES RESIDENTIAL,People's Services,Nursing Care - 3rd party top up payment,A56023
London Borough of Sutton,12/04/2024,50482668,"4,096.12",Chegworth Nursing Home Bayswift Ltd,SOCIAL SERVICES RESIDENTIAL,People's Services,Nursing Care - Ext Provider,A56025
London Borough of Sutton,12/04/2024,50482668,-878.84,Chegworth Nursing Home Bayswift Ltd,SOCIAL SERVICES RESIDENTIAL,People's Services,Nursing Care - 3rd party top up payment,A56023
London Borough of Sutton,12/04/2024,50482703,-662.24,Chegworth Nursing Home Bayswift Ltd,SOCIAL SERVICES RESIDENTIAL,People's Services,Nursing Care - 3rd party top up payment,A56023
London Borough of Sutton,12/04/2024,50482703,"4,955.56",Chegworth Nursing Home Bayswift Ltd,SOCIAL SERVICES RESIDENTIAL,People's Services,Nursing Care Short Term,A56026
London Borough of Sutton,12/04/2024,50482705,"4,096.12",Chegworth Nursing Home Bayswift Ltd,SOCIAL SERVICES RESIDENTIAL,People's Services,Nursing Care - Ext Provider,A56025
London Borough of Sutton,12/04/2024,50482705,-878.84,Chegworth Nursing Home Bayswift Ltd,SOCIAL SERVICES RESIDENTIAL,People's Services,Nursing Care - 3rd party top up payment,A56023
London Borough of Sutton,12/04/2024,50482711,-878.84,Chegworth Nursing Home Bayswift Ltd,SOCIAL SERVICES RESIDENTIAL,People's Services,Nursing Care - 3rd party top up payment,A56023
London Borough of Sutton,12/04/2024,50482711,"4,096.12",Chegworth Nursing Home Bayswift Ltd,SOCIAL SERVICES RESIDENTIAL,People's Services,Nursing Care - Ext Provider,A56025
London Borough of Sutton,12/04/2024,50482741,-878.84,Chegworth Nursing Home Bayswift Ltd,SOCIAL SERVICES RESIDENTIAL,People's Services,Nursing Care - 3rd party top up payment,A56023
London Borough of Sutton,12/04/2024,50482741,"4,096.12",Chegworth Nursing Home Bayswift Ltd,SOCIAL SERVICES RESIDENTIAL,People's Services,Nursing Care - Ext Provider,A56025
London Borough of Sutton,12/04/2024,50482751,"4,150.40",Chegworth Nursing Home Bayswift Ltd,SOCIAL SERVICES RESIDENTIAL,People's Services,Nursing Care - Ext Provider,A56025
London Borough of Sutton,12/04/2024,50482812,-878.84,Chegworth Nursing Home Bayswift Ltd,SOCIAL SERVICES RESIDENTIAL,People's Services,Nursing Care - 3rd party top up payment,A56023
London Borough of Sutton,12/04/2024,50482812,"4,560.00",Chegworth Nursing Home Bayswift Ltd,SOCIAL SERVICES RESIDENTIAL,People's Services,Nursing Care Short Term,A56026
London Borough of Sutton,12/04/2024,50482829,"1,685.71",Chegworth Nursing Home Bayswift Ltd,SOCIAL SERVICES RESIDENTIAL,People's Services,Nursing Care - Ext Provider,A56025
London Borough of Sutton,12/04/2024,50482829,-336.97,Chegworth Nursing Home Bayswift Ltd,SOCIAL SERVICES RESIDENTIAL,People's Services,Nursing Care - 3rd party top up payment,A56023
London Borough of Sutton,12/04/2024,50482861,-878.84,Chegworth Nursing Home Bayswift Ltd,SOCIAL SERVICES RESIDENTIAL,People's Services,Nursing Care - 3rd party top up payment,A56023
London Borough of Sutton,12/04/2024,50482861,"4,096.12",Chegworth Nursing Home Bayswift Ltd,SOCIAL SERVICES RESIDENTIAL,People's Services,Nursing Care Short Term,A56026
London Borough of Sutton,12/04/2024,50482877,"4,400.00",Chegworth Nursing Home Bayswift Ltd,SOCIAL SERVICES RESIDENTIAL,People's Services,Nursing Care - Ext Provider,A56025
London Borough of Sutton,12/04/2024,50482877,-878.84,Chegworth Nursing Home Bayswift Ltd,SOCIAL SERVICES RESIDENTIAL,People's Services,Nursing Care - 3rd party top up payment,A56023
London Borough of Sutton,12/04/2024,50482882,-878.84,Chegworth Nursing Home Bayswift Ltd,SOCIAL SERVICES RESIDENTIAL,People's Services,Nursing Care - 3rd party top up payment,A56023
London Borough of Sutton,12/04/2024,50482882,"4,560.00",Chegworth Nursing Home Bayswift Ltd,SOCIAL SERVICES RESIDENTIAL,People's Services,Nursing Care Short Term,A56026
London Borough of Sutton,12/04/2024,50482890,"4,560.00",Chegworth Nursing Home Bayswift Ltd,SOCIAL SERVICES RESIDENTIAL,People's Services,Nursing Care - Ext Provider,A56025
London Borough of Sutton,12/04/2024,50482890,-878.84,Chegworth Nursing Home Bayswift Ltd,SOCIAL SERVICES RESIDENTIAL,People's Services,Nursing Care - 3rd party top up payment,A56023
London Borough of Sutton,12/04/2024,50482897,"4,096.12",Chegworth Nursing Home Bayswift Ltd,SOCIAL SERVICES RESIDENTIAL,People's Services,Nursing Care - Ext Provider,A56025
London Borough of Sutton,12/04/2024,50482897,-878.84,Chegworth Nursing Home Bayswift Ltd,SOCIAL SERVICES RESIDENTIAL,People's Services,Nursing Care - 3rd party top up payment,A56023
London Borough of Sutton,12/04/2024,50482899,"4,096.12",Chegworth Nursing Home Bayswift Ltd,SOCIAL SERVICES RESIDENTIAL,People's Services,Nursing Care - Ext Provider,A56025
London Borough of Sutton,12/04/2024,50482899,-878.84,Chegworth Nursing Home Bayswift Ltd,SOCIAL SERVICES RESIDENTIAL,People's Services,Nursing Care - 3rd party top up payment,A56023
London Borough of Sutton,12/04/2024,50482906,-878.84,Chegworth Nursing Home Bayswift Ltd,SOCIAL SERVICES RESIDENTIAL,People's Services,Nursing Care - 3rd party top up payment,A56023
London Borough of Sutton,12/04/2024,50482906,"4,096.12",Chegworth Nursing Home Bayswift Ltd,SOCIAL SERVICES RESIDENTIAL,People's Services,Nursing Care Short Term,A56026
London Borough of Sutton,14/04/2024,20074454,"13,725.00",Chelsea Studios Ltd,ACCOMMODATION BED & BREAKFAST,Environment Housing and Neighbourhoods,Temporary Protection - Homeless Persons,A62028
London Borough of Sutton,12/04/2024,50482367,"4,443.40",CARELODGES GROUP LIMITED,SOCIAL SERVICES RESIDENTIAL,People's Services,Residential Care - Ext Provider,A56114
London Borough of Sutton,12/04/2024,50482454,-508.04,CARELODGES GROUP LIMITED,SOCIAL SERVICES RESIDENTIAL,People's Services,Residential Care - Client Cont ( Net Paymt ),A56113
London Borough of Sutton,12/04/2024,50482454,"5,159.40",CARELODGES GROUP LIMITED,SOCIAL SERVICES RESIDENTIAL,People's Services,Residential Care - Ext Provider,A56114
London Borough of Sutton,28/03/2024,20075097,"5,061.00",Children's Trust,CHILDREN'S SERVICES - DAY CARE,People's Services,Respite Care,A56116
London Borough of Sutton,09/04/2024,50483815,"7,237.80",Children's Trust,CHILDREN'S SERVICES - DAY CARE,People's Services,Independent School Fees,A56002
London Borough of Sutton,09/04/2024,50483817,"6,975.00",Children's Trust,CHILDREN'S SERVICES - DAY CARE,People's Services,Independent School Fees,A56002
London Borough of Sutton,09/04/2024,50483818,"7,237.80",Children's Trust,CHILDREN'S SERVICES - DAY CARE,People's Services,Independent School Fees,A56002
London Borough of Sutton,09/04/2024,50483819,"6,992.70",Children's Trust,CHILDREN'S SERVICES - DAY CARE,People's Services,Independent School Fees,A56002
London Borough of Sutton,09/04/2024,50481093,"1,993.95",Chiltern Day Nursery,ACADEMIC INSTNS - OTHER,People's Services,Payment - Nursery Funding,A51056
London Borough of Sutton,30/04/2024,50488766,"1,993.95",Chiltern Day Nursery,ACADEMIC INSTNS - OTHER,People's Services,Payment - Nursery Funding,A51056
London Borough of Sutton,12/04/2024,50482627,"7,809.32",Choice Care Group (Surrey) Ltd,SOCIAL SERVICES RESIDENTIAL,People's Services,Residential Care - Ext Provider,A56114
London Borough of Sutton,12/04/2024,50482681,"7,512.24",Choice Care Group (Surrey) Ltd,SOCIAL SERVICES RESIDENTIAL,People's Services,Residential Care - Ext Provider,A56114
London Borough of Sutton,12/04/2024,50482825,"8,682.92",Choice Care Group (Surrey) Ltd,SOCIAL SERVICES RESIDENTIAL,People's Services,Residential Care - Ext Provider,A56114
London Borough of Sutton,12/04/2024,50482854,"8,769.56",Choice Care Group (Surrey) Ltd,SOCIAL SERVICES RESIDENTIAL,People's Services,Residential Care - Ext Provider,A56114
London Borough of Sutton,12/04/2024,50482895,"8,863.92",Choice Care Group (Surrey) Ltd,SOCIAL SERVICES RESIDENTIAL,People's Services,Residential Care - Ext Provider,A56114
London Borough of Sutton,28/03/2024,20073118,"1,650.40",Choice Support,GRANTS & EX GRATIA PAYMENTS,People's Services,Provider Contract Payments,A44290
London Borough of Sutton,28/03/2024,20073119,"1,872.52",Choice Support,GRANTS & EX GRATIA PAYMENTS,People's Services,Provider Contract Payments,A44290
London Borough of Sutton,28/03/2024,20073120,"1,650.40",Choice Support,GRANTS & EX GRATIA PAYMENTS,People's Services,Provider Contract Payments,A44290
London Borough of Sutton,28/03/2024,20073121,"2,116.64",Choice Support,GRANTS & EX GRATIA PAYMENTS,People's Services,Provider Contract Payments,A44290
London Borough of Sutton,28/03/2024,20073122,"1,788.44",Choice Support,GRANTS & EX GRATIA PAYMENTS,People's Services,Provider Contract Payments,A44290
London Borough of Sutton,28/03/2024,20073123,"1,650.40",Choice Support,GRANTS & EX GRATIA PAYMENTS,People's Services,Provider Contract Payments,A44290
London Borough of Sutton,27/02/2024,50480703,"6,484.68",Choice Support,GRANTS & EX GRATIA PAYMENTS,People's Services,Home Care Services,A56019
London Borough of Sutton,27/02/2024,50480959,"1,752.30",Choice Support,GRANTS & EX GRATIA PAYMENTS,People's Services,Supported Living,A56088
London Borough of Sutton,27/02/2024,50480959,826.01,Choice Support,GRANTS & EX GRATIA PAYMENTS,People's Services,Supported Living,A56088
London Borough of Sutton,27/02/2024,50480959,308.67,Choice Support,GRANTS & EX GRATIA PAYMENTS,People's Services,Supported Living,A56088
London Borough of Sutton,27/02/2024,50480959,"1,745.74",Choice Support,GRANTS & EX GRATIA PAYMENTS,People's Services,Supported Living,A56088
London Borough of Sutton,27/02/2024,50480960,"1,626.47",Choice Support,GRANTS & EX GRATIA PAYMENTS,People's Services,Supported Living,A56088
London Borough of Sutton,27/02/2024,50480960,826.01,Choice Support,GRANTS & EX GRATIA PAYMENTS,People's Services,Supported Living,A56088
London Borough of Sutton,27/02/2024,50480960,308.67,Choice Support,GRANTS & EX GRATIA PAYMENTS,People's Services,Supported Living,A56088
London Borough of Sutton,27/02/2024,50480960,"2,897.17",Choice Support,GRANTS & EX GRATIA PAYMENTS,People's Services,Supported Living,A56088
London Borough of Sutton,21/03/2024,50480961,"1,834.78",Choice Support,GRANTS & EX GRATIA PAYMENTS,People's Services,Supported Living,A56088
London Borough of Sutton,21/03/2024,50480961,630.38,Choice Support,GRANTS & EX GRATIA PAYMENTS,People's Services,Supported Living,A56088
London Borough of Sutton,21/03/2024,50480961,235.56,Choice Support,GRANTS & EX GRATIA PAYMENTS,People's Services,Supported Living,A56088
London Borough of Sutton,21/03/2024,50480961,"1,633.12",Choice Support,GRANTS & EX GRATIA PAYMENTS,People's Services,Supported Living,A56088
London Borough of Sutton,21/03/2024,50480962,"1,564.90",Choice Support,GRANTS & EX GRATIA PAYMENTS,People's Services,Supported Living,A56088
London Borough of Sutton,21/03/2024,50480962,782.54,Choice Support,GRANTS & EX GRATIA PAYMENTS,People's Services,Supported Living,A56088
London Borough of Sutton,21/03/2024,50480962,235.56,Choice Support,GRANTS & EX GRATIA PAYMENTS,People's Services,Supported Living,A56088
London Borough of Sutton,21/03/2024,50480962,"2,710.26",Choice Support,GRANTS & EX GRATIA PAYMENTS,People's Services,Supported Living,A56088
London Borough of Sutton,27/02/2024,50480963,"6,008.70",Choice Support,GRANTS & EX GRATIA PAYMENTS,People's Services,Supported Living,A56088
London Borough of Sutton,27/02/2024,50480963,"1,156.39",Choice Support,GRANTS & EX GRATIA PAYMENTS,People's Services,Supported Living,A56088
London Borough of Sutton,21/03/2024,50480964,"5,607.29",Choice Support,GRANTS & EX GRATIA PAYMENTS,People's Services,Supported Living,A56088
London Borough of Sutton,21/03/2024,50480964,"1,095.54",Choice Support,GRANTS & EX GRATIA PAYMENTS,People's Services,Supported Living,A56088
London Borough of Sutton,21/03/2024,50480966,"5,584.89",Choice Support,GRANTS & EX GRATIA PAYMENTS,People's Services,Supported Living,A56088
London Borough of Sutton,21/03/2024,50480966,"1,095.54",Choice Support,GRANTS & EX GRATIA PAYMENTS,People's Services,Supported Living,A56088
London Borough of Sutton,27/02/2024,50480967,"5,984.75",Choice Support,GRANTS & EX GRATIA PAYMENTS,People's Services,Supported Living,A56088
London Borough of Sutton,27/02/2024,50480967,"1,156.39",Choice Support,GRANTS & EX GRATIA PAYMENTS,People's Services,Supported Living,A56088
London Borough of Sutton,27/02/2024,50480969,"6,743.29",Choice Support,GRANTS & EX GRATIA PAYMENTS,People's Services,Supported Living,A56088
London Borough of Sutton,27/02/2024,50480969,673.85,Choice Support,GRANTS & EX GRATIA PAYMENTS,People's Services,Supported Living,A56088
London Borough of Sutton,27/02/2024,50480969,251.81,Choice Support,GRANTS & EX GRATIA PAYMENTS,People's Services,Supported Living,A56088
London Borough of Sutton,21/03/2024,50480970,"6,096.96",Choice Support,GRANTS & EX GRATIA PAYMENTS,People's Services,Supported Living,A56088
London Borough of Sutton,21/03/2024,50480970,782.54,Choice Support,GRANTS & EX GRATIA PAYMENTS,People's Services,Supported Living,A56088
London Borough of Sutton,21/03/2024,50480970,294.68,Choice Support,GRANTS & EX GRATIA PAYMENTS,People's Services,Supported Living,A56088
London Borough of Sutton,21/03/2024,50480972,"2,975.95",Choice Support,GRANTS & EX GRATIA PAYMENTS,People's Services,Supported Living,A56088
London Borough of Sutton,21/03/2024,50480972,782.54,Choice Support,GRANTS & EX GRATIA PAYMENTS,People's Services,Supported Living,A56088
London Borough of Sutton,21/03/2024,50480972,349.28,Choice Support,GRANTS & EX GRATIA PAYMENTS,People's Services,Supported Living,A56088
London Borough of Sutton,21/03/2024,50480972,"3,448.44",Choice Support,GRANTS & EX GRATIA PAYMENTS,People's Services,Supported Living,A56088
London Borough of Sutton,27/02/2024,50480973,"3,465.42",Choice Support,GRANTS & EX GRATIA PAYMENTS,People's Services,Supported Living,A56088
London Borough of Sutton,27/02/2024,50480973,673.85,Choice Support,GRANTS & EX GRATIA PAYMENTS,People's Services,Supported Living,A56088
London Borough of Sutton,27/02/2024,50480973,251.81,Choice Support,GRANTS & EX GRATIA PAYMENTS,People's Services,Supported Living,A56088
London Borough of Sutton,27/02/2024,50480973,"3,686.25",Choice Support,GRANTS & EX GRATIA PAYMENTS,People's Services,Supported Living,A56088
London Borough of Sutton,21/03/2024,50480974,"1,439.05",Choice Support,GRANTS & EX GRATIA PAYMENTS,People's Services,Supported Living,A56088
London Borough of Sutton,21/03/2024,50480974,782.54,Choice Support,GRANTS & EX GRATIA PAYMENTS,People's Services,Supported Living,A56088
London Borough of Sutton,21/03/2024,50480974,235.56,Choice Support,GRANTS & EX GRATIA PAYMENTS,People's Services,Supported Living,A56088
London Borough of Sutton,21/03/2024,50480974,"2,250.06",Choice Support,GRANTS & EX GRATIA PAYMENTS,People's Services,Supported Living,A56088
London Borough of Sutton,27/02/2024,50480975,"1,700.94",Choice Support,GRANTS & EX GRATIA PAYMENTS,People's Services,Supported Living,A56088
London Borough of Sutton,27/02/2024,50480975,673.85,Choice Support,GRANTS & EX GRATIA PAYMENTS,People's Services,Supported Living,A56088
London Borough of Sutton,27/02/2024,50480975,251.81,Choice Support,GRANTS & EX GRATIA PAYMENTS,People's Services,Supported Living,A56088
London Borough of Sutton,27/02/2024,50480975,"2,405.25",Choice Support,GRANTS & EX GRATIA PAYMENTS,People's Services,Supported Living,A56088
London Borough of Sutton,27/02/2024,50480976,"6,580.16",Choice Support,GRANTS & EX GRATIA PAYMENTS,People's Services,Supported Living,A56088
London Borough of Sutton,27/02/2024,50480976,943.37,Choice Support,GRANTS & EX GRATIA PAYMENTS,People's Services,Supported Living,A56088
London Borough of Sutton,27/02/2024,50480976,760.39,Choice Support,GRANTS & EX GRATIA PAYMENTS,People's Services,Supported Living,A56088
London Borough of Sutton,21/03/2024,50480977,"6,155.63",Choice Support,GRANTS & EX GRATIA PAYMENTS,People's Services,Supported Living,A56088
London Borough of Sutton,21/03/2024,50480977,882.52,Choice Support,GRANTS & EX GRATIA PAYMENTS,People's Services,Supported Living,A56088
London Borough of Sutton,21/03/2024,50480977,711.32,Choice Support,GRANTS & EX GRATIA PAYMENTS,People's Services,Supported Living,A56088
London Borough of Sutton,12/04/2024,50482444,"5,887.60",Choice Support,GRANTS & EX GRATIA PAYMENTS,People's Services,Residential Care - Ext Provider,A56114
London Borough of Sutton,02/04/2024,50483727,"6,672.61",Choice Support,GRANTS & EX GRATIA PAYMENTS,People's Services,Supported Living,A56088
London Borough of Sutton,02/04/2024,50483727,"1,297.17",Choice Support,GRANTS & EX GRATIA PAYMENTS,People's Services,Supported Living,A56088
London Borough of Sutton,02/04/2024,50483727,"1,629.36",Choice Support,GRANTS & EX GRATIA PAYMENTS,People's Services,Supported Living,A56088
London Borough of Sutton,23/04/2024,50485088,623.23,Choice Support,GRANTS & EX GRATIA PAYMENTS,People's Services,Supported Living,A56088
London Borough of Sutton,23/04/2024,50485089,"4,617.77",Choice Support,GRANTS & EX GRATIA PAYMENTS,People's Services,Supported Living,A56088
London Borough of Sutton,23/04/2024,50485089,"1,141.20",Choice Support,GRANTS & EX GRATIA PAYMENTS,People's Services,Supported Living,A56088
London Borough of Sutton,23/04/2024,50485090,"8,409.60",Choice Support,GRANTS & EX GRATIA PAYMENTS,People's Services,Supported Living,A56088
London Borough of Sutton,23/04/2024,50485090,"1,901.74",Choice Support,GRANTS & EX GRATIA PAYMENTS,People's Services,Supported Living,A56088
London Borough of Sutton,23/04/2024,50485098,"3,990.64",Choice Support,GRANTS & EX GRATIA PAYMENTS,People's Services,Supported Living,A56088
London Borough of Sutton,23/04/2024,50485098,492.64,Choice Support,GRANTS & EX GRATIA PAYMENTS,People's Services,Supported Living,A56088
London Borough of Sutton,23/04/2024,50485098,114.09,Choice Support,GRANTS & EX GRATIA PAYMENTS,People's Services,Supported Living,A56088
London Borough of Sutton,23/04/2024,50485101,"-4,130.92",Choice Support,GRANTS & EX GRATIA PAYMENTS,People's Services,Supported Living,A56088
London Borough of Sutton,23/04/2024,50485104,"1,238.91",Choice Support,GRANTS & EX GRATIA PAYMENTS,People's Services,Supported Living,A56088
London Borough of Sutton,23/04/2024,50485104,"5,593.89",Choice Support,GRANTS & EX GRATIA PAYMENTS,People's Services,Supported Living,A56088
London Borough of Sutton,23/04/2024,50485104,"1,141.20",Choice Support,GRANTS & EX GRATIA PAYMENTS,People's Services,Supported Living,A56088
London Borough of Sutton,23/04/2024,50485105,"1,238.91",Choice Support,GRANTS & EX GRATIA PAYMENTS,People's Services,Supported Living,A56088
London Borough of Sutton,23/04/2024,50485105,"3,266.23",Choice Support,GRANTS & EX GRATIA PAYMENTS,People's Services,Supported Living,A56088
London Borough of Sutton,23/04/2024,50485105,"1,141.20",Choice Support,GRANTS & EX GRATIA PAYMENTS,People's Services,Supported Living,A56088
London Borough of Sutton,23/04/2024,50485113,525.60,Choice Support,GRANTS & EX GRATIA PAYMENTS,People's Services,Supported Living,A56088
London Borough of Sutton,23/04/2024,50485113,426.47,Choice Support,GRANTS & EX GRATIA PAYMENTS,People's Services,Supported Living,A56088
London Borough of Sutton,23/04/2024,50485113,"2,027.31",Choice Support,GRANTS & EX GRATIA PAYMENTS,People's Services,Supported Living,A56088
London Borough of Sutton,23/04/2024,50485117,"1,924.37",Choice Support,GRANTS & EX GRATIA PAYMENTS,People's Services,Supported Living,A56088
London Borough of Sutton,23/04/2024,50485117,"1,141.20",Choice Support,GRANTS & EX GRATIA PAYMENTS,People's Services,Supported Living,A56088
London Borough of Sutton,23/04/2024,50485117,"1,238.91",Choice Support,GRANTS & EX GRATIA PAYMENTS,People's Services,Supported Living,A56088
London Borough of Sutton,23/04/2024,50485119,"1,443.90",Choice Support,GRANTS & EX GRATIA PAYMENTS,People's Services,Supported Living,A56088
London Borough of Sutton,23/04/2024,50485119,492.64,Choice Support,GRANTS & EX GRATIA PAYMENTS,People's Services,Supported Living,A56088
London Borough of Sutton,23/04/2024,50485119,627.39,Choice Support,GRANTS & EX GRATIA PAYMENTS,People's Services,Supported Living,A56088
London Borough of Sutton,23/04/2024,50485119,"3,818.70",Choice Support,GRANTS & EX GRATIA PAYMENTS,People's Services,Supported Living,A56088
London Borough of Sutton,23/04/2024,50485123,"1,238.91",Choice Support,GRANTS & EX GRATIA PAYMENTS,People's Services,Supported Living,A56088
London Borough of Sutton,23/04/2024,50485123,"5,481.26",Choice Support,GRANTS & EX GRATIA PAYMENTS,People's Services,Supported Living,A56088
London Borough of Sutton,23/04/2024,50485123,"1,141.20",Choice Support,GRANTS & EX GRATIA PAYMENTS,People's Services,Supported Living,A56088
London Borough of Sutton,23/04/2024,50485125,"1,238.91",Choice Support,GRANTS & EX GRATIA PAYMENTS,People's Services,Supported Living,A56088
London Borough of Sutton,23/04/2024,50485125,"3,378.86",Choice Support,GRANTS & EX GRATIA PAYMENTS,People's Services,Supported Living,A56088
London Borough of Sutton,23/04/2024,50485125,"1,141.20",Choice Support,GRANTS & EX GRATIA PAYMENTS,People's Services,Supported Living,A56088
London Borough of Sutton,23/04/2024,50485129,"3,555.30",Choice Support,GRANTS & EX GRATIA PAYMENTS,People's Services,Supported Living,A56088
London Borough of Sutton,23/04/2024,50485135,300.34,Choice Support,GRANTS & EX GRATIA PAYMENTS,People's Services,Supported Living,A56088
London Borough of Sutton,23/04/2024,50485135,426.47,Choice Support,GRANTS & EX GRATIA PAYMENTS,People's Services,Supported Living,A56088
London Borough of Sutton,23/04/2024,50485135,"2,027.31",Choice Support,GRANTS & EX GRATIA PAYMENTS,People's Services,Supported Living,A56088
London Borough of Sutton,23/04/2024,50485136,623.23,Choice Support,GRANTS & EX GRATIA PAYMENTS,People's Services,Supported Living,A56088
London Borough of Sutton,23/04/2024,50485136,"5,143.37",Choice Support,GRANTS & EX GRATIA PAYMENTS,People's Services,Supported Living,A56088
London Borough of Sutton,23/04/2024,50485136,"1,141.20",Choice Support,GRANTS & EX GRATIA PAYMENTS,People's Services,Supported Living,A56088
London Borough of Sutton,23/04/2024,50485137,"6,401.06",Choice Support,GRANTS & EX GRATIA PAYMENTS,People's Services,Supported Living,A56088
London Borough of Sutton,23/04/2024,50485137,"1,197.64",Choice Support,GRANTS & EX GRATIA PAYMENTS,People's Services,Supported Living,A56088
London Borough of Sutton,23/04/2024,50485140,"1,451.14",Choice Support,GRANTS & EX GRATIA PAYMENTS,People's Services,Supported Living,A56088
London Borough of Sutton,23/04/2024,50485140,492.64,Choice Support,GRANTS & EX GRATIA PAYMENTS,People's Services,Supported Living,A56088
London Borough of Sutton,23/04/2024,50485140,114.09,Choice Support,GRANTS & EX GRATIA PAYMENTS,People's Services,Supported Living,A56088
London Borough of Sutton,23/04/2024,50485140,"2,249.27",Choice Support,GRANTS & EX GRATIA PAYMENTS,People's Services,Supported Living,A56088
London Borough of Sutton,23/04/2024,50485143,"2,466.94",Choice Support,GRANTS & EX GRATIA PAYMENTS,People's Services,Supported Living,A56088
London Borough of Sutton,23/04/2024,50485143,492.64,Choice Support,GRANTS & EX GRATIA PAYMENTS,People's Services,Supported Living,A56088
London Borough of Sutton,23/04/2024,50485143,114.09,Choice Support,GRANTS & EX GRATIA PAYMENTS,People's Services,Supported Living,A56088
London Borough of Sutton,23/04/2024,50485143,"1,813.93",Choice Support,GRANTS & EX GRATIA PAYMENTS,People's Services,Supported Living,A56088
London Borough of Sutton,23/04/2024,50485153,"1,238.91",Choice Support,GRANTS & EX GRATIA PAYMENTS,People's Services,Supported Living,A56088
London Borough of Sutton,23/04/2024,50485153,"3,303.77",Choice Support,GRANTS & EX GRATIA PAYMENTS,People's Services,Supported Living,A56088
London Borough of Sutton,23/04/2024,50485153,"1,141.20",Choice Support,GRANTS & EX GRATIA PAYMENTS,People's Services,Supported Living,A56088
London Borough of Sutton,23/04/2024,50485158,"5,293.54",Choice Support,GRANTS & EX GRATIA PAYMENTS,People's Services,Supported Living,A56088
London Borough of Sutton,23/04/2024,50485158,"1,901.74",Choice Support,GRANTS & EX GRATIA PAYMENTS,People's Services,Supported Living,A56088
London Borough of Sutton,23/04/2024,50485159,513.07,Choice Support,GRANTS & EX GRATIA PAYMENTS,People's Services,Supported Living,A56088
London Borough of Sutton,23/04/2024,50485159,"4,880.57",Choice Support,GRANTS & EX GRATIA PAYMENTS,People's Services,Supported Living,A56088
London Borough of Sutton,23/04/2024,50485159,"1,178.60",Choice Support,GRANTS & EX GRATIA PAYMENTS,People's Services,Supported Living,A56088
London Borough of Sutton,23/04/2024,50485160,623.23,Choice Support,GRANTS & EX GRATIA PAYMENTS,People's Services,Supported Living,A56088
London Borough of Sutton,23/04/2024,50485160,"5,143.37",Choice Support,GRANTS & EX GRATIA PAYMENTS,People's Services,Supported Living,A56088
London Borough of Sutton,23/04/2024,50485160,"1,141.20",Choice Support,GRANTS & EX GRATIA PAYMENTS,People's Services,Supported Living,A56088
London Borough of Sutton,23/04/2024,50485161,"1,576.80",Choice Support,GRANTS & EX GRATIA PAYMENTS,People's Services,Supported Living,A56088
London Borough of Sutton,23/04/2024,50485161,426.47,Choice Support,GRANTS & EX GRATIA PAYMENTS,People's Services,Supported Living,A56088
London Borough of Sutton,23/04/2024,50485161,"2,027.31",Choice Support,GRANTS & EX GRATIA PAYMENTS,People's Services,Supported Living,A56088
London Borough of Sutton,23/04/2024,50485164,"1,672.46",Choice Support,GRANTS & EX GRATIA PAYMENTS,People's Services,Supported Living,A56088
London Borough of Sutton,23/04/2024,50485164,492.64,Choice Support,GRANTS & EX GRATIA PAYMENTS,People's Services,Supported Living,A56088
London Borough of Sutton,23/04/2024,50485164,627.39,Choice Support,GRANTS & EX GRATIA PAYMENTS,People's Services,Supported Living,A56088
London Borough of Sutton,23/04/2024,50485164,"2,363.91",Choice Support,GRANTS & EX GRATIA PAYMENTS,People's Services,Supported Living,A56088
London Borough of Sutton,23/04/2024,50485165,"1,708.71",Choice Support,GRANTS & EX GRATIA PAYMENTS,People's Services,Supported Living,A56088
London Borough of Sutton,23/04/2024,50485165,492.64,Choice Support,GRANTS & EX GRATIA PAYMENTS,People's Services,Supported Living,A56088
London Borough of Sutton,23/04/2024,50485165,627.39,Choice Support,GRANTS & EX GRATIA PAYMENTS,People's Services,Supported Living,A56088
London Borough of Sutton,23/04/2024,50485165,"2,430.69",Choice Support,GRANTS & EX GRATIA PAYMENTS,People's Services,Supported Living,A56088
London Borough of Sutton,23/04/2024,50485177,623.23,Choice Support,GRANTS & EX GRATIA PAYMENTS,People's Services,Supported Living,A56088
London Borough of Sutton,23/04/2024,50485177,"4,955.66",Choice Support,GRANTS & EX GRATIA PAYMENTS,People's Services,Supported Living,A56088
London Borough of Sutton,23/04/2024,50485177,"1,141.20",Choice Support,GRANTS & EX GRATIA PAYMENTS,People's Services,Supported Living,A56088
London Borough of Sutton,23/04/2024,50485178,"4,730.40",Choice Support,GRANTS & EX GRATIA PAYMENTS,People's Services,Supported Living,A56088
London Borough of Sutton,23/04/2024,50485178,426.47,Choice Support,GRANTS & EX GRATIA PAYMENTS,People's Services,Supported Living,A56088
London Borough of Sutton,23/04/2024,50485178,"2,027.31",Choice Support,GRANTS & EX GRATIA PAYMENTS,People's Services,Supported Living,A56088
London Borough of Sutton,23/04/2024,50485180,"1,681.89",Choice Support,GRANTS & EX GRATIA PAYMENTS,People's Services,Supported Living,A56088
London Borough of Sutton,23/04/2024,50485180,492.64,Choice Support,GRANTS & EX GRATIA PAYMENTS,People's Services,Supported Living,A56088
London Borough of Sutton,23/04/2024,50485180,627.39,Choice Support,GRANTS & EX GRATIA PAYMENTS,People's Services,Supported Living,A56088
London Borough of Sutton,23/04/2024,50485180,"2,394.39",Choice Support,GRANTS & EX GRATIA PAYMENTS,People's Services,Supported Living,A56088
London Borough of Sutton,23/04/2024,50485184,"1,238.91",Choice Support,GRANTS & EX GRATIA PAYMENTS,People's Services,Supported Living,A56088
London Borough of Sutton,23/04/2024,50485184,"3,266.23",Choice Support,GRANTS & EX GRATIA PAYMENTS,People's Services,Supported Living,A56088
London Borough of Sutton,23/04/2024,50485184,"1,141.20",Choice Support,GRANTS & EX GRATIA PAYMENTS,People's Services,Supported Living,A56088
London Borough of Sutton,23/04/2024,50485192,515.07,Choice Support,GRANTS & EX GRATIA PAYMENTS,People's Services,Supported Living,A56088
London Borough of Sutton,23/04/2024,50485192,"4,644.05",Choice Support,GRANTS & EX GRATIA PAYMENTS,People's Services,Supported Living,A56088
London Borough of Sutton,23/04/2024,50485192,"1,177.92",Choice Support,GRANTS & EX GRATIA PAYMENTS,People's Services,Supported Living,A56088
London Borough of Sutton,23/04/2024,50485210,"1,238.91",Choice Support,GRANTS & EX GRATIA PAYMENTS,People's Services,Supported Living,A56088
London Borough of Sutton,23/04/2024,50485210,"3,453.94",Choice Support,GRANTS & EX GRATIA PAYMENTS,People's Services,Supported Living,A56088
London Borough of Sutton,23/04/2024,50485210,"1,141.20",Choice Support,GRANTS & EX GRATIA PAYMENTS,People's Services,Supported Living,A56088
London Borough of Sutton,19/04/2024,50488657,943.37,Choice Support,GRANTS & EX GRATIA PAYMENTS,People's Services,Supported Living,A56088
London Borough of Sutton,19/04/2024,50488657,"5,318.74",Choice Support,GRANTS & EX GRATIA PAYMENTS,People's Services,Supported Living,A56088
London Borough of Sutton,09/04/2024,50481094,"14,812.20",Christchurch Fledgelings Pre-School,ACADEMIC INSTNS - OTHER,People's Services,Payment - Nursery Funding,A51056
London Borough of Sutton,09/04/2024,50481217,"4,687.65",Christchurch Fledgelings Pre-School,ACADEMIC INSTNS - OTHER,People's Services,Payment - Nursery Funding,A51056
London Borough of Sutton,30/04/2024,50488767,"14,812.20",Christchurch Fledgelings Pre-School,ACADEMIC INSTNS - OTHER,People's Services,Payment - Nursery Funding,A51056
London Borough of Sutton,30/04/2024,50488891,"4,687.65",Christchurch Fledgelings Pre-School,ACADEMIC INSTNS - OTHER,People's Services,Payment - Nursery Funding,A51056
London Borough of Sutton,09/04/2024,50481174,854.55,REDACTED - PERSONAL DATA,GRANTS & EX GRATIA PAYMENTS,People's Services,Payment - Nursery Funding,A51056
London Borough of Sutton,30/04/2024,50488848,854.55,REDACTED - PERSONAL DATA,GRANTS & EX GRATIA PAYMENTS,People's Services,Payment - Nursery Funding,A51056
London Borough of Sutton,09/04/2024,50481149,547.20,REDACTED - PERSONAL DATA,CHILDMINDERS START UP GRANT,People's Services,Payment - Nursery Funding,A51056
London Borough of Sutton,30/04/2024,50488822,547.20,REDACTED - PERSONAL DATA,CHILDMINDERS START UP GRANT,People's Services,Payment - Nursery Funding,A51056
London Borough of Sutton,08/03/2024,20073366,"1,096.98",KEYNYONS ESTATE AGENTS,GRANTS & EX GRATIA PAYMENTS,Environment Housing and Neighbourhoods,Temporary Protection - Homeless Persons,A62028
London Borough of Sutton,08/04/2024,20075149,"1,096.98",KEYNYONS ESTATE AGENTS,GRANTS & EX GRATIA PAYMENTS,Environment Housing and Neighbourhoods,Temporary Protection - Homeless Persons,A62028
London Borough of Sutton,03/04/2024,20073442,"1,120.10",Chroma Vision Limited,AGRICULTURAL & ESTATE SERVICES,Environment Housing and Neighbourhoods,Transaction Charges,A44251
London Borough of Sutton,23/04/2024,20074891,"57,701.25",Chroma Vision Limited,AGRICULTURAL & ESTATE SERVICES,Environment Housing and Neighbourhoods,Equipment And Materials Repairs & Maintenance,A40051
London Borough of Sutton,23/04/2024,20074891,"10,743.07",Chroma Vision Limited,AGRICULTURAL & ESTATE SERVICES,Environment Housing and Neighbourhoods,Equipment And Materials Repairs & Maintenance,A40051
London Borough of Sutton,04/04/2024,20073590,"44,699.78",CIPFA,SUBSCRIPTIONS & PUBLICATIONS,Resources,Staff Professional Membership Fees Non Payroll,A15025
London Borough of Sutton,09/04/2024,50479811,"7,408.43",Barrow Hedges Primary School Academy,SCHOOL FUNDS,Environment Housing and Neighbourhoods,Other payments to schools,A51023
London Borough of Sutton,09/04/2024,50479887,"2,064.60",Barrow Hedges Primary School Academy,SCHOOL FUNDS,People's Services,Payment - Nursery Funding,A51056
London Borough of Sutton,09/04/2024,50480995,"18,230.40",Barrow Hedges Primary School Academy,SCHOOL FUNDS,People's Services,Payment - Nursery Funding,A51056
London Borough of Sutton,31/03/2024,20075122,"2,452.00",City & Guilds,SUBSCRIPTIONS & PUBLICATIONS,Health and Wellbeing,Examination Fees,A44200
London Borough of Sutton,10/04/2024,20074168,"3,250.00",City of London Corporation,CENTRAL & LOCAL GOVERNMENT,Health and Wellbeing,Provider Contract Payments,A44290
London Borough of Sutton,31/03/2024,20073482,"2,732.16",City Sprint UK (Excel) Ltd,DELIVERY AND COURIER SERVICES,Health and Wellbeing,Hire of Transport - Non Staff,A32000
London Borough of Sutton,01/04/2024,20073236,"1,004.40",Cityglen Ltd,ACCOMMODATION BED & BREAKFAST,People's Services,Approved Lodgings,A61000
London Borough of Sutton,01/04/2024,20073506,"23,079.00",Cityglen Ltd,ACCOMMODATION BED & BREAKFAST,Environment Housing and Neighbourhoods,Bed & Breakfast,A56000
London Borough of Sutton,22/04/2024,20074852,"3,918.26",Civica UK Ltd,BUSINESS & COMPUTER SYSTEMS,Resources,Registration & Licence Fees Payable,A44267
London Borough of Sutton,12/04/2024,50482535,"21,750.66",Claremont Care Svs Ltd,SOCIAL SERVICES RESIDENTIAL,People's Services,Nursing Care Short Term,A56026
London Borough of Sutton,12/04/2024,50482576,"8,748.19",Claremont Care Svs Ltd,SOCIAL SERVICES RESIDENTIAL,People's Services,Nursing Care - Ext Provider,A56025
London Borough of Sutton,12/04/2024,50482576,-878.84,Claremont Care Svs Ltd,SOCIAL SERVICES RESIDENTIAL,People's Services,Nursing Care - 3rd party top up payment,A56023
London Borough of Sutton,12/04/2024,50482617,"6,236.76",Claremont Care Svs Ltd,SOCIAL SERVICES RESIDENTIAL,People's Services,Nursing Care - Ext Provider,A56025
London Borough of Sutton,12/04/2024,50482617,-836.76,Claremont Care Svs Ltd,SOCIAL SERVICES RESIDENTIAL,People's Services,Nursing Care - 3rd party top up payment,A56023
London Borough of Sutton,12/04/2024,50482709,-878.84,Claremont Care Svs Ltd,SOCIAL SERVICES RESIDENTIAL,People's Services,Nursing Care - 3rd party top up payment,A56023
London Borough of Sutton,12/04/2024,50482709,"-5,039.25",Claremont Care Svs Ltd,SOCIAL SERVICES RESIDENTIAL,People's Services,Nursing Care Short Term,A56026
London Borough of Sutton,12/04/2024,50482709,"12,593.57",Claremont Care Svs Ltd,SOCIAL SERVICES RESIDENTIAL,People's Services,Nursing Care - Ext Provider,A56025
London Borough of Sutton,12/04/2024,50482722,"16,818.32",Claremont Care Svs Ltd,SOCIAL SERVICES RESIDENTIAL,People's Services,Nursing Care - Ext Provider,A56025
London Borough of Sutton,12/04/2024,50482722,"-2,348.25",Claremont Care Svs Ltd,SOCIAL SERVICES RESIDENTIAL,People's Services,Nursing Care - 3rd party top up payment,A56023
London Borough of Sutton,12/04/2024,50482730,"4,525.36",Claremont Care Svs Ltd,SOCIAL SERVICES RESIDENTIAL,People's Services,Nursing Care - Ext Provider,A56025
London Borough of Sutton,12/04/2024,50482730,-750.40,Claremont Care Svs Ltd,SOCIAL SERVICES RESIDENTIAL,People's Services,Nursing Care - 3rd party top up payment,A56023
London Borough of Sutton,12/04/2024,50482833,"6,900.00",Claremont Care Svs Ltd,SOCIAL SERVICES RESIDENTIAL,People's Services,Nursing Care - Ext Provider,A56025
London Borough of Sutton,12/04/2024,50482833,"-3,450.00",Claremont Care Svs Ltd,SOCIAL SERVICES RESIDENTIAL,People's Services,Nursing Care - 3rd party top up payment,A56023
London Borough of Sutton,12/04/2024,50482464,-735.68,Bondcare (London) Ltd,SOCIAL SERVICES RESIDENTIAL,People's Services,Nursing Care - 3rd party top up payment,A56023
London Borough of Sutton,12/04/2024,50482464,"3,720.16",Bondcare (London) Ltd,SOCIAL SERVICES RESIDENTIAL,People's Services,Nursing Care - Ext Provider,A56025
London Borough of Sutton,04/03/2024,50479383,"2,495.77",Clear Thinking Care Limited,SOCIAL SERVICES RESIDENTIAL,People's Services,Supported Living,A56088
London Borough of Sutton,25/03/2024,50481987,"2,495.77",Clear Thinking Care Limited,SOCIAL SERVICES RESIDENTIAL,People's Services,Supported Living,A56088
London Borough of Sutton,01/04/2024,50481988,"2,495.77",Clear Thinking Care Limited,SOCIAL SERVICES RESIDENTIAL,People's Services,Supported Living,A56088
London Borough of Sutton,25/03/2024,50484267,"2,495.77",Clear Thinking Care Limited,SOCIAL SERVICES RESIDENTIAL,People's Services,Supported Living,A56088
London Borough of Sutton,23/04/2024,50485149,"5,210.66",CLIA CARE LTD,SOCIAL SERVICES RESIDENTIAL,People's Services,Supported Living,A56088
London Borough of Sutton,23/04/2024,50485149,"-2,605.33",CLIA CARE LTD,SOCIAL SERVICES RESIDENTIAL,People's Services,Nursing Care - 3rd party top up payment,A56023
London Borough of Sutton,23/04/2024,50485191,"1,061.61",CLIA CARE LTD,SOCIAL SERVICES RESIDENTIAL,People's Services,Supported Living,A56088
London Borough of Sutton,23/04/2024,50485191,708.00,CLIA CARE LTD,SOCIAL SERVICES RESIDENTIAL,People's Services,Supported Living,A56088
London Borough of Sutton,23/04/2024,50485191,"3,761.10",CLIA CARE LTD,SOCIAL SERVICES RESIDENTIAL,People's Services,Supported Living,A56088
London Borough of Sutton,23/04/2024,50485191,"2,767.50",CLIA CARE LTD,SOCIAL SERVICES RESIDENTIAL,People's Services,One to One Care,A56108
London Borough of Sutton,23/04/2024,50485191,"-4,149.13",CLIA CARE LTD,SOCIAL SERVICES RESIDENTIAL,People's Services,Nursing Care - 3rd party top up payment,A56023
London Borough of Sutton,23/04/2024,50485212,"7,210.37",CLIA CARE LTD,SOCIAL SERVICES RESIDENTIAL,People's Services,Supported Living,A56088
London Borough of Sutton,23/04/2024,50485212,"-3,605.19",CLIA CARE LTD,SOCIAL SERVICES RESIDENTIAL,People's Services,Nursing Care - 3rd party top up payment,A56023
London Borough of Sutton,05/06/2023,50480274,601.27,Clovecare Ltd,SOCIAL SERVICES RESIDENTIAL,People's Services,Home Care Services,A56019
London Borough of Sutton,05/06/2023,50480274,856.32,Clovecare Ltd,SOCIAL SERVICES RESIDENTIAL,People's Services,Home Care Services,A56019
London Borough of Sutton,21/08/2023,50480275,"1,196.30",Clovecare Ltd,SOCIAL SERVICES RESIDENTIAL,People's Services,Home Care Services,A56019
London Borough of Sutton,21/08/2023,50480275,552.12,Clovecare Ltd,SOCIAL SERVICES RESIDENTIAL,People's Services,Home Care Services,A56019
London Borough of Sutton,21/04/2024,50486405,508.39,Clovecare Ltd,SOCIAL SERVICES RESIDENTIAL,People's Services,Home Care Services,A56019
London Borough of Sutton,12/04/2024,50482504,"4,234.16",Coast Care Homes Ltd,SOCIAL SERVICES RESIDENTIAL,People's Services,Residential Care - Ext Provider,A56114
London Borough of Sutton,12/04/2024,50482403,"12,960.16",Cognithan Ltd,SOCIAL SERVICES RESIDENTIAL,People's Services,Residential Care - Ext Provider,A56114
London Borough of Sutton,28/03/2024,20073341,"4,000.00",Cognus Ltd,LEGAL & PROFESSIONAL SERVICES,People's Services,LAC - Education,A44280
London Borough of Sutton,02/04/2024,20073342,"7,000.00",Cognus Ltd,LEGAL & PROFESSIONAL SERVICES,People's Services,LAC - Education,A44280
London Borough of Sutton,27/03/2024,20073343,"2,250.00",Cognus Ltd,LEGAL & PROFESSIONAL SERVICES,People's Services,LAC - Education,A44280
London Borough of Sutton,02/04/2024,20073344,"4,000.00",Cognus Ltd,LEGAL & PROFESSIONAL SERVICES,People's Services,LAC - Education,A44280
London Borough of Sutton,27/03/2024,20073347,"5,415.00",Cognus Ltd,LEGAL & PROFESSIONAL SERVICES,People's Services,LAC - Education,A44280
London Borough of Sutton,02/04/2024,20073510,"24,480.00",Cognus Ltd,LEGAL & PROFESSIONAL SERVICES,People's Services,LAC - Education,A44280
London Borough of Sutton,19/01/2024,20073614,"-4,800.00",Cognus Ltd,LEGAL & PROFESSIONAL SERVICES,People's Services,Payment - Extended Role of Virtual School Head,A51054
London Borough of Sutton,18/03/2024,20073768,"33,334.00",Cognus Ltd,LEGAL & PROFESSIONAL SERVICES,People's Services,Payment - Extended Role of Virtual School Head,A51054
London Borough of Sutton,27/03/2024,20073867,"43,000.00",Cognus Ltd,LEGAL & PROFESSIONAL SERVICES,People's Services,LAC - Education,A44280
London Borough of Sutton,27/03/2024,20073915,"5,430.00",Cognus Ltd,LEGAL & PROFESSIONAL SERVICES,People's Services,Other Supplies & Services,A44291
London Borough of Sutton,16/04/2024,20074359,552.50,Cognus Ltd,LEGAL & PROFESSIONAL SERVICES,Resources,Other Supplies & Services,A44291
London Borough of Sutton,12/04/2024,50482361,"11,981.04",Coleg Elidyr Camphill Communities,CHILDREN'S SERVICES - RESIDENTIAL,People's Services,Residential Care - Ext Provider,A56114
London Borough of Sutton,09/04/2024,50479729,"1,375.20",Collingwood School Ltd,GRANTS & EX GRATIA PAYMENTS,People's Services,Payment - Nursery Funding,A51056
London Borough of Sutton,09/04/2024,50481095,"13,430.25",Collingwood School Ltd,GRANTS & EX GRATIA PAYMENTS,People's Services,Payment - Nursery Funding,A51056
London Borough of Sutton,08/04/2024,50481671,"4,304.33",Collingwood School Ltd,GRANTS & EX GRATIA PAYMENTS,People's Services,Independent School Fees,A56002
London Borough of Sutton,30/04/2024,50488768,"13,430.25",Collingwood School Ltd,GRANTS & EX GRATIA PAYMENTS,People's Services,Payment - Nursery Funding,A51056
London Borough of Sutton,11/04/2024,20074313,"1,121.00",Come and Play Childcare Ltd,CHILDREN'S SERVICES - DAY CARE,Resources,Provider Contract Payments,A44290
London Borough of Sutton,28/03/2023,20073451,"301,875.00",Community Action Sutton,GRANTS & EX GRATIA PAYMENTS,Resources,Provider Contract Payments,A44290
London Borough of Sutton,20/04/2024,20074790,"4,500.00",Complete Ecology Ltd,CONSTRUCTION INDUSTRY,Environment Housing and Neighbourhoods,Nature Conservation,A56104
London Borough of Sutton,02/04/2024,50484589,241.07,Concept Care & Support Ltd,CHILDREN'S SERVICE - OTHER,People's Services,Approved Lodgings,A61000
London Borough of Sutton,02/04/2024,50484589,"6,364.29",Concept Care & Support Ltd,CHILDREN'S SERVICE - OTHER,People's Services,Approved Lodgings,A61000
London Borough of Sutton,03/04/2024,50480169,"4,162.86",Connect Fostering Services Ltd,CHILDREN'S SERVICES - FOSTERING & ADOPTION SERVICES,People's Services,Foster Parents Support,A44110
London Borough of Sutton,03/04/2024,50480226,"4,162.86",Connect Fostering Services Ltd,CHILDREN'S SERVICES - FOSTERING & ADOPTION SERVICES,People's Services,Foster Parents Support,A44110
London Borough of Sutton,09/04/2024,50481029,"-1,262.25",Little PioneersSsutton,ACADEMIC INSTNS - OTHER,People's Services,Payment - Nursery Funding,A51056
London Borough of Sutton,09/04/2024,50481138,"14,287.50",Little PioneersSsutton,ACADEMIC INSTNS - OTHER,People's Services,Payment - Nursery Funding,A51056
London Borough of Sutton,09/04/2024,50481268,"10,372.50",Little PioneersSsutton,ACADEMIC INSTNS - OTHER,People's Services,Payment - Nursery Funding,A51056
London Borough of Sutton,30/04/2024,50488811,"14,287.50",Little PioneersSsutton,ACADEMIC INSTNS - OTHER,People's Services,Payment - Nursery Funding,A51056
London Borough of Sutton,30/04/2024,50488944,"10,372.50",Little PioneersSsutton,ACADEMIC INSTNS - OTHER,People's Services,Payment - Nursery Funding,A51056
London Borough of Sutton,17/04/2024,20074508,"1,596.28",Corona Energy,UTILITIES,Resources,Gas,A21003
London Borough of Sutton,12/04/2024,50482509,"3,420.00",Country Court Care Homes 2 Ltd,SOCIAL SERVICES RESIDENTIAL,People's Services,Nursing Care - Ext Provider,A56025
London Borough of Sutton,12/04/2024,50482509,-659.13,Country Court Care Homes 2 Ltd,SOCIAL SERVICES RESIDENTIAL,People's Services,Nursing Care - 3rd party top up payment,A56023
London Borough of Sutton,24/04/2024,20075146,"1,650.00",County Private Client Ltd,SUNDRY SUPPLIER - HOUSING,Environment Housing and Neighbourhoods,Rent Deposit Scheme,B32179
London Borough of Sutton,24/04/2024,20075146,"1,650.00",County Private Client Ltd,SUNDRY SUPPLIER - HOUSING,Environment Housing and Neighbourhoods,Rent Deposit Scheme,B32179
London Borough of Sutton,29/03/2024,50480221,276.79,Cranmead Ltd,CHILDREN'S SERVICE - OTHER,People's Services,Approved Lodgings,A61000
London Borough of Sutton,29/03/2024,50480221,"7,285.00",Cranmead Ltd,CHILDREN'S SERVICE - OTHER,People's Services,Approved Lodgings,A61000
London Borough of Sutton,12/04/2024,50482480,"7,584.16",Cream 1 Ltd,SOCIAL SERVICES RESIDENTIAL,People's Services,Residential Care - Ext Provider,A56114
London Borough of Sutton,12/04/2024,50482480,"5,560.52",Cream 1 Ltd,SOCIAL SERVICES RESIDENTIAL,People's Services,One to One Care,A56108
London Borough of Sutton,28/02/2024,50479428,"19,200.48",Cressey Oasis Education Ltd,CHILDREN'S SERVICES - RESIDENTIAL,People's Services,Independent School Fees,A56002
London Borough of Sutton,20/02/2024,50479440,"21,445.84",Cressey Oasis Education Ltd,CHILDREN'S SERVICES - RESIDENTIAL,People's Services,Independent School Fees,A56002
London Borough of Sutton,20/02/2024,50479441,"21,445.84",Cressey Oasis Education Ltd,CHILDREN'S SERVICES - RESIDENTIAL,People's Services,Independent School Fees,A56002
London Borough of Sutton,20/02/2024,50479442,"24,016.72",Cressey Oasis Education Ltd,CHILDREN'S SERVICES - RESIDENTIAL,People's Services,Independent School Fees,A56002
London Borough of Sutton,20/02/2024,50479443,"17,678.44",Cressey Oasis Education Ltd,CHILDREN'S SERVICES - RESIDENTIAL,People's Services,Independent School Fees,A56002
London Borough of Sutton,20/02/2024,50479444,"33,999.94",Cressey Oasis Education Ltd,CHILDREN'S SERVICES - RESIDENTIAL,People's Services,Independent School Fees,A56002
London Borough of Sutton,20/02/2024,50479445,"19,036.16",Cressey Oasis Education Ltd,CHILDREN'S SERVICES - RESIDENTIAL,People's Services,Independent School Fees,A56002
London Borough of Sutton,20/02/2024,50479446,"21,445.84",Cressey Oasis Education Ltd,CHILDREN'S SERVICES - RESIDENTIAL,People's Services,Independent School Fees,A56002
London Borough of Sutton,20/02/2024,50479447,"19,917.43",Cressey Oasis Education Ltd,CHILDREN'S SERVICES - RESIDENTIAL,People's Services,Independent School Fees,A56002
London Borough of Sutton,12/04/2024,50482515,"4,096.12",CRNH Ltd,SOCIAL SERVICES RESIDENTIAL,People's Services,Nursing Care - Ext Provider,A56025
London Borough of Sutton,12/04/2024,50482515,-878.84,CRNH Ltd,SOCIAL SERVICES RESIDENTIAL,People's Services,Nursing Care - 3rd party top up payment,A56023
London Borough of Sutton,12/04/2024,50482579,"4,560.00",CRNH Ltd,SOCIAL SERVICES RESIDENTIAL,People's Services,Nursing Care - Ext Provider,A56025
London Borough of Sutton,12/04/2024,50482579,-878.84,CRNH Ltd,SOCIAL SERVICES RESIDENTIAL,People's Services,Nursing Care - 3rd party top up payment,A56023
London Borough of Sutton,12/04/2024,50482582,-878.84,CRNH Ltd,SOCIAL SERVICES RESIDENTIAL,People's Services,Nursing Care - 3rd party top up payment,A56023
London Borough of Sutton,12/04/2024,50482582,"4,096.12",CRNH Ltd,SOCIAL SERVICES RESIDENTIAL,People's Services,Nursing Care - Ext Provider,A56025
London Borough of Sutton,12/04/2024,50482689,-836.76,CRNH Ltd,SOCIAL SERVICES RESIDENTIAL,People's Services,Nursing Care - 3rd party top up payment,A56023
London Borough of Sutton,12/04/2024,50482689,"5,400.00",CRNH Ltd,SOCIAL SERVICES RESIDENTIAL,People's Services,Nursing Care Short Term,A56026
London Borough of Sutton,12/04/2024,50482738,"4,096.12",CRNH Ltd,SOCIAL SERVICES RESIDENTIAL,People's Services,Nursing Care - Ext Provider,A56025
London Borough of Sutton,12/04/2024,50482738,-878.84,CRNH Ltd,SOCIAL SERVICES RESIDENTIAL,People's Services,Nursing Care - 3rd party top up payment,A56023
London Borough of Sutton,12/04/2024,50482873,"5,400.00",CRNH Ltd,SOCIAL SERVICES RESIDENTIAL,People's Services,Nursing Care - Ext Provider,A56025
London Borough of Sutton,12/04/2024,50482873,-836.76,CRNH Ltd,SOCIAL SERVICES RESIDENTIAL,People's Services,Nursing Care - 3rd party top up payment,A56023
London Borough of Sutton,12/04/2024,50482885,-836.76,CRNH Ltd,SOCIAL SERVICES RESIDENTIAL,People's Services,Nursing Care - 3rd party top up payment,A56023
London Borough of Sutton,12/04/2024,50482885,"12,784.00",CRNH Ltd,SOCIAL SERVICES RESIDENTIAL,People's Services,Nursing Care Short Term,A56026
London Borough of Sutton,29/02/2024,20073376,"14,519.00",Cromwood Limited,ACCOMMODATION BED & BREAKFAST,Environment Housing and Neighbourhoods,Bed & Breakfast,A56000
London Borough of Sutton,31/03/2024,20074440,"15,877.00",Cromwood Limited,ACCOMMODATION BED & BREAKFAST,Environment Housing and Neighbourhoods,Bed & Breakfast,A56000
London Borough of Sutton,12/04/2024,50482609,-878.84,Cross Care Services Ltd,SOCIAL SERVICES RESIDENTIAL,People's Services,Nursing Care - 3rd party top up payment,A56023
London Borough of Sutton,12/04/2024,50482609,"4,096.12",Cross Care Services Ltd,SOCIAL SERVICES RESIDENTIAL,People's Services,Nursing Care - Ext Provider,A56025
London Borough of Sutton,12/04/2024,50482670,"4,096.12",Cross Care Services Ltd,SOCIAL SERVICES RESIDENTIAL,People's Services,Nursing Care - Ext Provider,A56025
London Borough of Sutton,12/04/2024,50482670,-878.84,Cross Care Services Ltd,SOCIAL SERVICES RESIDENTIAL,People's Services,Nursing Care - 3rd party top up payment,A56023
London Borough of Sutton,12/04/2024,50482675,"4,096.12",Cross Care Services Ltd,SOCIAL SERVICES RESIDENTIAL,People's Services,Nursing Care - Ext Provider,A56025
London Borough of Sutton,12/04/2024,50482675,-878.84,Cross Care Services Ltd,SOCIAL SERVICES RESIDENTIAL,People's Services,Nursing Care - 3rd party top up payment,A56023
London Borough of Sutton,12/04/2024,50482715,"4,096.12",Cross Care Services Ltd,SOCIAL SERVICES RESIDENTIAL,People's Services,Nursing Care - Ext Provider,A56025
London Borough of Sutton,12/04/2024,50482715,-878.84,Cross Care Services Ltd,SOCIAL SERVICES RESIDENTIAL,People's Services,Nursing Care - 3rd party top up payment,A56023
London Borough of Sutton,12/04/2024,50482731,"6,800.00",Cross Care Services Ltd,SOCIAL SERVICES RESIDENTIAL,People's Services,Nursing Care Short Term,A56026
London Borough of Sutton,12/04/2024,50482731,-878.84,Cross Care Services Ltd,SOCIAL SERVICES RESIDENTIAL,People's Services,Nursing Care - 3rd party top up payment,A56023
London Borough of Sutton,12/04/2024,50482826,"4,096.12",Cross Care Services Ltd,SOCIAL SERVICES RESIDENTIAL,People's Services,Nursing Care - Ext Provider,A56025
London Borough of Sutton,12/04/2024,50482826,-878.84,Cross Care Services Ltd,SOCIAL SERVICES RESIDENTIAL,People's Services,Nursing Care - 3rd party top up payment,A56023
London Borough of Sutton,26/03/2024,20074202,"779,722.81",London Borough of Croydon,CENTRAL & LOCAL GOVERNMENT,Environment Housing and Neighbourhoods,Waste Contractor Payment,A56057
London Borough of Sutton,28/03/2024,20074203,"3,554.73",London Borough of Croydon,CENTRAL & LOCAL GOVERNMENT,People's Services,Payments to Other Local Authorities,A51005
London Borough of Sutton,27/03/2024,20074209,"61,123.71",London Borough of Croydon,CENTRAL & LOCAL GOVERNMENT,Environment Housing and Neighbourhoods,Civic Amenity,A56052
London Borough of Sutton,11/04/2024,20074803,"329,008.09",London Borough of Croydon,CENTRAL & LOCAL GOVERNMENT,Environment Housing and Neighbourhoods,Gate Fee Tonnage,A56072
London Borough of Sutton,10/04/2024,20074804,"326,544.62",London Borough of Croydon,CENTRAL & LOCAL GOVERNMENT,Environment Housing and Neighbourhoods,Gate Fee Tonnage,A56072
London Borough of Sutton,15/03/2024,20074823,"-22,119.04",London Borough of Croydon,CENTRAL & LOCAL GOVERNMENT,Environment Housing and Neighbourhoods,Idverde - Contract Payment,A56100
London Borough of Sutton,31/03/2024,20073194,"1,312.85",Croydon Court Ltd,ACCOMMODATION BED & BREAKFAST,People's Services,Temporary Residential Accommodation,A44140
London Borough of Sutton,31/03/2024,20073195,"2,015.00",Croydon Court Ltd,ACCOMMODATION BED & BREAKFAST,Environment Housing and Neighbourhoods,Bed & Breakfast,A56000
London Borough of Sutton,12/04/2024,50482450,"8,118.44",CSS Ltd,SOCIAL SERVICES RESIDENTIAL,People's Services,Residential Care - Ext Provider,A56114
London Borough of Sutton,31/03/2024,20073295,"5,732.00",Cubiquity Limited,OFFICE SERVICES,Resources,Printing,A43010
London Borough of Sutton,29/02/2024,20073876,695.00,Cubiquity Limited,OFFICE SERVICES,Resources,Printing,A43010
London Borough of Sutton,16/04/2024,50483820,"27,178.31",CUDDINGTON CROFT PRIMARY SCHOOL,CHILDREN'S SERVICES - SEN SERVICES,People's Services,Top-up Funding,A51016
London Borough of Sutton,09/04/2024,50479754,"185,016.98",Culvers House Primary School,SCHOOL FUNDS,People's Services,Payments to Schools,A51013
London Borough of Sutton,09/04/2024,50479894,"1,030.50",Culvers House Primary School,SCHOOL FUNDS,People's Services,Payment - Nursery Funding,A51056
London Borough of Sutton,09/04/2024,50481002,"10,858.50",Culvers House Primary School,SCHOOL FUNDS,People's Services,Payment - Nursery Funding,A51056
London Borough of Sutton,29/04/2024,50489953,"49,470.00",Culvers House Primary School,SCHOOL FUNDS,People's Services,Payment - Deprivation Pupil Premium,A51030
London Borough of Sutton,29/04/2024,50489974,"1,265.00",Culvers House Primary School,SCHOOL FUNDS,People's Services,Payment - Post-LAC Pupil Premium,A51032
London Borough of Sutton,20/04/2024,20074930,"3,450.00",Cura Surveys Limited,LEGAL & PROFESSIONAL SERVICES,Development Growth and Regeneration,External Fees and Consultants,C20000
London Borough of Sutton,12/04/2024,50482422,"6,400.00",Curado Limited,GRANTS & EX GRATIA PAYMENTS,People's Services,Residential Care - Ext Provider,A56114
London Borough of Sutton,12/04/2024,50482484,"4,800.00",Curado Limited,GRANTS & EX GRATIA PAYMENTS,People's Services,Interim Placements - Ext Provider,A56102
London Borough of Sutton,12/04/2024,50482500,"6,400.00",Curado Limited,GRANTS & EX GRATIA PAYMENTS,People's Services,Residential Care - Ext Provider,A56114
London Borough of Sutton,23/04/2024,50485091,"-3,471.43",Curado Limited,GRANTS & EX GRATIA PAYMENTS,People's Services,Nursing Care - 3rd party top up payment,A56023
London Borough of Sutton,23/04/2024,50485091,"5,785.71",Curado Limited,GRANTS & EX GRATIA PAYMENTS,People's Services,Supported Living,A56088
London Borough of Sutton,30/04/2024,20075270,"8,600.00",Cushman & Wakefield Debenham Tie Leung Limited,LEGAL & PROFESSIONAL SERVICES,Development Growth and Regeneration,External Fees and Consultants,C20000
London Borough of Sutton,12/04/2024,50482366,"7,884.00",Cygnet Learning Disabilities Midlands Ltd,SOCIAL SERVICES RESIDENTIAL,People's Services,Residential Care - Ext Provider,A56114
London Borough of Sutton,12/04/2024,50482366,-846.40,Cygnet Learning Disabilities Midlands Ltd,SOCIAL SERVICES RESIDENTIAL,People's Services,Residential Care - Client Cont ( Net Paymt ),A56113
London Borough of Sutton,11/04/2024,20074199,805.00,REDACTED - PERSONAL DATA,GRANTS & EX GRATIA PAYMENTS,Environment Housing and Neighbourhoods,Temporary Protection - Homeless Persons,A62028
London Borough of Sutton,16/04/2024,20074429,"2,000.00",D�GAMA LTD,SUNDRY SUPPLIER - HOUSING,Environment Housing and Neighbourhoods,PSL Payments To Landlords,A22031
London Borough of Sutton,19/07/2023,20073146,"1,615.00",Danson Youth Trust,OFFICE SERVICES,People's Services,Client Care/Assistance,A61011
London Borough of Sutton,29/02/2024,20073150,"2,667.50",Danson Youth Trust,OFFICE SERVICES,People's Services,Client Care/Assistance,A61011
London Borough of Sutton,04/03/2024,20073773,750.00,Daras Cleaning Services Ltd,SOCIAL SERVICES-HOME CARE,People's Services,Client Care/Assistance,A61011
London Borough of Sutton,23/04/2024,50485144,"2,560.71",Daret Healthcare UK Limited,SOCIAL SERVICES RESIDENTIAL,People's Services,Supported Living,A56088
London Borough of Sutton,29/03/2024,20073330,"1,168.96",Dariba Design Limited,CONSULTING ARCHITECTS ENGINEER,Environment Housing and Neighbourhoods,Grants Given For Capital Purposes,C20004
London Borough of Sutton,03/04/2024,20073567,"1,222.50",Dariba Design Limited,CONSULTING ARCHITECTS ENGINEER,Environment Housing and Neighbourhoods,Grants Given For Capital Purposes,C20004
London Borough of Sutton,16/04/2024,20074531,960.00,Dariba Design Limited,CONSULTING ARCHITECTS ENGINEER,Environment Housing and Neighbourhoods,Grants Given For Capital Purposes,C20004
London Borough of Sutton,14/04/2024,20074686,"1,383.46",Dariba Design Limited,CONSULTING ARCHITECTS ENGINEER,Environment Housing and Neighbourhoods,Grants Given For Capital Purposes,C20004
London Borough of Sutton,25/04/2024,20075152,960.00,Dariba Design Limited,CONSULTING ARCHITECTS ENGINEER,Environment Housing and Neighbourhoods,Grants Given For Capital Purposes,C20004
London Borough of Sutton,01/04/2024,20073220,"1,209.00",REDACTED - PERSONAL DATA,GRANTS & EX GRATIA PAYMENTS,Environment Housing and Neighbourhoods,Temporary Protection - Homeless Persons,A62028
London Borough of Sutton,09/04/2024,50481266,"3,409.20",REDACTED - PERSONAL DATA,CHILDMINDERS START UP GRANT,People's Services,Payment - Nursery Funding,A51056
London Borough of Sutton,30/04/2024,50488942,"3,409.20",REDACTED - PERSONAL DATA,CHILDMINDERS START UP GRANT,People's Services,Payment - Nursery Funding,A51056
London Borough of Sutton,31/03/2024,20074443,"7,750.00",Dellhome Limited,ACCOMMODATION BED & BREAKFAST,Environment Housing and Neighbourhoods,Bed & Breakfast,A56000
London Borough of Sutton,25/03/2024,20073778,"2,207.00",Delta Wise Limited,ACCOMMODATION BED & BREAKFAST,Environment Housing and Neighbourhoods,Bed & Breakfast,A56000
London Borough of Sutton,01/04/2024,20073782,"40,745.00",Delta Wise Limited,ACCOMMODATION BED & BREAKFAST,Environment Housing and Neighbourhoods,Bed & Breakfast,A56000
London Borough of Sutton,12/04/2024,50482358,"3,505.00",Denville Hall 2012,SOCIAL SERVICES RESIDENTIAL,People's Services,Residential Care - Ext Provider,A56114
London Borough of Sutton,09/04/2024,50479747,"278,784.50",Devonshire Primary School,SCHOOL FUNDS,People's Services,Payments to Schools,A51013
London Borough of Sutton,09/04/2024,50479812,"14,816.86",Devonshire Primary School,SCHOOL FUNDS,Environment Housing and Neighbourhoods,Other payments to schools,A51023
London Borough of Sutton,09/04/2024,50479895,"1,061.10",Devonshire Primary School,SCHOOL FUNDS,People's Services,Payment - Nursery Funding,A51056
London Borough of Sutton,09/04/2024,50481003,"7,722.00",Devonshire Primary School,SCHOOL FUNDS,People's Services,Payment - Nursery Funding,A51056
London Borough of Sutton,29/04/2024,50489947,"69,476.50",Devonshire Primary School,SCHOOL FUNDS,People's Services,Payment - Deprivation Pupil Premium,A51030
London Borough of Sutton,29/04/2024,50489971,"1,265.00",Devonshire Primary School,SCHOOL FUNDS,People's Services,Payment - Post-LAC Pupil Premium,A51032
London Borough of Sutton,19/04/2024,20074638,"1,495.91",D'Gama Ltd,PLS LANDLORDS,Environment Housing and Neighbourhoods,Temporary Protection - Homeless Persons,A62028
London Borough of Sutton,19/04/2024,20074639,"1,495.91",D'Gama Ltd,PLS LANDLORDS,Environment Housing and Neighbourhoods,Temporary Protection - Homeless Persons,A62028
London Borough of Sutton,15/02/2024,50484607,"2,124.20",Direct Care And Support Services,ACCOMMODATION - OTHER,People's Services,Supported Living,A56088
London Borough of Sutton,15/02/2024,50484607,"1,307.32",Direct Care And Support Services,ACCOMMODATION - OTHER,People's Services,Supported Living,A56088
London Borough of Sutton,15/02/2024,50484607,"1,291.48",Direct Care And Support Services,ACCOMMODATION - OTHER,People's Services,Supported Living,A56088
London Borough of Sutton,15/02/2024,50484608,"2,124.20",Direct Care And Support Services,ACCOMMODATION - OTHER,People's Services,Supported Living,A56088
London Borough of Sutton,15/02/2024,50484608,"1,307.32",Direct Care And Support Services,ACCOMMODATION - OTHER,People's Services,Supported Living,A56088
London Borough of Sutton,15/02/2024,50484608,"1,291.48",Direct Care And Support Services,ACCOMMODATION - OTHER,People's Services,Supported Living,A56088
London Borough of Sutton,15/02/2024,50484609,"2,124.20",Direct Care And Support Services,ACCOMMODATION - OTHER,People's Services,Supported Living,A56088
London Borough of Sutton,15/02/2024,50484609,"1,307.32",Direct Care And Support Services,ACCOMMODATION - OTHER,People's Services,Supported Living,A56088
London Borough of Sutton,15/02/2024,50484609,"1,291.48",Direct Care And Support Services,ACCOMMODATION - OTHER,People's Services,Supported Living,A56088
London Borough of Sutton,15/02/2024,50484711,"2,801.64",Direct Care And Support Services,ACCOMMODATION - OTHER,People's Services,Supported Living,A56088
London Borough of Sutton,15/02/2024,50484711,"1,307.32",Direct Care And Support Services,ACCOMMODATION - OTHER,People's Services,Supported Living,A56088
London Borough of Sutton,15/02/2024,50484711,"1,235.04",Direct Care And Support Services,ACCOMMODATION - OTHER,People's Services,Supported Living,A56088
London Borough of Sutton,15/02/2024,50484712,"2,801.64",Direct Care And Support Services,ACCOMMODATION - OTHER,People's Services,Supported Living,A56088
London Borough of Sutton,15/02/2024,50484712,"1,307.32",Direct Care And Support Services,ACCOMMODATION - OTHER,People's Services,Supported Living,A56088
London Borough of Sutton,15/02/2024,50484712,"1,235.04",Direct Care And Support Services,ACCOMMODATION - OTHER,People's Services,Supported Living,A56088
London Borough of Sutton,15/02/2024,50484713,"2,801.64",Direct Care And Support Services,ACCOMMODATION - OTHER,People's Services,Supported Living,A56088
London Borough of Sutton,15/02/2024,50484713,"1,307.32",Direct Care And Support Services,ACCOMMODATION - OTHER,People's Services,Supported Living,A56088
London Borough of Sutton,15/02/2024,50484713,"1,235.04",Direct Care And Support Services,ACCOMMODATION - OTHER,People's Services,Supported Living,A56088
London Borough of Sutton,08/03/2024,20073679,"2,696.29",District Surveyors Association Ltd,SUBSCRIPTIONS & PUBLICATIONS,Environment Housing and Neighbourhoods,Subscriptions,A47010
London Borough of Sutton,26/03/2024,20072854,"2,048.86",DMA Signs Limited,AGRICULTURAL & ESTATE SERVICES,Environment Housing and Neighbourhoods,Purchase of Furniture & Equipment,C16000
London Borough of Sutton,09/04/2024,50481101,"1,424.25",REDACTED - PERSONAL DATA,GRANTS & EX GRATIA PAYMENTS,People's Services,Payment - Nursery Funding,A51056
London Borough of Sutton,09/04/2024,50481224,"1,244.70",REDACTED - PERSONAL DATA,GRANTS & EX GRATIA PAYMENTS,People's Services,Payment - Nursery Funding,A51056
London Borough of Sutton,30/04/2024,50488774,"1,424.25",REDACTED - PERSONAL DATA,GRANTS & EX GRATIA PAYMENTS,People's Services,Payment - Nursery Funding,A51056
London Borough of Sutton,30/04/2024,50488898,"1,244.70",REDACTED - PERSONAL DATA,GRANTS & EX GRATIA PAYMENTS,People's Services,Payment - Nursery Funding,A51056
London Borough of Sutton,09/04/2024,50479749,"208,466.11",Dorchester Primary School,SCHOOL FUNDS,People's Services,Payments to Schools,A51013
